Workbook

Sheet 1. INFORMACION ACUMULADA
A2: VEEDURIA DISTRITAL - INFORMACIÓN GESTION CONTRACTUAL
A3: DEL 1 DE ENERO AL 31 DE DICIEMBRE DE 2022
A5: 1. Entidad | H5: 2. Sector
A6: 3. Presupuesto Disponible Inversión Directa PREDIS (BOGDATA) | E6: 54284952031 | H6: 5. Presupuesto Disponible Funcionamiento PREDIS (BOGDATA) | I6: 2926013198 | AI6: 7. Nombre de quien diligencia el formato
A7: 4. Presupuesto Comprometido de Inversión Directa según PREDIS (BOGDATA) | E7: 54284952031 | H7: 6. Presupuesto Comprometido Funcionamiento según PREDIS (BOGDATA) | I7: 2926013198 | AI7: Cargo
AI8: Dependencia
AI9: Teléfono
AI10: Correo Electrónico
A11: 1- INFORMACION GENERAL | V11: 2- INFORMACION FINANCIERA | AC11: 3 - PLAZOS | AI11: 4. CESION | AM11: 5. ESTADO | AN11: 6. % Avance y/o cumplimiento
A12: 1 | B12: 2 | C12: 3 | E12: 4 | F12: 5 | G12: 6 | H12: 7 | I12: 8 | N12: 9 | O12: 10 | P12: 11 | V12: 12 | W12: 13 | X12: 14 | Y12: 15 | Z12: 16 | AA12: 17 | AB12: 18 | AC12: 19 | AD12: 20 | AE12: 21 | AF12: 22 | AG12: 23 | AH12: 24 | AI12: 25 | AJ12: 26 | AK12: 27 | AL12: 28 | AM12: 29 | AN12: 30
A13: Número Contrato | B13: Año | C13: Número de proceso contractual SECOP | D13: Link proceso SECOP | E13: Tipo de contrato | F13: Modalidad de Selección | G13: Procedimiento o causal | H13: Objeto | I13: Afectación | J13: Plan de Desarrollo Distrital | K13: Número Programa | L13: Equivalencia número de programa | M13: Propósito | N13: Número Proyecto | O13: Número de proponentes | P13: Número de Identificación del contratista (Cédula o NIT sin puntos, comas ni caracteres especiales y sin digito de verificación) | Q13: Nombre del contratista (según el caso: nombres y apellidos o Razón social y Tipo societario) | R13: Naturaleza Jurídica | S13: Número de Identificación del integrante del Consorcio o U.T. (Cédula o NIT sin puntos, comas ni caracteres especiales y sin digito de verificación) | T13: Nombre del Integrante del Consorcio o U.T. y Tipo societario (Según el caso: nombres y apellidos o razón social y tipo societario) | U13: % Participación (indicar solo el numero del porcentaje, sin caracteres especiales) | V13: Vigencias futuras | W13: Valor Inicial del contrato | X13: Valor total reducciones (En valor negativo) | Y13: Número de adiciones | Z13: Valor total de adiciones | AA13: Valor Final | AB13: Giros (Valor en pesos) | AC13: Fecha de suscripción (DD/MM/AAAA) | AD13: Fecha de inicio (DD/MM/AAAA) | AE13: Fecha de terminación (DD/MM/AAAA) | AF13: Plazo en días | AG13: Número de prórrogas | AH13: Prorroga en días | AI13: Número de Identificación del cesionario (NIT sin digito de verificación) | AJ13: Nombre cesionario | AK13: Fecha cesión (DD/MM/AAAA) | AL13: Valor cesión | AM13: Estado | AN13: % Avance y/o Cumplimiento
A14: FDLUSA-CPS-019-2021 | B14: 2021 | C14: FDLUSA-019-2021 | D14: https://community.secop.gov.co/Public/Tendering/OpportunityDetail/Index?noticeUID=CO1.NTC.1733593&isFromPublicArea=True&isModal=False | E14: Contratos de prestación de servicios profesionales y de apoyo a la gestión | F14: Contratación directa | G14: Prestación de servicios profesionales y de apoyo a la gestión, o para la ejecución de trabajos artísticos que sólo puedan encomendarse a determinadas personas naturales | H14: PRESTAR LOS SERVICIOS DE APOYO TÉCNICOS A LA ALCALDÍA LOCAL DE USAQUUÉN REALIZANDO EL APOYO ADMINISTRATIVO PARA EL CONTROL Y SEGUIMIENTO DE LOS PROCESOS, PROGRAMAS Y PROYECTOS DE INVERSIÓN DEL PLAN DE DESARROLLO LOCAL DE LA ALCALDÍA LOCAL- PROMOVER EN 208 MIPYMES Y/O EMPRENDIMIENTOS LA TRANSFORMACIÓN EMPRESARIAL Y/O PRODUCTIVA | I14: Inversión | J14: UN NUEVO CONTRATO SOCIAL Y AMBIENTAL PARA LA BOGOTA DEL SIGLO XXI | K14: 6 | L14: Sistema Distrital de Cuidado | M14: Propósito 1: Hacer un nuevo contrato social para incrementar la inclusión social, productiva y política | N14: O23011601060000001941 | O14: 1 | P14: 1098784173 | Q14: DANIELA CAROLINA SILVA GARCIA | R14: Persona Natural | W14: 0 | Y14: 1 | Z14: 1857333 | AA14: =+W14+X14+Z14 -> 1857333 | AB14: 1857333 | AC14: 2022-01-07 | AD14: 2022-01-07 | AE14: 2022-01-21 | AF14: 14 | AM14: Terminado | AN14: =IF(ISERROR(AB14/AA14),"-",(AB14/AA14)) -> 1
A15: FDLUSA-CPS-082-2021 | B15: 2021 | C15: FDLUSA-SASI-001-2021 | D15: https://community.secop.gov.co/Public/Tendering/OpportunityDetail/Index?noticeUID=CO1.NTC.1693348&isFromPublicArea=True&isModal=False | E15: Contratos de prestación de servicios | F15: Selección abreviada | G15: Subasta inversa | H15: PRESTAR EL SERVICIO INTEGRAL DE VIGILANCIA Y SEGURIDAD PRIVADA PERMANENTE CON MEDIO HUMANO, CON ARMA Y MEDIOS TECNOLÓGICOS PARA TODOS LOS BIENES MUEBLES E INMUEBLES DE PROPIEDAD DE LA ALCALDÍA LOCAL DE USAQUEN - FONDO DE DESARROLLO LOCAL DE USAQUEN Y DE LAS QUE LEGALMENTE SEA O LLEGARE A SER RESPONSABLE | I15: Funcionamiento | J15: UN NUEVO CONTRATO SOCIAL Y AMBIENTAL PARA LA BOGOTA DEL SIGLO XXI | K15: No aplica | L15: NO APLICA | M15: NO APLICA | N15: FUNCIONAMIENTO | O15: 10 | P15: 901457774 | Q15: UNIÓN TEMPORAL M5 | R15: Unión Temporal | S15: 860072115 | T15: MEGASEGURIDAD LA PROVEEDORA LTDA | U15: 75 | W15: 0 | X15: -27384 | Y15: 1 | Z15: 11347632 | AA15: =+W15+X15+Z15 -> 11320248 | AB15: 11320248 | AC15: 2022-03-03 | AD15: 2022-03-03 | AE15: 2022-04-08 | AF15: 34 | AM15: Terminado | AN15: =IF(ISERROR(AB15/AA15),"-",(AB15/AA15)) -> 1
A16: FDLUSA-CPS-082-2021 | B16: 2021 | C16: FDLUSA-SASI-001-2021 | D16: https://community.secop.gov.co/Public/Tendering/OpportunityDetail/Index?noticeUID=CO1.NTC.1693348&isFromPublicArea=True&isModal=False | E16: Contratos de prestación de servicios | F16: Selección abreviada | G16: Subasta inversa | H16: PRESTAR EL SERVICIO INTEGRAL DE VIGILANCIA Y SEGURIDAD PRIVADA PERMANENTE CON MEDIO HUMANO, CON ARMA Y MEDIOS TECNOLÓGICOS PARA TODOS LOS BIENES MUEBLES E INMUEBLES DE PROPIEDAD DE LA ALCALDÍA LOCAL DE USAQUEN - FONDO DE DESARROLLO LOCAL DE USAQUEN Y DE LAS QUE LEGALMENTE SEA O LLEGARE A SER RESPONSABLE | I16: Funcionamiento | J16: UN NUEVO CONTRATO SOCIAL Y AMBIENTAL PARA LA BOGOTA DEL SIGLO XXI | K16: No aplica | L16: NO APLICA | M16: NO APLICA | N16: FUNCIONAMIENTO | O16: 10 | P16: 901457774 | Q16: UNIÓN TEMPORAL M5 | R16: Unión Temporal | S16: 901113227 | T16: UNION 5 SEGURIDAD LTDA | U16: 25 | W16: 0 | AA16: 0 | AC16: 2022-03-03 | AD16: 2022-03-03 | AE16: 2022-04-08 | AF16: 34 | AM16: Terminado | AN16: -
A17: FDLUSA-CPS-142-2021 | B17: 2021 | C17: FDLUSA-CPS-142-2021 | D17: https://community.secop.gov.co/Public/Tendering/OpportunityDetail/Index?noticeUID=CO1.NTC.1814668&isFromPublicArea=True&isModal=False | E17: Contratos de prestación de servicios profesionales y de apoyo a la gestión | F17: Contratación directa | G17: Prestación de servicios profesionales y de apoyo a la gestión, o para la ejecución de trabajos artísticos que sólo puedan encomendarse a determinadas personas naturales | H17: PRESTAR LOS SERVICIOS PROFESIONALES A LA ALCALDÍA LOCAL DE USAQUÉN, PARA LA EJECUCIÓN DE LAS ACTIVIDADES Y PROCESOS ADMINISTRATIVOS RELACIONADOS CON LA GESTIÓN DEL RIESGO Y CAMBIO CLIMÁTICO, AGLOMERACIONES Y DEMÁS CONTEMPLADOS EN EL PLAN DE DESARROLLO “UN NUEVO CONTRATO SOCIAL Y AMBIENTAL PARA USAQUÉN 2021-2024- META PDL REALIZAR 4 ESTRATEGIAS DE FORTALECIMIENTO INSTITUCIONAL | I17: Inversión | J17: UN NUEVO CONTRATO SOCIAL Y AMBIENTAL PARA LA BOGOTA DEL SIGLO XXI | K17: 57 | L17: Gestión pública local | M17: Propósito 5: Construir Bogotá - Región con gobierno abierto, transparente y ciudadanía consciente | N17: O23011605570000001949 | O17: 1 | P17: 52410335 | Q17: CLAUDIA LILIANA MOYA ORJUELA | R17: Persona Natural | W17: 0 | Y17: 1 | Z17: 2383333 | AA17: 2383333 | AB17: 2383333 | AC17: 2022-01-04 | AD17: 2022-01-04 | AE17: 2022-01-15 | AF17: 10 | AM17: Terminado | AN17: 1
A18: FDLUSA-CPS-248-2021 | B18: 2021 | C18: FDLUSA-MC-005-2021 | D18: https://community.secop.gov.co/Public/Tendering/OpportunityDetail/Index?noticeUID=CO1.NTC.1916248&isFromPublicArea=True&isModal=False | E18: Seguros | F18: Contratación mínima cuantia | H18: CONTRATACIÓN DE LA PÓLIZA DE VIDA GRUPO DE LOS EDILES DE LA ALCALDIA LOCAL DE USAQUEN | I18: Funcionamiento | J18: UN NUEVO CONTRATO SOCIAL Y AMBIENTAL PARA LA BOGOTA DEL SIGLO XXI | K18: No aplica | L18: NO APLICA | M18: NO APLICA | N18: FUNCIONAMIENTO | O18: 3 | P18: 860009174 | Q18: SEGUROS DE VIDA DEL ESTADO S.A. | R18: Persona Jurídica | W18: 0 | Y18: 1 | Z18: 452055 | AA18: 452055 | AB18: 452055 | AC18: 2022-04-27 | AD18: 2022-04-27 | AE18: 2022-05-23 | AF18: 27 | AM18: Terminado | AN18: 1
A19: FDLUSA-CIPS-260-2021 | B19: 2021 | C19: FDLUSA-CIPS-260-2021. | D19: https://community.secop.gov.co/Public/Tendering/OpportunityDetail/Index?noticeUID=CO1.NTC.1967174&isFromPublicArea=True&isModal=False | E19: Convenios/Contratos interadministrativos | F19: Contratación directa | G19: Contratos interadministrativos | H19: PRESTAR LOS SERVICIOS DE DISTRIBUCIÓN Y TRÁMITE DE COMUNICACIONES OFICIALES EXTERNAS ENVIADAS, EN FORMA PERSONALIZADA Y/O INMEDIATA, ASÍ COMO LOS SERVICIOS DE CORREO EN SUS DIFERENTES MODALIDADES, DE ACUERDO CON LAS NECESIDADES DEL SERVICIO Y LOS REQUERIMIENTOS DE LA ALCALDÍA LOCAL DE USAQUÉN, EN EL CENTRO DE DOCUMENTACIÓN E INFORMACIÓN DE LA MISMA | I19: Funcionamiento | J19: UN NUEVO CONTRATO SOCIAL Y AMBIENTAL PARA LA BOGOTA DEL SIGLO XXI | K19: No aplica | L19: NO APLICA | M19: NO APLICA | N19: FUNCIONAMIENTO | O19: 1 | P19: 900062917 | Q19: SERVICIOS POSTALES NACIONALES 4-72 S.A | R19: Persona Jurídica | W19: 0 | Y19: 1 | Z19: 45000000 | AA19: 45000000 | AB19: 34816372 | AC19: 2022-02-23 | AD19: 2022-02-23 | AE19: 2022-07-31 | AF19: 150 | AM19: Terminado | AN19: 0.7736971556
A20: FDLUSA-CTO-267-2021 | B20: 2021 | C20: ORDEN DE COMPRA 70764 | D20: https://www.colombiacompra.gov.co/tienda-virtual-del-estado-colombiano/ordenes-compra/70764 | E20: Suministro | F20: Selección abreviada | G20: Acuerdo marco de precios | H20: PRESTAR EL SERVICIO DE ASEO Y CAFETERÍA, INCLUIDO: RECURSO HUMANO, MAQUINARIA Y EQUIPOS NECESARIOS PARA EL DESARROLLO DEL PROCESO, ADEMÁS DEL SUMINISTRO DE INSUMOS PARA LAS DIFERENTES SEDES DE LA ALCALDÍA LOCAL DE USAQUÉN INCLUIDA LA JUNTA ADMINISTRADORA LOCAL | I20: Funcionamiento | J20: UN NUEVO CONTRATO SOCIAL Y AMBIENTAL PARA LA BOGOTA DEL SIGLO XXI | K20: No aplica | L20: NO APLICA | M20: NO APLICA | N20: FUNCIONAMIENTO | O20: 17 | P20: 900073254 | Q20: CENTRO ASEO MANTENIMIENTO PROFESIONAL S.A.S | R20: Persona Jurídica | W20: 0 | Y20: 1 | Z20: 37360000 | AA20: 37360000 | AB20: 37360000 | AC20: 2022-03-03 | AD20: 2022-03-03 | AE20: 2022-04-02 | AF20: 30 | AM20: Terminado | AN20: 1
A21: FDLUSA-CI-271-2021 | B21: 2021 | C21: FDLUSA-CI-271-2021. | D21: https://community.secop.gov.co/Public/Tendering/OpportunityDetail/Index?noticeUID=CO1.NTC.2041958&isFromPublicArea=True&isModal=False | E21: Convenios/Contratos interadministrativos | F21: Contratación directa | G21: Contratos interadministrativos | H21: AUNAR ESFUERZOS TÉCNICOS, ADMINISTRATIVOS Y FINANCIEROS, PARA DESARROLLAR ACCIONES DE ATENCIÓN INTEGRAL A PERSONAS CON DISCAPACIDAD, A TRAVÉS DEL OTORGAMIENTO DE DISPOSITIVOS DE ASISTENCIA PERSONAL – AYUDAS TÉCNICAS QUE NO SE ENCUENTREN PREVISTAS O CUBIERTAS DENTRO DEL PLAN DE BENEFICIOS EN SALUD-PBS, ACORDE A LAS CARACTERÍSTICAS Y NECESIDADES INDIVIDUALES DE LAS PERSONAS CON DISCAPACIDAD, SU FAMILIA, CUIDADOR O CUIDADORA CON EL FIN DE CONTRIBUIR AL MEJORAMIENTO DE LA CALIDAD DE VIDA DE LAS PERSONAS CON DISCAPACIDAD, INCLUIDAS EN EL PROYECTO NO. 1961 “USAQUÉN TE CUIDA”, ESTABLECIDAS PARA EL COMPONENTE “AYUDAS TÉCNICAS EN SALUD | I21: Inversión | J21: UN NUEVO CONTRATO SOCIAL Y AMBIENTAL PARA LA BOGOTA DEL SIGLO XXI | K21: 6 | L21: Sistema Distrital de Cuidado | M21: Propósito 1: Hacer un nuevo contrato social para incrementar la inclusión social, productiva y política | N21: O23011601060000001961 | O21: 1 | P21: 900971006 | Q21: SUBRED INTEGRADA DE SERVICIOS DE SALUD NORTE E.S.E. | R21: Persona Jurídica | W21: 0 | Y21: 1 | Z21: 118768500 | AA21: 118768500 | AB21: 118765757 | AC21: 2022-01-19 | AD21: 2022-02-19 | AE21: 2022-06-19 | AF21: 120 | AM21: Terminado | AN21: 0.9999769047
A22: 288 de 2021 | B22: 2021 | C22: FDLUSA-CD-285-2021 | D22: https://community.secop.gov.co/Public/Tendering/OpportunityDetail/Index?noticeUID=CO1.NTC.2115596&isFromPublicArea=True&isModal=False | E22: Convenios/Contratos interadministrativos | F22: Contratación directa | G22: Contratos interadministrativos | H22: AUNAR ESFUERZOS TÉCNICOS, ADMINISTRATIVOS Y FINANCIEROS, CON LA UNIVERSIDAD NACIONAL DE COLOMBIA - ESCUELA DE ESTUDIOS DE GÉNERO PARA DESARROLLAR UN PRO- CESO PEDAGÓGICO, UN PROCESO DE ORIENTACIÓN PSICOSOCIAL Y UNA ESTRATEGIA DE COMUNICACIÓN, CEN- TRADAS EN: I) LA PROMOCIÓN Y FORTALECIMIENTO DE CAPACIDADES PARA EL EMPODERAMIENTO DE LAS MUJE- RES HABITANTES DE USAQUÉN EN EL EJERCICIO DE SUS DERECHOS Y LA VIVENCIA PLENA DE SU CIUDADANÍA; II) LA PREVENCIÓN DEL FEMINICIDIO Y VIOLENCIAS CONTRA LAS MU | I22: Inversión | J22: UN NUEVO CONTRATO SOCIAL Y AMBIENTAL PARA LA BOGOTA DEL SIGLO XXI | K22: 6 | L22: Sistema Distrital de Cuidado | M22: Propósito 1: Hacer un nuevo contrato social para incrementar la inclusión social, productiva y política | N22: O23011601060000001989 | O22: 1 | P22: 899999063 | Q22: UNIVERSIDAD NACIONAL DE COLOMBIA | R22: Persona Jurídica | W22: 0 | Y22: 1 | Z22: 368334683 | AA22: 368334683 | AB22: 368334683 | AC22: 2022-03-14 | AD22: 2022-03-14 | AE22: 2022-08-31 | AF22: 150 | AM22: Terminado | AN22: 1
A23: 288 de 2021 | B23: 2021 | C23: FDLUSA-CD-285-2021 | D23: https://community.secop.gov.co/Public/Tendering/OpportunityDetail/Index?noticeUID=CO1.NTC.2115596&isFromPublicArea=True&isModal=False | E23: Convenios/Contratos interadministrativos | F23: Contratación directa | G23: Contratos interadministrativos | H23: AUNAR ESFUERZOS TÉCNICOS, ADMINISTRATIVOS Y FINANCIEROS, CON LA UNIVERSIDAD NACIONAL DE COLOMBIA - ESCUELA DE ESTUDIOS DE GÉNERO PARA DESARROLLAR UN PRO- CESO PEDAGÓGICO, UN PROCESO DE ORIENTACIÓN PSICOSOCIAL Y UNA ESTRATEGIA DE COMUNICACIÓN, CEN- TRADAS EN: I) LA PROMOCIÓN Y FORTALECIMIENTO DE CAPACIDADES PARA EL EMPODERAMIENTO DE LAS MUJE- RES HABITANTES DE USAQUÉN EN EL EJERCICIO DE SUS DERECHOS Y LA VIVENCIA PLENA DE SU CIUDADANÍA; II) LA PREVENCIÓN DEL FEMINICIDIO Y VIOLENCIAS CONTRA LAS MU | I23: Inversión | J23: UN NUEVO CONTRATO SOCIAL Y AMBIENTAL PARA LA BOGOTA DEL SIGLO XXI | K23: 40 | L23: Más mujeres viven una vida libre de violencias, se sienten seguras y acceden con confianza al sistema de justicia | M23: Propósito 3: Inspirar confianza y legitimidad para vivir sin miedo y ser epicentro de cultura ciudadana, paz y reconciliación | N23: O23011603400000001991 | O23: 1 | P23: 899999063 | Q23: UNIVERSIDAD NACIONAL DE COLOMBIA | R23: Persona Jurídica | W23: 0 | Y23: 1 | Z23: 232065000 | AA23: 232065000 | AB23: 232065000 | AC23: 2022-03-14 | AD23: 2022-03-14 | AE23: 2022-08-31 | AF23: 150 | AM23: Terminado | AN23: 1
A24: FDLUSA-CPS-303-2021 | B24: 2021 | C24: FDLUSA-SASI-004-2021 | D24: https://community.secop.gov.co/Public/Tendering/OpportunityDetail/Index?noticeUID=CO1.NTC.2129441&isFromPublicArea=True&isModal=False | E24: Suministro | F24: Selección abreviada | G24: Subasta inversa | H24: CONTRATAR A MONTO AGOTABLE EL SUMINISTRO DE INSUMOS, REFRIGERIOS Y ELEMENTOS DE MERCHANDISING REQUERIDOS PARA EL DESARROLLO LOGISTICO Y OPERATIVO DEL PROGRAMA “RETO LOCAL JOVENES Y ENTORNOS SEGUROS” EN LA LOCALIDAD DE USAQUÉN | I24: Inversión | J24: UN NUEVO CONTRATO SOCIAL Y AMBIENTAL PARA LA BOGOTA DEL SIGLO XXI | K24: 1 | L24: Subsidios y transferencias para la equidad | M24: Propósito 1: Hacer un nuevo contrato social para incrementar la inclusión social, productiva y política | N24: O23011601010000001960 | O24: 8 | P24: 900572437 | Q24: FUNDACIÓN PAÍS HUMANO | R24: Persona Jurídica | W24: 0 | Y24: 1 | Z24: 20000000 | AA24: 20000000 | AB24: 19997841 | AC24: 2022-06-28 | AD24: 2022-06-28 | AE24: 2022-11-30 | AF24: 150 | AM24: Terminado | AN24: 0.99989205
A25: FDLUSA-CPS-332-2021 | B25: 2021 | C25: FDLUSA-CPS-332-2021 | D25: https://community.secop.gov.co/Public/Tendering/OpportunityDetail/Index?noticeUID=CO1.NTC.2220031&isFromPublicArea=True&isModal=False | E25: Contratos de prestación de servicios profesionales y de apoyo a la gestión | F25: Contratación directa | G25: Prestación de servicios profesionales y de apoyo a la gestión, o para la ejecución de trabajos artísticos que sólo puedan encomendarse a determinadas personas naturales | H25: PRESTAR SERVICIOS DE APOYO A LA GESTIÓN PARA EL SEGUIMIENTO DEL CUMPLIMIENTO DE LOS PROCEDIMIENTOS ADMINISTRATIVOS, OPERATIVOS Y TÉCNICOS DEL PROYECTO RETO LOCAL Y LOS ASOCIADOS A LA INCLUSIÓN SOCIAL Y SEGURIDAD ECONÓMICA EN LA LOCALIDAD DE USAQUÉN. | I25: Inversión | J25: UN NUEVO CONTRATO SOCIAL Y AMBIENTAL PARA LA BOGOTA DEL SIGLO XXI | K25: 1 | L25: Subsidios y transferencias para la equidad | M25: Propósito 1: Hacer un nuevo contrato social para incrementar la inclusión social, productiva y política | N25: O23011601010000001960 | O25: 1 | P25: 1033689146 | Q25: LUISA FERNANDA PAEZ CARO | R25: Persona Natural | W25: 0 | Y25: 1 | Z25: 10575244 | AA25: 10575244 | AB25: 10575244 | AC25: 2022-05-13 | AD25: 2022-05-13 | AE25: 2022-11-02 | AF25: 180 | AM25: Terminado | AN25: 1
A26: FDLUSA-CPS-333-2021 | B26: 2021 | C26: FDLUSA-CPS-333-2021 | D26: https://community.secop.gov.co/Public/Tendering/OpportunityDetail/Index?noticeUID=CO1.NTC.2217716&isFromPublicArea=True&isModal=False | E26: Contratos de prestación de servicios profesionales y de apoyo a la gestión | F26: Contratación directa | G26: Prestación de servicios profesionales y de apoyo a la gestión, o para la ejecución de trabajos artísticos que sólo puedan encomendarse a determinadas personas naturales | H26: PRESTAR SERVICIOS DE APOYO A LA GESTIÓN PARA EL SEGUIMIENTO DEL CUMPLIMIENTO DE LOS PROCEDIMIENTOS ADMINISTRATIVOS, OPERATIVOS Y TÉCNICOS DEL PROYECTO RETO LOCAL Y LOS ASOCIADOS A LA INCLUSIÓN SOCIAL Y SEGURIDAD ECONÓMICA EN LA LOCALIDAD DE USAQUÉN. | I26: Inversión | J26: UN NUEVO CONTRATO SOCIAL Y AMBIENTAL PARA LA BOGOTA DEL SIGLO XXI | K26: 1 | L26: Subsidios y transferencias para la equidad | M26: Propósito 1: Hacer un nuevo contrato social para incrementar la inclusión social, productiva y política | N26: O23011601010000001960 | O26: 1 | P26: 1020464156 | Q26: GERALDINE STEPHANNY CABEZAS PALACIOS | R26: Persona Natural | W26: 0 | Y26: 1 | Z26: 10575244 | AA26: 10575244 | AB26: 10575244 | AC26: 2022-05-13 | AD26: 2022-05-13 | AE26: 2022-11-02 | AF26: 180 | AM26: Terminado | AN26: 1
A27: FDLUSA-CPS-358-2021 | B27: 2021 | C27: FDLUSA-CPS-358-2021 | D27: https://community.secop.gov.co/Public/Tendering/OpportunityDetail/Index?noticeUID=CO1.NTC.2247933&isFromPublicArea=True&isModal=False | E27: Contratos de prestación de servicios profesionales y de apoyo a la gestión | F27: Contratación directa | G27: Prestación de servicios profesionales y de apoyo a la gestión, o para la ejecución de trabajos artísticos que sólo puedan encomendarse a determinadas personas naturales | H27: PRESTAR LOS SERVICIOS PROFESIONALES PARA LA OPERACIÓN, SEGUIMIENTO Y CUMPLIMIENTO DE LOS PROCEDIMIENTOS ADMINISTRATIVOS, OPERATIVOS Y TÉCNICOS DEL PROYECTO RETO LOCAL Y LOS ASOCIADOS A LA INCLUSIÓN SOCIAL Y SEGURIDAD ECONÓMICA EN LA LOCALIDAD DE USAQUÉN. | I27: Inversión | J27: UN NUEVO CONTRATO SOCIAL Y AMBIENTAL PARA LA BOGOTA DEL SIGLO XXI | K27: 1 | L27: Subsidios y transferencias para la equidad | M27: Propósito 1: Hacer un nuevo contrato social para incrementar la inclusión social, productiva y política | N27: O23011601010000001960 | O27: 1 | P27: 1136886941 | Q27: JIREL MAGDIEL MODESTO GONZALEZ | R27: Persona Natural | W27: 0 | Y27: 1 | Z27: 18000000 | AA27: 18000000 | AB27: 18000000 | AC27: 2022-05-13 | AD27: 2022-05-13 | AE27: 2022-11-14 | AF27: 180 | AM27: Terminado | AN27: 1
A28: FDLUSA- CS-001-2022 | B28: 2022 | C28: ORDEN DE COMPRA 84058 | D28: https://colombiacompra.gov.co/tienda-virtual-del-estado-colombiano/ordenes-compra/84058 | E28: Suministro | F28: Selección abreviada | G28: Acuerdo marco de precios | H28: SUMINISTRO DE COMBUSTIBLE PARA LOS VEHÍCULOS DE PROPIEDAD DEL FONDO DE DESARROLLO LOCAL DE USAQUÉN | I28: Funcionamiento | J28: UN NUEVO CONTRATO SOCIAL Y AMBIENTAL PARA LA BOGOTA DEL SIGLO XXI | K28: No aplica | L28: NO APLICA | M28: NO APLICA | N28: FUNCIONAMIENTO | O28: 1 | P28: 830095213 | Q28: ORGANIZACION TERPEL S A | R28: Persona Jurídica | W28: 12000000 | Y28: 1 | Z28: 6192330 | AA28: 18192330 | AB28: 13049256 | AC28: 2022-01-05 | AD28: 2022-01-05 | AE28: 2022-11-04 | AF28: 300 | AM28: Terminado | AN28: 0.7172943763
A29: FDLUSA- CS-001-2022 | B29: 2022 | C29: ORDEN DE COMPRA 84058 | D29: https://colombiacompra.gov.co/tienda-virtual-del-estado-colombiano/ordenes-compra/84058 | E29: Suministro | F29: Selección abreviada | G29: Acuerdo marco de precios | H29: SUMINISTRO DE COMBUSTIBLE PARA LOS VEHÍCULOS DE PROPIEDAD DEL FONDO DE DESARROLLO LOCAL DE USAQUÉN | I29: Funcionamiento | J29: UN NUEVO CONTRATO SOCIAL Y AMBIENTAL PARA LA BOGOTA DEL SIGLO XXI | K29: No aplica | L29: NO APLICA | M29: NO APLICA | N29: FUNCIONAMIENTO | O29: 1 | P29: 830095213 | Q29: ORGANIZACION TERPEL S A | R29: Persona Jurídica | W29: 12000000 | Y29: 1 | Z29: 1109256 | AA29: 13109256 | AB29: 10062988 | AC29: 2022-01-05 | AD29: 2022-01-05 | AE29: 2022-11-04 | AF29: 300 | AM29: Terminado | AN29: 0.7676246463
A30: FDLUSA-CPS-001-2022 | B30: 2022 | C30: FDLUSA-CPS-001-2022 | D30: https://community.secop.gov.co/Public/Tendering/OpportunityDetail/Index?noticeUID=CO1.NTC.2559173&isFromPublicArea=True&isModal=False | E30: Contratos de prestación de servicios profesionales y de apoyo a la gestión | F30: Contratación directa | G30: Prestación de servicios profesionales y de apoyo a la gestión, o para la ejecución de trabajos artísticos que sólo puedan encomendarse a determinadas personas naturales | H30: PRESTAR LOS SERVICIOS PROFESIONALES PARA LA OPERACIÓN, SEGUIMIENTO Y CUMPLIMIENTO DE LOS PROCESOS Y PROCEDIMIENTOS DEL SERVICIO APOYO ECONÓMICO TIPO C, REQUERIDOS PARA EL OPORTUNO Y ADECUADO REGISTRO, CRUCE Y REPORTE DE LOS DATOS EN EL SISTEMA MISIONAL - SIRBE, QUE CONTRIBUYAN A LA GARANTÍA DE LOS DERECHOS DE LA POBLACIÓN MAYOR EN EL MARCO DE LA POLÍTICA PÚBLICA SOCIAL PARA EL ENVEJECIMIENTO Y LA VEJEZ EN EL DISTRITO CAPITAL A CARGO DE LA ALCALDÍA LOCAL DE USAQUÉN | I30: Inversión | J30: UN NUEVO CONTRATO SOCIAL Y AMBIENTAL PARA LA BOGOTA DEL SIGLO XXI | K30: 1 | L30: Subsidios y transferencias para la equidad | M30: Propósito 1: Hacer un nuevo contrato social para incrementar la inclusión social, productiva y política | N30: O23011601010000001960 | O30: 1 | P30: 1020722080 | Q30: CAROLINA OLIVEROS TIRADO | R30: Persona Natural | W30: 53159670 | Y30: 1 | Z30: 3081720 | AA30: 56241390 | AB30: 47766660 | AC30: 2022-01-14 | AD30: 2022-01-21 | AE30: 2023-01-25 | AF30: 345 | AG30: 1 | AH30: 20 | AM30: En ejecucion | AN30: 0.8493150685
A31: FDLUSA-CPS-002-2022 | B31: 2022 | C31: FDLUSA-CPS-002-2022 | D31: https://community.secop.gov.co/Public/Tendering/OpportunityDetail/Index?noticeUID=CO1.NTC.2534879&isFromPublicArea=True&isModal=False | E31: Contratos de prestación de servicios profesionales y de apoyo a la gestión | F31: Contratación directa | G31: Prestación de servicios profesionales y de apoyo a la gestión, o para la ejecución de trabajos artísticos que sólo puedan encomendarse a determinadas personas naturales | H31: PRESTAR SERVICIOS PROFESIONALES ESPECIALIZADOS PARA EL APOYO EN LA FORMULACIÓN, ARTICULACIÓN Y SEGUIMIENTO DE ESTRATEGIAS QUE FORTALEZCAN LA PARTICIPACIÓN CIUDADANA Y FACILITEN EL CUMPLIMIENTO DE LAS METAS RELACIONADAS AL PLAN DE DESARROLLO LOCAL. | I31: Inversión | J31: UN NUEVO CONTRATO SOCIAL Y AMBIENTAL PARA LA BOGOTA DEL SIGLO XXI | K31: 57 | L31: Gestión pública local | M31: Propósito 5: Construir Bogotá - Región con gobierno abierto, transparente y ciudadanía consciente | N31: O23011605570000001949 | O31: 1 | P31: 1020720998 | Q31: SERGIO CARDONA CORREA | R31: Persona Natural | W31: 67500000 | Y31: 1 | Z31: 26250000 | AA31: 93750000 | AB31: 79250000 | AC31: 2022-01-12 | AD31: 2022-01-14 | AE31: 2023-01-28 | AF31: 270 | AG31: 1 | AH31: 105 | AM31: En ejecucion | AN31: 0.8453333333
A32: FDLUSA-CPS-003-2022 | B32: 2022 | C32: FDLUSA-CPS-003-2022 | D32: https://community.secop.gov.co/Public/Tendering/OpportunityDetail/Index?noticeUID=CO1.NTC.2549961&isFromPublicArea=True&isModal=False | E32: Contratos de prestación de servicios profesionales y de apoyo a la gestión | F32: Contratación directa | G32: Prestación de servicios profesionales y de apoyo a la gestión, o para la ejecución de trabajos artísticos que sólo puedan encomendarse a determinadas personas naturales | H32: PRESTAR LOS SERVICIOS PROFESIONALES PARA LA OPERACIÓN, PRESTACIÓN, SEGUIMIENTO Y CUMPLIMIENTO DE LOS PROCEDIMIENTOS ADMINISTRATIVOS, OPERATIVOS Y PROGRAMÁTICOS DEL SERVICIO APOYO ECONÓMICO TIPO C, QUE CONTRIBUYAN A LA GARANTÍA DE LOS DERECHOS DE LA POBLACIÓN MAYOR EN EL MARCO DE LA POLÍTICA PÚBLICA SOCIAL PARA EL ENVEJECIMIENTO Y LA VEJEZ EN EL DISTRITO CAPITAL A CARGO DE LA ALCALDÍA LOCAL DE USAQUÉN | I32: Inversión | J32: UN NUEVO CONTRATO SOCIAL Y AMBIENTAL PARA LA BOGOTA DEL SIGLO XXI | K32: 1 | L32: Subsidios y transferencias para la equidad | M32: Propósito 1: Hacer un nuevo contrato social para incrementar la inclusión social, productiva y política | N32: O23011601010000001960 | O32: 1 | P32: 79160113 | Q32: FERNANDO MARTINEZ NARANJO | R32: Persona Natural | W32: 41603220 | Y32: 1 | Z32: 9245160 | AA32: 50848380 | AB32: 48074832 | AC32: 2022-01-14 | AD32: 2022-01-19 | AE32: 2022-12-18 | AF32: 270 | AG32: 1 | AH32: 60 | AM32: Terminado | AN32: 0.9454545455
A33: FDLUSA-CPS-004-2022 | B33: 2022 | C33: FDLUSA-CPS-004-2022 | D33: https://community.secop.gov.co/Public/Tendering/OpportunityDetail/Index?noticeUID=CO1.NTC.2610148&isFromPublicArea=True&isModal=False | E33: Contratos de prestación de servicios profesionales y de apoyo a la gestión | F33: Contratación directa | G33: Prestación de servicios profesionales y de apoyo a la gestión, o para la ejecución de trabajos artísticos que sólo puedan encomendarse a determinadas personas naturales | H33: PRESTAR LOS SERVICIOS PROFESIONALES PARA LA OPERACIÓN, PRESTACIÓN, SEGUIMIENTO Y CUMPLIMIENTO DE LOS PROCEDIMIENTOS ADMINISTRATIVOS, OPERATIVOS Y PROGRAMÁTICOS DEL SERVICIO APOYO ECONÓMICO TIPO C, QUE CONTRIBUYAN A LA GARANTÍA DE LOS DERECHOS DE LA POBLACIÓN MAYOR EN EL MARCO DE LA POLÍTICA PÚBLICA SOCIAL PARA EL ENVEJECIMIENTO Y LA VEJEZ EN EL DISTRITO CAPITAL A CARGO DE LA ALCALDÍA LOCAL DE USAQUÉN | I33: Inversión | J33: UN NUEVO CONTRATO SOCIAL Y AMBIENTAL PARA LA BOGOTA DEL SIGLO XXI | K33: 1 | L33: Subsidios y transferencias para la equidad | M33: Propósito 1: Hacer un nuevo contrato social para incrementar la inclusión social, productiva y política | N33: O23011601010000001960 | O33: 1 | P33: 1026274745 | Q33: JENNIFER CAROLINA GERENA ORTIZ | R33: Persona Natural | W33: 41603220 | Y33: 1 | Z33: 11556450 | AA33: 53159670 | AB33: 47304402 | AC33: 2022-01-19 | AD33: 2022-01-24 | AE33: 2023-01-08 | AF33: 270 | AG33: 1 | AH33: 75 | AM33: En ejecucion | AN33: 0.8898550725
A34: FDLUSA-CPS-005-2022 | B34: 2022 | C34: FDLUSA-CPS-005-2022 | D34: https://community.secop.gov.co/Public/Tendering/OpportunityDetail/Index?noticeUID=CO1.NTC.2550092&isFromPublicArea=True&isModal=False | E34: Contratos de prestación de servicios profesionales y de apoyo a la gestión | F34: Contratación directa | G34: Prestación de servicios profesionales y de apoyo a la gestión, o para la ejecución de trabajos artísticos que sólo puedan encomendarse a determinadas personas naturales | H34: PRESTAR LOS SERVICIOS DE ASISTENCIA Y APOYO PARA LA OPERACIÓN, SEGUIMIENTO Y CUMPLIMIENTO DE LOS PROCESOS Y PROCEDIMIENTOS DEL SERVICIO APOYOS ECONÓMICOS TIPO C, REQUERIDOS PARA EL OPORTUNO Y ADECUADO REGISTRO, CRUCE Y REPORTE DE LOS DATOS EN EL SISTEMA MISIONAL-SIRBE, QUE CONTRIBUYAN A LA GARANTÍA DE LOS DERECHOS DE LA POBLACIÓN MAYOR EN EL MARCO DE LA POLÍTICA PÚBLICA SOCIAL PARA EL ENVEJECIMIENTO Y LA VEJEZ EN EL DISTRITO CAPITAL A CARGO DE LA ALCALDÍA LOCAL | I34: Inversión | J34: UN NUEVO CONTRATO SOCIAL Y AMBIENTAL PARA LA BOGOTA DEL SIGLO XXI | K34: 1 | L34: Subsidios y transferencias para la equidad | M34: Propósito 1: Hacer un nuevo contrato social para incrementar la inclusión social, productiva y política | N34: O23011601010000001960 | O34: 1 | P34: 1001217210 | Q34: MAIRA ALEJANDRA PAEZ MARTINEZ | R34: Persona Natural | W34: 31359822 | AA34: 31359822 | AB34: 27905696 | AC34: 2022-01-21 | AD34: 2022-01-24 | AE34: 2023-01-08 | AF34: 345 | AG34: 1 | AH34: 1 | AM34: En ejecucion | AN34: 0.8898550508
A35: FDLUSA-CPS-006-2022 | B35: 2022 | C35: FDLUSA-CPS-006-2022 | D35: https://community.secop.gov.co/Public/Tendering/OpportunityDetail/Index?noticeUID=CO1.NTC.2610028&isFromPublicArea=True&isModal=False | E35: Contratos de prestación de servicios profesionales y de apoyo a la gestión | F35: Contratación directa | G35: Prestación de servicios profesionales y de apoyo a la gestión, o para la ejecución de trabajos artísticos que sólo puedan encomendarse a determinadas personas naturales | H35: PRESTAR LOS SERVICIOS PROFESIONALES A LA ALCALDÍA LOCAL DE USAQUÉN REALIZANDO EL APOYO ADMINISTRATIVO PARA LA PLANEACIÓN, CONTROL Y SEGUIMIENTO FINANCIERO DE LOS PROCESOS, PROGRAMAS Y PROYECTOS DE INVERSIÓN DEL PLAN DE DESARROLLO LOCAL DE LA ALCALDÍA LOCAL, ASÍ COMO PARTICIPAR CUANDO SEA REQUERIDO EN ACCIONES FORMULACIÓN Y SEGUIMIENTO DE LOS PROYECTOS DE INVERSIÓN LOCAL DEL PLAN DE DESARROLLO LOCAL | I35: Inversión | J35: UN NUEVO CONTRATO SOCIAL Y AMBIENTAL PARA LA BOGOTA DEL SIGLO XXI | K35: 1 | L35: Subsidios y transferencias para la equidad | M35: Propósito 1: Hacer un nuevo contrato social para incrementar la inclusión social, productiva y política | N35: O23011601010000001960 | O35: 1 | P35: 80513697 | Q35: RENE MILLAN PERALTA | R35: Persona Natural | W35: 30000000 | AA35: 30000000 | AB35: 30000000 | AC35: 2022-01-19 | AD35: 2022-02-01 | AE35: 2022-07-31 | AF35: 180 | AI35: 1114812799 | AJ35: OSCAR EDUARDO ESCANDON | AK35: 2022-06-07 | AL35: 9000000 | AM35: Terminado | AN35: 1
A36: FDLUSA-CPS-007-2022 | B36: 2022 | C36: FDLUSA-CPS-007-2022 | D36: https://community.secop.gov.co/Public/Tendering/OpportunityDetail/Index?noticeUID=CO1.NTC.2550834&isFromPublicArea=True&isModal=False | E36: Contratos de prestación de servicios profesionales y de apoyo a la gestión | F36: Contratación directa | G36: Prestación de servicios profesionales y de apoyo a la gestión, o para la ejecución de trabajos artísticos que sólo puedan encomendarse a determinadas personas naturales | H36: PRESTAR LOS SERVICIOS PROFESIONALES AFINES AL TRABAJO SOCIAL AL FONDO DE DESARROLLO LOCAL PARA EL DESARROLLO DE TEMAS, EJECUCIÓN Y CUMPLIMIENTO DE LOS PROCEDIMIENTOS ADMINISTRATIVOS, OPERATIVOS Y TÉCNICOS DEL PROYECTO 1960 INTEGRACIÓN ECONÓMICA Y SOCIAL DE USAQUÉN | I36: Inversión | J36: UN NUEVO CONTRATO SOCIAL Y AMBIENTAL PARA LA BOGOTA DEL SIGLO XXI | K36: 1 | L36: Subsidios y transferencias para la equidad | M36: Propósito 1: Hacer un nuevo contrato social para incrementar la inclusión social, productiva y política | N36: O23011601010000001960 | O36: 1 | P36: 1073236424 | Q36: DANNA JINETH TOLOZA ORDOÑEZ | R36: Persona Natural | W36: 48000000 | AA36: 48000000 | AB36: 48000000 | AC36: 2022-01-14 | AD36: 2022-01-24 | AE36: 2022-09-23 | AF36: 240 | AM36: Terminado | AN36: 1
A37: FDLUSA-CPS-008-2022 | B37: 2022 | C37: FDLUSA-CPS-008-2022 | D37: https://community.secop.gov.co/Public/Tendering/OpportunityDetail/Index?noticeUID=CO1.NTC.2555937&isFromPublicArea=True&isModal=False | E37: Contratos de prestación de servicios profesionales y de apoyo a la gestión | F37: Contratación directa | G37: Prestación de servicios profesionales y de apoyo a la gestión, o para la ejecución de trabajos artísticos que sólo puedan encomendarse a determinadas personas naturales | H37: PRESTAR LOS SERVICIOS PROFESIONALES PARA LA OPERACIÓN, SEGUIMIENTO Y APOYO PARA EL CUMPLIMIENTO DE LOS PROCESOS OPERATIVOS Y PROGRAMATICOS DEL SERVICIO DE IDENTIFICAR, CARACTERIZAR Y ATENDER A PERSONAS Y/O FAMILIAS-HOGARES, QUE RECONOZCAN Y FORTALEZCAN LAS ACCIONES DE CUIDADO EN EMERGENCIAS SOCIALES, SANITARIAS, NATURALES, ANTRÓPICAS Y DE VULNERABILIDAD INMINENTE EN EL DISTRITO CAPITAL PARA EL PROYECTO 1960 "INTEGRACIÓN ECONÓMICA Y SOCIAL DE USAQUÉN | I37: Inversión | J37: UN NUEVO CONTRATO SOCIAL Y AMBIENTAL PARA LA BOGOTA DEL SIGLO XXI | K37: 1 | L37: Subsidios y transferencias para la equidad | M37: Propósito 1: Hacer un nuevo contrato social para incrementar la inclusión social, productiva y política | N37: O23011601010000001960 | O37: 1 | P37: 1020777927 | Q37: ROSAURA CERVANTES RODELO | R37: Persona Natural | W37: 41603220 | Y37: 1 | Z37: 11556450 | AA37: 53159670 | AB37: 48074832 | AC37: 2022-01-14 | AD37: 2022-01-19 | AE37: 2023-01-03 | AF37: 270 | AG37: 1 | AH37: 75 | AI37: 1032502808 | AJ37: MELISA LOPEZ MORENO | AK37: 2022-10-18 | AL37: 14329998 | AM37: En ejecucion | AN37: 0.9043478261
A38: FDLUSA-CPS-009-2022 | B38: 2022 | C38: FDLUSA-CPS-009-2022 | D38: https://community.secop.gov.co/Public/Tendering/OpportunityDetail/Index?noticeUID=CO1.NTC.2629807&isFromPublicArea=True&isModal=False | E38: Contratos de prestación de servicios profesionales y de apoyo a la gestión | F38: Contratación directa | G38: Prestación de servicios profesionales y de apoyo a la gestión, o para la ejecución de trabajos artísticos que sólo puedan encomendarse a determinadas personas naturales | H38: PRESTAR LOS SERVICIOS PROFESIONALES PARA LA OPERACIÓN, SEGUIMIENTO Y APOYO PARA EL CUMPLIMIENTO DE LOS PROCESOS OPERATIVOS Y PROGRAMATICOS DEL SERVICIO DE IDENTIFICAR, CARACTERIZAR Y ATENDER A PERSONAS Y/O FAMILIAS-HOGARES, QUE RECONOZCAN Y FORTALEZCAN LAS ACCIONES DE CUIDADO EN EMERGENCIAS SOCIALES, SANITARIAS, NATURALES, ANTRÓPICAS Y DE VULNERABILIDAD INMINENTE EN EL DISTRITO CAPITAL PARA EL PROYECTO 1960 "INTEGRACIÓN ECONÓMICA Y SOCIAL DE USAQUÉN | I38: Inversión | J38: UN NUEVO CONTRATO SOCIAL Y AMBIENTAL PARA LA BOGOTA DEL SIGLO XXI | K38: 1 | L38: Subsidios y transferencias para la equidad | M38: Propósito 1: Hacer un nuevo contrato social para incrementar la inclusión social, productiva y política | N38: O23011601010000001960 | O38: 1 | P38: 1128483858 | Q38: LAURA CATALINA PANIAGUA VALENCIA | R38: Persona Natural | W38: 27735480 | AA38: 27735480 | AB38: 27735480 | AC38: 2022-01-21 | AD38: 2022-01-26 | AE38: 2022-07-25 | AF38: 180 | AM38: Terminado | AN38: 1
A39: FDLUSA-CPS-010-2022 | B39: 2022 | C39: FDLUSA-CPS-010-2022 | D39: https://community.secop.gov.co/Public/Tendering/OpportunityDetail/Index?noticeUID=CO1.NTC.2556864&isFromPublicArea=True&isModal=False | E39: Contratos de prestación de servicios profesionales y de apoyo a la gestión | F39: Contratación directa | G39: Prestación de servicios profesionales y de apoyo a la gestión, o para la ejecución de trabajos artísticos que sólo puedan encomendarse a determinadas personas naturales | H39: PRESTAR SERVICIOS DE APOYO DE CARÁCTER ADMINISTRATIVO Y ASISTENCIAL EN EL PROYECTO 1960 INTEGRACIÓN ECONÓMICA Y SOCIAL DE USAQUÉN | I39: Inversión | J39: UN NUEVO CONTRATO SOCIAL Y AMBIENTAL PARA LA BOGOTA DEL SIGLO XXI | K39: 1 | L39: Subsidios y transferencias para la equidad | M39: Propósito 1: Hacer un nuevo contrato social para incrementar la inclusión social, productiva y política | N39: O23011601010000001960 | O39: 1 | P39: 1056506455 | Q39: VIVIANA YURLEY CONGO PERALTA | R39: Persona Natural | W39: 16361646 | AA39: 16361646 | AB39: 16361646 | AC39: 2022-01-14 | AD39: 2022-01-19 | AE39: 2022-07-18 | AF39: 180 | AM39: Terminado | AN39: 1
A40: FDLUSA-CPS-011-2022 | B40: 2022 | C40: FDLUSA-CPS-011-2022 | D40: https://community.secop.gov.co/Public/Tendering/OpportunityDetail/Index?noticeUID=CO1.NTC.2551347&isFromPublicArea=True&isModal=False | E40: Contratos de prestación de servicios profesionales y de apoyo a la gestión | F40: Contratación directa | G40: Prestación de servicios profesionales y de apoyo a la gestión, o para la ejecución de trabajos artísticos que sólo puedan encomendarse a determinadas personas naturales | H40: PRESTAR LOS SERVICIOS PROFESIONALES COMO ABOGADO PARA APOYAR JURÍDICAMENTE EL DESARROLLO DE LOS PROCESOS CONTRACTUALES Y ADMINISTRATIVOS DEL FONDO DE DESARROLLO LOCAL DE USAQUÉN, PARA SU DEBIDO FUNCIONAMIENTO, ACORDE AL PROYECTO DE INVERSION | I40: Inversión | J40: UN NUEVO CONTRATO SOCIAL Y AMBIENTAL PARA LA BOGOTA DEL SIGLO XXI | K40: 1 | L40: Subsidios y transferencias para la equidad | M40: Propósito 1: Hacer un nuevo contrato social para incrementar la inclusión social, productiva y política | N40: O23011601010000001960 | O40: 1 | P40: 1121893998 | Q40: JAZMIN LIZZETT EGEA SAAB | R40: Persona Natural | W40: 58500000 | Y40: 1 | Z40: 22750000 | AA40: 81250000 | AB40: 67816667 | AC40: 2022-01-14 | AD40: 2022-01-18 | AE40: 2023-02-02 | AF40: 270 | AG40: 1 | AH40: 75 | AM40: En ejecucion | AN40: 0.8346666708
A41: FDLUSA-CPS-012-2022 | B41: 2022 | C41: FDLUSA-CPS-012-2022 | D41: https://community.secop.gov.co/Public/Tendering/OpportunityDetail/Index?noticeUID=CO1.NTC.2674346&isFromPublicArea=True&isModal=False | E41: Contratos de prestación de servicios profesionales y de apoyo a la gestión | F41: Contratación directa | G41: Prestación de servicios profesionales y de apoyo a la gestión, o para la ejecución de trabajos artísticos que sólo puedan encomendarse a determinadas personas naturales | H41: PRESTAR SERVICIOS PROFESIONALES A LA ALCALDÍA LOCAL DE USAQUÉN, PARA APOYAR Y ACOMPAÑAR LA FORMULACIÓN Y EJECUCIÓN DE LOS PROGRAMAS Y PROYECTOS EDUCACIÓN PARA PROMOVER EL ACCESO Y PERMANENCIA DE LOS NIÑOS, NIÑAS, ADOLESCENTES Y JÓVENES DE LA LOCALIDAD DE USAQUÉN AL SISTEMA EDUCATIVO - META PDL BENEFICIAR 250 PERSONAS CON APOYOS A LA EDUCACIÓN SUPERIOR | I41: Inversión | J41: UN NUEVO CONTRATO SOCIAL Y AMBIENTAL PARA LA BOGOTA DEL SIGLO XXI | K41: 17 | L41: Jóvenes con capacidades: Proyecto de vida para la ciudadanía, la innovación y el trabajo del siglo XXI | M41: Propósito 1: Hacer un nuevo contrato social para incrementar la inclusión social, productiva y política | N41: O23011601170000001687 | O41: 1 | P41: 1015409161 | Q41: IVAN DARIO RODRIGUEZ BUSTAMANTE | R41: Persona Natural | W41: 71500000 | Y41: 1 | Z41: 6500000 | AA41: 78000000 | AB41: 66083333 | AC41: 2022-01-23 | AD41: 2022-01-26 | AE41: 2023-01-25 | AF41: 330 | AG41: 1 | AH41: 60 | AM41: En ejecucion | AN41: 0.8472222179
A42: FDLUSA-CPS-013-2022 | B42: 2022 | C42: FDLUSA-CPS-013-2022 | D42: https://community.secop.gov.co/Public/Tendering/OpportunityDetail/Index?noticeUID=CO1.NTC.2580262&isFromPublicArea=True&isModal=False | E42: Contratos de prestación de servicios profesionales y de apoyo a la gestión | F42: Contratación directa | G42: Prestación de servicios profesionales y de apoyo a la gestión, o para la ejecución de trabajos artísticos que sólo puedan encomendarse a determinadas personas naturales | H42: PRESTAR SERVICIOS PROFESIONALES A LA ALCALDÍA LOCAL DE USAQUÉN, PARA APOYAR LA COORDINACIÓN, ARTICULACIÓN, FORMULACIÓN E IMPLEMENTACIÓN DE LOS PROYECTOS E INICIATIVAS DE EDUCACIÓN, CON EL FIN DE PROMOVER ACCIONES PARA EL ACCESO Y PERMANENCIA DE JÓVENES DE LA LOCALIDAD DE USAQUÉN AL SISTEMA EDUCATIVO- META PDL BENEFICIAR 250 PERSONAS CON APOYOS A LA EDUCACIÓN SUPERIOR | I42: Inversión | J42: UN NUEVO CONTRATO SOCIAL Y AMBIENTAL PARA LA BOGOTA DEL SIGLO XXI | K42: 17 | L42: Jóvenes con capacidades: Proyecto de vida para la ciudadanía, la innovación y el trabajo del siglo XXI | M42: Propósito 1: Hacer un nuevo contrato social para incrementar la inclusión social, productiva y política | N42: O23011601170000001687 | O42: 1 | P42: 1019007021 | Q42: JUAN PABLO SIERRA FORERO | R42: Persona Natural | W42: 83061993 | X42: -81617437 | AA42: 1444556 | AB42: 1444556 | AC42: 2022-01-17 | AD42: 2022-01-20 | AE42: 2022-12-31 | AF42: 345 | AM42: Terminado | AN42: 1
A43: FDLUSA-CPS-014-2022 | B43: 2022 | C43: FDLUSA-CPS-014-2022 | D43: https://community.secop.gov.co/Public/Tendering/OpportunityDetail/Index?noticeUID=CO1.NTC.2588057&isFromPublicArea=True&isModal=False | E43: Contratos de prestación de servicios profesionales y de apoyo a la gestión | F43: Contratación directa | G43: Prestación de servicios profesionales y de apoyo a la gestión, o para la ejecución de trabajos artísticos que sólo puedan encomendarse a determinadas personas naturales | H43: PRESTAR LOS SERVICIOS PROFESIONALES ESPECIALIZADOS PARA APOYAR EL DISEÑO DE UNA METODOLOGÍA DE CONTROL Y CUMPLIMIENTO, QUE PERMITA AL DESPACHO DEL ALCALDE LOCAL DE USAQUÉN IDENTIFICAR Y PRIORIZAR OBJETIVOS ESTRATÉGICOS, DISEÑAR PLANES DE TRABAJO PARA EL CUMPLIMIENTO DE LOS OBJETIVOS Y HACER SEGUIMIENTO Y CONTROL AL CUMPLIMIENTO DE LOS OBJETIVOS PRIORIZADOS, EN EL MARCO DEL PLAN DE DESARROLLO LOCAL DE USAQUÉN. | I43: Inversión | J43: UN NUEVO CONTRATO SOCIAL Y AMBIENTAL PARA LA BOGOTA DEL SIGLO XXI | K43: 17 | L43: Jóvenes con capacidades: Proyecto de vida para la ciudadanía, la innovación y el trabajo del siglo XXI | M43: Propósito 1: Hacer un nuevo contrato social para incrementar la inclusión social, productiva y política | N43: O23011601170000001687 | O43: 1 | P43: 98663174 | Q43: FRANCISCO JAVIER CARDONA ACOSTA | R43: Persona Natural | W43: 88000000 | Y43: 1 | Z43: 4000000 | AA43: 92000000 | AB43: 82666667 | AC43: 2022-01-18 | AD43: 2022-01-21 | AE43: 2023-01-05 | AF43: 330 | AG43: 1 | AH43: 15 | AM43: En ejecucion | AN43: 0.8985507283
A44: FDLUSA-CPS-015-2022 | B44: 2022 | C44: FDLUSA-CPS-015-2022 | D44: https://community.secop.gov.co/Public/Tendering/OpportunityDetail/Index?noticeUID=CO1.NTC.2605583&isFromPublicArea=True&isModal=False | E44: Contratos de prestación de servicios profesionales y de apoyo a la gestión | F44: Contratación directa | G44: Prestación de servicios profesionales y de apoyo a la gestión, o para la ejecución de trabajos artísticos que sólo puedan encomendarse a determinadas personas naturales | H44: Prestar servicios profesionales para apoyar el Desarrollo de estrategias de promoción de los programas y proyectos en educación, así como apoyar la ejecución y seguimiento del proyecto de inversión en educación superior de la localidad de Usaquén, en aras del cumplimiento de las metas establecidas en el PDL - USAQUÉN REVERDECE 2021-2024: UN NUEVO CONTRATO SOCIAL Y AMBIENTAL PARA USAQUÉN - Meta PDL beneficiar 250 personas con apoyos para la educación superior | I44: Inversión | J44: UN NUEVO CONTRATO SOCIAL Y AMBIENTAL PARA LA BOGOTA DEL SIGLO XXI | K44: 17 | L44: Jóvenes con capacidades: Proyecto de vida para la ciudadanía, la innovación y el trabajo del siglo XXI | M44: Propósito 1: Hacer un nuevo contrato social para incrementar la inclusión social, productiva y política | N44: O23011601170000001687 | O44: 1 | P44: 1032402556 | Q44: DIANA PATRICIA GAITAN URUEÑA | R44: Persona Natural | W44: 57500000 | Y44: 1 | Z44: 5000000 | AA44: 62500000 | AB44: 51166667 | AC44: 2022-01-19 | AD44: 2022-01-24 | AE44: 2023-02-01 | AF44: 345 | AG44: 1 | AH44: 15 | AM44: En ejecucion | AN44: 0.818666672
A45: FDLUSA-CPS-017-2022 | B45: 2022 | C45: FDLUSA-CPS-017-2022 | D45: https://community.secop.gov.co/Public/Tendering/OpportunityDetail/Index?noticeUID=CO1.NTC.2631265&isFromPublicArea=True&isModal=False | E45: Contratos de prestación de servicios profesionales y de apoyo a la gestión | F45: Contratación directa | G45: Prestación de servicios profesionales y de apoyo a la gestión, o para la ejecución de trabajos artísticos que sólo puedan encomendarse a determinadas personas naturales | H45: PRESTAR LOS SERVICIOS PROFESIONALES A LA ALCALDÍA LOCAL DE USAQUÉN EN LA ORGANIZACIÓN, ARTICULACIÓN, ORIENTACIÓN Y SEGUIMIENTO TRANSVERSAL A LOS PROCESOS, PROGRAMAS Y PROYECTOS DE INVERSIÓN DEL PLAN DE DESARROLLO LOCAL PARA GARANTIZAR EL DESARROLLO DE LAS ETAPAS PRECONTRACTUAL, CONTRACTUAL Y POS CONTRACTUAL, CON EL FIN DE QUE ESTOS SE REALICEN CUMPLIENDO CON LOS ELEMENTOS Y ETAPAS DENTRO DE LOS TÉRMINOS, PROCEDIMIENTOS Y NORMATIVIDAD ESTABLECIDA | I45: Inversión | J45: UN NUEVO CONTRATO SOCIAL Y AMBIENTAL PARA LA BOGOTA DEL SIGLO XXI | K45: 17 | L45: Jóvenes con capacidades: Proyecto de vida para la ciudadanía, la innovación y el trabajo del siglo XXI | M45: Propósito 1: Hacer un nuevo contrato social para incrementar la inclusión social, productiva y política | N45: O23011601170000001687 | O45: 1 | P45: 1049643024 | Q45: ANDERSON SMITH REYES RAMIREZ | R45: Persona Natural | W45: 45000000 | Y45: 2 | Z45: 16371506 | AA45: 61371506 | AB45: 51166667 | AC45: 2022-01-21 | AD45: 2022-01-24 | AE45: 2023-02-02 | AF45: 270 | AG45: 2 | AH45: 99 | AM45: En ejecucion | AN45: 0.8337202447
A46: FDLUSA-CPS-018-2022 | B46: 2022 | C46: FDLUSA-CPS-018-2022 | D46: https://community.secop.gov.co/Public/Tendering/OpportunityDetail/Index?noticeUID=CO1.NTC.2620095&isFromPublicArea=True&isModal=False | E46: Contratos de prestación de servicios profesionales y de apoyo a la gestión | F46: Contratación directa | G46: Prestación de servicios profesionales y de apoyo a la gestión, o para la ejecución de trabajos artísticos que sólo puedan encomendarse a determinadas personas naturales | H46: PRESTAR SERVICIOS PROFESIONALES PARA APOYAR LA EJECUCIÓN Y SEGUIMIENTO DEL PROYECTO DE INVERSIÓN ENFOCADO EN EL DESARROLLO INTEGRAL DE LA PRIMERA INFANCIA ESTABLECIDO EN EL PDL - USAQUÉN REVERDECE 2021-2024: UN NUEVO CONTRA-TO SOCIAL Y AMBIENTAL PARA USAQUÉN - META PDL IMPLEMENTAR 12 PROYECTOS PARA EL DESARROLLO INTEGRAL DE LA PRIMERA INFANCIA Y LA RELACIÓN ESCUELA, FAMILIA Y COMUNIDAD | I46: Inversión | J46: UN NUEVO CONTRATO SOCIAL Y AMBIENTAL PARA LA BOGOTA DEL SIGLO XXI | K46: 12 | L46: Educación inicial: Bases sólidas para la vida. | M46: Propósito 1: Hacer un nuevo contrato social para incrementar la inclusión social, productiva y política | N46: O23011601120000001943 | O46: 1 | P46: 1030569086 | Q46: CINDY JHOANA MUÑOZ ORTIZ | R46: Persona Natural | W46: 45000000 | Y46: 2 | Z46: 16655529 | AA46: 61655529 | AB46: 51166667 | AC46: 2022-01-20 | AD46: 2022-01-24 | AE46: 2023-02-02 | AF46: 270 | AG46: 2 | AH46: 99 | AM46: En ejecucion | AN46: 0.8298796204
A47: FDLUSA-CPS-020-2022 | B47: 2022 | C47: FDLUSA-CPS-020-2022 | D47: https://community.secop.gov.co/Public/Tendering/OpportunityDetail/Index?noticeUID=CO1.NTC.2580811&isFromPublicArea=True&isModal=False | E47: Contratos de prestación de servicios profesionales y de apoyo a la gestión | F47: Contratación directa | G47: Prestación de servicios profesionales y de apoyo a la gestión, o para la ejecución de trabajos artísticos que sólo puedan encomendarse a determinadas personas naturales | H47: PRESTAR LOS SERVICIOS PROFESIONALES A LA ALCALDÍA LOCAL DE USAQUÉN EN LA ORGANIZACIÓN, ARTICULACIÓN, ORIENTACIÓN Y SEGUIMIENTO TRANSVERSAL A LOS PROCESOS, PROGRAMAS Y PROYECTOS DE INVERSIÓN DEL PLAN DE DESARROLLO LOCAL PARA GARANTIZAR EL DESARROLLO DE LAS ETAPAS PRECONTRACTUAL, CONTRACTUAL Y POS CONTRACTUAL, CON EL FIN DE QUE ESTOS SE REALICEN CUMPLIENDO CON LOS ELEMENTOS Y ETAPAS DENTRO DE LOS TÉRMINOS, PROCEDIMIENTOS Y NORMATIVIDAD ESTABLECIDA | I47: Inversión | J47: UN NUEVO CONTRATO SOCIAL Y AMBIENTAL PARA LA BOGOTA DEL SIGLO XXI | K47: 6 | L47: Sistema Distrital de Cuidado | M47: Propósito 1: Hacer un nuevo contrato social para incrementar la inclusión social, productiva y política | N47: O23011601060000001941 | O47: 1 | P47: 1036602713 | Q47: ANDREA CAROLINA SANDOVAL RAMOS | R47: Persona Natural | W47: 41603220 | AA47: 41603220 | AB47: 38829672 | AC47: 2022-01-17 | AD47: 2022-01-19 | AE47: 2022-10-18 | AF47: 270 | AM47: Terminado | AN47: 0.9333333333
A48: FDLUSA-CPS-021-2022 | B48: 2022 | C48: FDLUSA-CPS-021-2022 | D48: https://community.secop.gov.co/Public/Tendering/OpportunityDetail/Index?noticeUID=CO1.NTC.2556014&isFromPublicArea=True&isModal=False | E48: Contratos de prestación de servicios profesionales y de apoyo a la gestión | F48: Contratación directa | G48: Prestación de servicios profesionales y de apoyo a la gestión, o para la ejecución de trabajos artísticos que sólo puedan encomendarse a determinadas personas naturales | H48: PRESTAR SERVICIOS PROFESIONALES A LA ALCALDÍA LOCAL DE USAQUÉN APOYANDO LA ORGANIZACIÓN, ARTICULACIÓN, ORIENTACIÓN Y SEGUIMIENTO TRANSVERSAL A LOS PROCESOS, Y PROGRAMAS EL PROYECTO DE INVERSIÓN No. 1941 "REACTIVACIÓN ECONÓMICA POR USAQUÉN" ASÍ COMO APOYAR EL DESARROLLO DE LAS ETAPAS PRECONTRACTUAL, CONTRACTUAL Y POS CONTRACTUAL | I48: Inversión | J48: UN NUEVO CONTRATO SOCIAL Y AMBIENTAL PARA LA BOGOTA DEL SIGLO XXI | K48: 6 | L48: Sistema Distrital de Cuidado | M48: Propósito 1: Hacer un nuevo contrato social para incrementar la inclusión social, productiva y política | N48: O23011601060000001941 | O48: 1 | P48: 1032443029 | Q48: DIEGO ARLEY LIZARAZO LOPEZ | R48: Persona Natural | W48: 69000000 | Y48: 1 | Z48: 4000000 | AA48: 73000000 | AB48: 62000000 | AC48: 2022-01-17 | AD48: 2022-01-21 | AE48: 2023-01-24 | AF48: 345 | AG48: 1 | AH48: 24 | AM48: En ejecucion | AN48: 0.8493150685
A49: FDLUSA-CPS-022-2022 | B49: 2022 | C49: FDLUSA-CPS-022-2022 | D49: https://community.secop.gov.co/Public/Tendering/OpportunityDetail/Index?noticeUID=CO1.NTC.2560485&isFromPublicArea=True&isModal=False | E49: Contratos de prestación de servicios profesionales y de apoyo a la gestión | F49: Contratación directa | G49: Prestación de servicios profesionales y de apoyo a la gestión, o para la ejecución de trabajos artísticos que sólo puedan encomendarse a determinadas personas naturales | H49: PRESTAR LOS SERVICIOS PROFESIONALES A LA ALCALDÍA LOCAL DE USAQUÉN EN LA ORGANIZACIÓN, ARTICULACIÓN, ORIENTACIÓN Y SEGUIMIENTO TRANSVERSAL A LOS PROCESOS, PROGRAMAS Y PROYECTOS DE INVERSIÓN DEL PLAN DE DESARROLLO LOCAL PARA GARANTIZAR EL DESARROLLO DE LAS ETAPAS PRECONTRACTUAL, CONTRACTUAL Y POS CONTRACTUAL, CON EL FIN DE QUE ESTOS SE REALICEN CUMPLIENDO CON LOS ELEMENTOS Y ETAPAS DENTRO DE LOS TÉRMINOS, PROCEDIMIENTOS Y NORMATIVIDAD ESTABLECIDA | I49: Inversión | J49: UN NUEVO CONTRATO SOCIAL Y AMBIENTAL PARA LA BOGOTA DEL SIGLO XXI | K49: 6 | L49: Sistema Distrital de Cuidado | M49: Propósito 1: Hacer un nuevo contrato social para incrementar la inclusión social, productiva y política | N49: O23011601060000001941 | O49: 1 | P49: 1020745594 | Q49: CARLOS ANDRES FAJARDO LANZA | R49: Persona Natural | W49: 27735492 | AA49: 27735492 | AB49: 27735492 | AC49: 2022-01-14 | AD49: 2022-01-18 | AE49: 2022-07-17 | AF49: 180 | AM49: Terminado | AN49: 1
A50: FDLUSA-CPS-023-2022 | B50: 2022 | C50: FDLUSA-CPS-023-2022 | D50: https://community.secop.gov.co/Public/Tendering/OpportunityDetail/Index?noticeUID=CO1.NTC.2576574&isFromPublicArea=True&isModal=False | E50: Contratos de prestación de servicios profesionales y de apoyo a la gestión | F50: Contratación directa | G50: Prestación de servicios profesionales y de apoyo a la gestión, o para la ejecución de trabajos artísticos que sólo puedan encomendarse a determinadas personas naturales | H50: PRESTAR LOS SERVICIOS PROFESIONALES ESPECIALIZADOS A LA ALCALDÍA LOCAL DE USAQUÉN PARA LA ESTRUCTURACIÓN, DESARROLLO Y SEGUIMIENTO DE LAS ACTUACIONES ADMINISTRATIVAS RELACIONADAS CON LOS ASUNTOS JURÍDICOS DE LA CONTRATACIÓN | I50: Inversión | J50: UN NUEVO CONTRATO SOCIAL Y AMBIENTAL PARA LA BOGOTA DEL SIGLO XXI | K50: 6 | L50: Sistema Distrital de Cuidado | M50: Propósito 1: Hacer un nuevo contrato social para incrementar la inclusión social, productiva y política | N50: O23011601060000001941 | O50: 1 | P50: 12491088 | Q50: FRANCISCO IVAN FUENTES CALDERON | R50: Persona Natural | W50: 60000000 | Y50: 1 | Z50: 30000000 | AA50: 90000000 | AB50: 78000000 | AC50: 2022-01-17 | AD50: 2022-01-19 | AE50: 2023-01-18 | AF50: 240 | AG50: 1 | AH50: 120 | AM50: En ejecucion | AN50: 0.8666666667
A51: FDLUSA-CPS-024-2022 | B51: 2022 | C51: FDLUSA-CPS-024-2022 | D51: https://community.secop.gov.co/Public/Tendering/OpportunityDetail/Index?noticeUID=CO1.NTC.2596301&isFromPublicArea=True&isModal=False | E51: Contratos de prestación de servicios profesionales y de apoyo a la gestión | F51: Contratación directa | G51: Prestación de servicios profesionales y de apoyo a la gestión, o para la ejecución de trabajos artísticos que sólo puedan encomendarse a determinadas personas naturales | H51: PRESTAR LOS SERVICIOS DE APOYO TÉCNICO A LA ALCALDÍA LOCAL DE USAQUÉN REALIZANDO EL APOYO ADMINISTRATIVO PARA EL CONTROL Y SEGUIMIENTO DE LOS PROCESOS Y PROGRAMAS DEL PROYECTO 1941 "REACTIVACIÓN ECONÓMICA POR USAQUÉN" ASÍ COMO DE LOS DEMÁS PROGRAMAS Y PROYECTOS DEL PLAN DE DESARROLLO LOCAL DE LA ALCALDÍA LOCAL | I51: Inversión | J51: UN NUEVO CONTRATO SOCIAL Y AMBIENTAL PARA LA BOGOTA DEL SIGLO XXI | K51: 6 | L51: Sistema Distrital de Cuidado | M51: Propósito 1: Hacer un nuevo contrato social para incrementar la inclusión social, productiva y política | N51: O23011601060000001941 | O51: 1 | P51: 1098784173 | Q51: DANIELA CAROLINA SILVA GARCIA | R51: Persona Natural | W51: 51807500 | Y51: 1 | Z51: 1802000 | AA51: 53609500 | AB51: 46101167 | AC51: 2022-01-19 | AD51: 2022-01-24 | AE51: 2023-01-20 | AF51: 345 | AG51: 1 | AH51: 20 | AM51: En ejecucion | AN51: 0.8599439838
A52: FDLUSA-CPS-025-2022 | B52: 2022 | C52: FDLUSA-CPS-025-2022 | D52: https://community.secop.gov.co/Public/Tendering/OpportunityDetail/Index?noticeUID=CO1.NTC.2528685&isFromPublicArea=True&isModal=False | E52: Contratos de prestación de servicios profesionales y de apoyo a la gestión | F52: Contratación directa | G52: Prestación de servicios profesionales y de apoyo a la gestión, o para la ejecución de trabajos artísticos que sólo puedan encomendarse a determinadas personas naturales | H52: PRESTAR LOS SERVICIOS PROFESIONALES A LA ALCALDÍA LOCAL DE USAQUÉN REALIZANDO APOYO Y ACOMPAÑAMIENTO ADMINISTRATIVOS A LAS ACTIVIDADES Y PROGRAMAS DEL PROYECTO 1941. REACTIVACIÓN CONÓMICA POR USAQUÉN META PDL: PROMOVER EN 208 MIPYMES Y/O EMPRENDIMIENTOS LA TRANSFORMACIÓN EMPRESARIAL Y/O PRODUCTIVA | I52: Inversión | J52: UN NUEVO CONTRATO SOCIAL Y AMBIENTAL PARA LA BOGOTA DEL SIGLO XXI | K52: 6 | L52: Sistema Distrital de Cuidado | M52: Propósito 1: Hacer un nuevo contrato social para incrementar la inclusión social, productiva y política | N52: O23011601060000001941 | O52: 1 | P52: 1032440209 | Q52: HAROLD GARZON CORREDOR | R52: Persona Natural | W52: 27735480 | AA52: 27735480 | AB52: 27735480 | AC52: 2022-01-12 | AD52: 2022-01-14 | AE52: 2022-07-13 | AF52: 180 | AM52: Terminado | AN52: 1
A53: FDLUSA-CPS-026-2022 | B53: 2022 | C53: FDLUSA-CPS-026-2022 | D53: https://community.secop.gov.co/Public/Tendering/OpportunityDetail/Index?noticeUID=CO1.NTC.2570849&isFromPublicArea=True&isModal=False | E53: Contratos de prestación de servicios profesionales y de apoyo a la gestión | F53: Contratación directa | G53: Prestación de servicios profesionales y de apoyo a la gestión, o para la ejecución de trabajos artísticos que sólo puedan encomendarse a determinadas personas naturales | H53: PRESTAR LOS SERVICIOS PROFESIONALES A LA ALCALDÍA LOCAL DE USAQUÉN PARA REALIZAR EL ACOMPAÑAMIENTO DE LAS ETAPAS PRECONTRACTUAL, CONTRACTUAL Y POSTCONTRACTUAL DE LOS PROCESOS ADELANTADOS EN EL MARCO DEL PROYECTO 1941 "REACTIVACIÓN ECONÓMICA POR USAQUÉN", ASÍ COMO LAS DEMÁS ACTIVIDADES CONEXAS AL PROYECTO | I53: Inversión | J53: UN NUEVO CONTRATO SOCIAL Y AMBIENTAL PARA LA BOGOTA DEL SIGLO XXI | K53: 6 | L53: Sistema Distrital de Cuidado | M53: Propósito 1: Hacer un nuevo contrato social para incrementar la inclusión social, productiva y política | N53: O23011601060000001941 | O53: 1 | P53: 1032470339 | Q53: JORGE MARIO SANCHEZ CASTILLO | R53: Persona Natural | W53: 27735480 | AA53: 27735480 | AB53: 27735480 | AC53: 2022-01-17 | AD53: 2022-01-20 | AE53: 2022-07-19 | AF53: 180 | AM53: Terminado | AN53: 1
A54: FDLUSA-CPS-027-2022 | B54: 2022 | C54: FDLUSA-CPS-027-2022 | D54: https://community.secop.gov.co/Public/Tendering/OpportunityDetail/Index?noticeUID=CO1.NTC.2543568&isFromPublicArea=True&isModal=False | E54: Contratos de prestación de servicios profesionales y de apoyo a la gestión | F54: Contratación directa | G54: Prestación de servicios profesionales y de apoyo a la gestión, o para la ejecución de trabajos artísticos que sólo puedan encomendarse a determinadas personas naturales | H54: PRESTAR LOS SERVICIOS PROFESIONALES ESPECIALIZADOS A LA ALCALDÍA LOCAL DE USAQUÉN PARA EL DESARROLLO DE LAS ACTUACIONES ADMINISTRATIVAS Y JURIDICAS RELACIONADAS CON LA CONTRATACIÓN DE LA ENTIDAD Y LOS PROYECTOS DE INVERSION | I54: Inversión | J54: UN NUEVO CONTRATO SOCIAL Y AMBIENTAL PARA LA BOGOTA DEL SIGLO XXI | K54: 6 | L54: Sistema Distrital de Cuidado | M54: Propósito 1: Hacer un nuevo contrato social para incrementar la inclusión social, productiva y política | N54: O23011601060000001941 | O54: 1 | P54: 1030629192 | Q54: MARLYN BEATRIZ PRADO SEGURA | R54: Persona Natural | W54: 63000000 | Y54: 1 | Z54: 24500000 | AA54: 87500000 | AB54: 73033333 | AC54: 2022-01-13 | AD54: 2022-01-18 | AE54: 2023-02-02 | AF54: 270 | AG54: 1 | AH54: 105 | AM54: En ejecucion | AN54: 0.8346666629
A55: FDLUSA-CPS-028-2022 | B55: 2022 | C55: FDLUSA-CPS-028-2022 | D55: https://community.secop.gov.co/Public/Tendering/OpportunityDetail/Index?noticeUID=CO1.NTC.2581479&isFromPublicArea=True&isModal=False | E55: Contratos de prestación de servicios profesionales y de apoyo a la gestión | F55: Contratación directa | G55: Prestación de servicios profesionales y de apoyo a la gestión, o para la ejecución de trabajos artísticos que sólo puedan encomendarse a determinadas personas naturales | H55: PRESTAR LOS SERVICIOS PROFESIONALES A LA ALCALDÍA LOCAL DE USAQUÉN PARA EL APOYO EN LA EJECUCIÓN DE LAS ACTIVIDADES NECESARIAS PARA DESARROLLAR EL PROYECTO 1941 "REACTIVACIÓN ECONÓMICA POR USAQUÉN | I55: Inversión | J55: UN NUEVO CONTRATO SOCIAL Y AMBIENTAL PARA LA BOGOTA DEL SIGLO XXI | K55: 6 | L55: Sistema Distrital de Cuidado | M55: Propósito 1: Hacer un nuevo contrato social para incrementar la inclusión social, productiva y política | N55: O23011601060000001941 | O55: 1 | P55: 30579475 | Q55: VIANIS JUDITH FLOREZ RAMOS | R55: Persona Natural | W55: 27735480 | Y55: 1 | Z55: 4622580 | AA55: 32358060 | AB55: 29584512 | AC55: 2022-01-17 | AD55: 2022-01-19 | AE55: 2022-08-18 | AF55: 180 | AG55: 1 | AH55: 30 | AM55: Terminado | AN55: 0.9142857143
A56: FDLUSA-CPS-029-2022 | B56: 2022 | C56: FDLUSA-CPS-029-2022 | D56: https://community.secop.gov.co/Public/Tendering/OpportunityDetail/Index?noticeUID=CO1.NTC.2621150&isFromPublicArea=True&isModal=False | E56: Contratos de prestación de servicios profesionales y de apoyo a la gestión | F56: Contratación directa | G56: Prestación de servicios profesionales y de apoyo a la gestión, o para la ejecución de trabajos artísticos que sólo puedan encomendarse a determinadas personas naturales | H56: PRESTAR SERVICIOS PROFESIONALES A LA ALCALDÍA LOCAL DE USAQUÉN EN LA ORGANIZACIÓN, ARTICULACIÓN, ORIENTACIÓN Y SEGUIMIENTO TRANSVERSAL A LOS PROCESOS, PROGRAMAS Y PROYECTOS DE INVERSIÓN DEL PLAN DE DESARROLLO LOCAL PARA GARANTIZAR EL DESARROLLO DE LAS ETAPAS PRECONTRACTUAL, CONTRACTUAL Y POS CONTRACTUAL, CON EL FIN DE QUE ESTOS SE REALICEN CUMPLIENDO CON LOS ELEMENTOS Y ETAPAS DENTRO DE LOS TÉRMINOS, PROCEDIMIENTOS Y NORMATIVIDAD ESTABLECIDA. | I56: Inversión | J56: UN NUEVO CONTRATO SOCIAL Y AMBIENTAL PARA LA BOGOTA DEL SIGLO XXI | K56: 45 | L56: Espacio público más seguro y construido colectivamente | M56: Propósito 3: Inspirar confianza y legitimidad para vivir sin miedo y ser epicentro de cultura ciudadana, paz y reconciliación | N56: O23011603450000001959 | O56: 1 | P56: 50571363 | Q56: CONSUELO DE JESUS ZULETA GALINDO | R56: Persona Natural | W56: 57500000 | Y56: 2 | Z56: 5000000 | AA56: 62500000 | AB56: 51166667 | AC56: 2022-01-20 | AD56: 2022-01-24 | AE56: 2023-02-08 | AF56: 345 | AG56: 2 | AH56: 30 | AM56: En ejecucion | AN56: 0.818666672
A57: FDLUSA-CPS-030-2022 | B57: 2022 | C57: FDLUSA-CPS-030-2022 | D57: https://community.secop.gov.co/Public/Tendering/OpportunityDetail/Index?noticeUID=CO1.NTC.2660484&isFromPublicArea=True&isModal=False | E57: Contratos de prestación de servicios profesionales y de apoyo a la gestión | F57: Contratación directa | G57: Prestación de servicios profesionales y de apoyo a la gestión, o para la ejecución de trabajos artísticos que sólo puedan encomendarse a determinadas personas naturales | H57: PRESTAR SERVICIOS PROFESIONALES A LA ALCALDÍA LOCAL DE USAQUÉN, PARA EL FORTALECIMIENTO DE LAS DIFERENTES INSTANCIAS LOCALES DE PLANEACIÓN PARTICIPATIVA Y ESPACIOS LOCALES, APOYANDO EN LA FORMULACIÓN DE ESTRATEGIAS QUE PERMITAN Y GARANTICEN UNA AMPLIA PARTICIPACIÓN CIUDADANA | I57: Inversión | J57: UN NUEVO CONTRATO SOCIAL Y AMBIENTAL PARA LA BOGOTA DEL SIGLO XXI | K57: 45 | L57: Espacio público más seguro y construido colectivamente | M57: Propósito 3: Inspirar confianza y legitimidad para vivir sin miedo y ser epicentro de cultura ciudadana, paz y reconciliación | N57: O23011603450000001959 | O57: 1 | P57: 37548495 | Q57: FLOR DE MARIA HERNANDEZ JIMENEZ | R57: Persona Natural | W57: 73700000 | Y57: 2 | Z57: 13400000 | AA57: 87100000 | AB57: =61416667+6700000 -> 68116667 | AC57: 2022-01-22 | AD57: 2022-01-26 | AE57: 2023-02-25 | AF57: 330 | AG57: 2 | AH57: 60 | AM57: En ejecucion | AN57: 0.7820512859
A58: FDLUSA-CPS-031-2022 | B58: 2022 | C58: FDLUSA-CPS-031-2022 | D58: https://community.secop.gov.co/Public/Tendering/OpportunityDetail/Index?noticeUID=CO1.NTC.2594212&isFromPublicArea=True&isModal=False | E58: Contratos de prestación de servicios profesionales y de apoyo a la gestión | F58: Contratación directa | G58: Prestación de servicios profesionales y de apoyo a la gestión, o para la ejecución de trabajos artísticos que sólo puedan encomendarse a determinadas personas naturales | H58: PRESTAR SERVICIOS DE APOYO A LA GESTIÓN A LA ALCALDÍA LOCAL DE USAQUÉN, REALIZANDO LAS ACTIVIDADES ADMINISTRATIVAS Y OPERATIVAS PARA EL FORTALECIMIENTO DE LAS DIFERENTES INSTANCIAS LOCALES DE PLANEACIÓN PARTICIPATIVA Y LA EJECUCIÓN DE ESTRATEGIAS QUE GARANTICEN UNA AMPLIA PARTICIPACIÓN CIUDADANA | I58: Inversión | J58: UN NUEVO CONTRATO SOCIAL Y AMBIENTAL PARA LA BOGOTA DEL SIGLO XXI | K58: 45 | L58: Espacio público más seguro y construido colectivamente | M58: Propósito 3: Inspirar confianza y legitimidad para vivir sin miedo y ser epicentro de cultura ciudadana, paz y reconciliación | N58: O23011603450000001959 | O58: 1 | P58: 1032412772 | Q58: DANIEL ALBERTO JARAMILLO SUAREZ | R58: Persona Natural | W58: 37800000 | Y58: 2 | Z58: 12600000 | AA58: 50400000 | AB58: 43400000 | AC58: 2022-01-18 | AD58: 2022-01-21 | AE58: 2023-01-20 | AF58: 270 | AG58: 2 | AH58: 90 | AM58: En ejecucion | AN58: 0.8611111111
A59: FDLUSA-CPS-032-2022 | B59: 2022 | C59: FDLUSA-CPS-032-2022 | D59: https://community.secop.gov.co/Public/Tendering/OpportunityDetail/Index?noticeUID=CO1.NTC.2595454&isFromPublicArea=True&isModal=False | E59: Contratos de prestación de servicios profesionales y de apoyo a la gestión | F59: Contratación directa | G59: Prestación de servicios profesionales y de apoyo a la gestión, o para la ejecución de trabajos artísticos que sólo puedan encomendarse a determinadas personas naturales | H59: PRESTAR SERVICIOS DE APOYO A LA GESTIÓN A LA ALCALDÍA LOCAL DE USAQUÉN, REALIZANDO LAS ACTIVIDADES ADMINISTRATIVAS, OPERATIVAS Y LOGÍSTICAS PARA LA EJECUCIÓN DE LAS ACTIVIDADES DE PARTICIPACIÓN CIUDADANA | I59: Inversión | J59: UN NUEVO CONTRATO SOCIAL Y AMBIENTAL PARA LA BOGOTA DEL SIGLO XXI | K59: 45 | L59: Espacio público más seguro y construido colectivamente | M59: Propósito 3: Inspirar confianza y legitimidad para vivir sin miedo y ser epicentro de cultura ciudadana, paz y reconciliación | N59: O23011603450000001959 | O59: 1 | P59: 80058498 | Q59: EDWIN ALEXANDER BAQUERO VANEGAS | R59: Persona Natural | W59: 23400000 | AA59: 23400000 | AB59: 23400000 | AC59: 2022-01-18 | AD59: 2022-01-21 | AE59: 2022-07-20 | AF59: 180 | AM59: Terminado | AN59: 1
A60: FDLUSA-CPS-033-2022 | B60: 2022 | C60: FDLUSA-CPS-033-2022 | D60: https://community.secop.gov.co/Public/Tendering/OpportunityDetail/Index?noticeUID=CO1.NTC.2560154&isFromPublicArea=True&isModal=False | E60: Contratos de prestación de servicios profesionales y de apoyo a la gestión | F60: Contratación directa | G60: Prestación de servicios profesionales y de apoyo a la gestión, o para la ejecución de trabajos artísticos que sólo puedan encomendarse a determinadas personas naturales | H60: PRESTAR SERVICIOS PROFESIONALES A LA ALCALDÍA LOCAL DE USAQUÉN PARA APOYAR LA FORMULACIÓN DE ESTRATEGIAS QUE PERMITAN UNA AMPLIA PARTICIPACIÓN CIUDADANA TANTO EN LA FORMULACIÓN COMO EN EL SEGUIMIENTO DEL PLAN DE DESARROLLO LOCAL, EN ACATAMIENTO DE LOS FINES DE LA GESTIÓN INSTITUCIONAL LOCAL | I60: Inversión | J60: UN NUEVO CONTRATO SOCIAL Y AMBIENTAL PARA LA BOGOTA DEL SIGLO XXI | K60: 45 | L60: Espacio público más seguro y construido colectivamente | M60: Propósito 3: Inspirar confianza y legitimidad para vivir sin miedo y ser epicentro de cultura ciudadana, paz y reconciliación | N60: O23011603450000001959 | O60: 1 | P60: 76329104 | Q60: ANDRES JOSE ERAZO MOSQUERA | R60: Persona Natural | W60: 45000000 | Y60: 1 | Z60: 15000000 | AA60: 60000000 | AB60: 52166667 | AC60: 2022-01-14 | AD60: 2022-01-18 | AE60: 2023-01-17 | AF60: 270 | AG60: 1 | AH60: 90 | AM60: En ejecucion | AN60: 0.86944445
A61: FDLUSA-CPS-034-2022 | B61: 2022 | C61: FDLUSA-CPS-034-2022 | D61: https://community.secop.gov.co/Public/Tendering/OpportunityDetail/Index?noticeUID=CO1.NTC.2654922&isFromPublicArea=True&isModal=False | E61: Contratos de prestación de servicios profesionales y de apoyo a la gestión | F61: Contratación directa | G61: Prestación de servicios profesionales y de apoyo a la gestión, o para la ejecución de trabajos artísticos que sólo puedan encomendarse a determinadas personas naturales | H61: PRESTAR SERVICIOS DE APOYO A LA GESTIÓN A LA ALCALDÍA LOCAL DE USAQUÉN, REALIZANDO LAS ACTIVIDADES ADMINISTRATIVAS, OPERATIVAS Y LOGÍSTICAS PARA LA EJECUCIÓN DE LAS ACTIVIDADES DE PARTICIPACIÓN CIUDADANA | I61: Inversión | J61: UN NUEVO CONTRATO SOCIAL Y AMBIENTAL PARA LA BOGOTA DEL SIGLO XXI | K61: 45 | L61: Espacio público más seguro y construido colectivamente | M61: Propósito 3: Inspirar confianza y legitimidad para vivir sin miedo y ser epicentro de cultura ciudadana, paz y reconciliación | N61: O23011603450000001959 | O61: 1 | P61: 1072672445 | Q61: LINA MARCELA HERNANDEZ YARA | R61: Persona Natural | W61: 16418064 | AA61: 16418064 | AB61: 16418064 | AC61: 2022-01-22 | AD61: 2022-01-27 | AE61: 2022-07-26 | AF61: 180 | AM61: Terminado | AN61: 1
A62: FDLUSA-CPS-035-2022 | B62: 2022 | C62: FDLUSA-CPS-035-2022 | D62: https://community.secop.gov.co/Public/Tendering/OpportunityDetail/Index?noticeUID=CO1.NTC.2559462&isFromPublicArea=True&isModal=False | E62: Contratos de prestación de servicios profesionales y de apoyo a la gestión | F62: Contratación directa | G62: Prestación de servicios profesionales y de apoyo a la gestión, o para la ejecución de trabajos artísticos que sólo puedan encomendarse a determinadas personas naturales | H62: PRESTAR LOS SERVICIOS PROFESIONALES ESPECIALIZADOS A LA ALCALDÍA LOCAL DE USAQUÉN PARA EL DESARROLLO DE LAS ACTUACIONES ADMINISTRATIVAS Y JURIDICAS RELACIONADAS CON LA CONTRATACIÓN DE LA ENTIDAD Y LOS PROYECTOS DE INVERSION. | I62: Inversión | J62: UN NUEVO CONTRATO SOCIAL Y AMBIENTAL PARA LA BOGOTA DEL SIGLO XXI | K62: 6 | L62: Sistema Distrital de Cuidado | M62: Propósito 1: Hacer un nuevo contrato social para incrementar la inclusión social, productiva y política | N62: O23011601060000001988 | O62: 1 | P62: 1020717375 | Q62: LILIANA ANGELICA RAMIREZ ALVAREZ | R62: Persona Natural | W62: 67500000 | Y62: 1 | Z62: 26250000 | AA62: 93750000 | AB62: 78000000 | AC62: 2022-01-14 | AD62: 2022-01-19 | AE62: 2023-02-03 | AF62: 270 | AG62: 1 | AH62: 105 | AM62: En ejecucion | AN62: 0.832
A63: FDLUSA-CPS-036-2022 | B63: 2022 | C63: FDLUSA-CPS-036-2022 | D63: https://community.secop.gov.co/Public/Tendering/OpportunityDetail/Index?noticeUID=CO1.NTC.2698090&isFromPublicArea=True&isModal=False | E63: Contratos de prestación de servicios profesionales y de apoyo a la gestión | F63: Contratación directa | G63: Prestación de servicios profesionales y de apoyo a la gestión, o para la ejecución de trabajos artísticos que sólo puedan encomendarse a determinadas personas naturales | H63: PRESTAR LOS SERVICIOS DE APOYO A LA GESTIÓN Y REALIZACIÓN DE LAS ACCIONES CONCERNIENTES A LA PREVENCIÓN Y ATENCIÓN DE VIOLENCIA INTRAFAMILIAR Y SEXUAL PARA POBLACIONES EN SITUACIONES DE RIESGO Y VULNERACIÓN DE DERECHOS EN LA LOCALIDAD DE USAQUÉN, BAJO EL ENFOQUE DE LA POLÍTICA PÚBLICA DE MUJER Y EQUIDAD DE GÉNERO | I63: Inversión | J63: UN NUEVO CONTRATO SOCIAL Y AMBIENTAL PARA LA BOGOTA DEL SIGLO XXI | K63: 6 | L63: Sistema Distrital de Cuidado | M63: Propósito 1: Hacer un nuevo contrato social para incrementar la inclusión social, productiva y política | N63: O23011601060000001988 | O63: 1 | P63: 1026588400 | Q63: VALENTINA DELGADILLO LOPEZ | R63: Persona Natural | W63: 18533928 | AA63: 18533928 | AB63: 18533928 | AC63: 2022-01-25 | AD63: 2022-01-28 | AE63: 2022-07-27 | AF63: 180 | AM63: Terminado | AN63: 1
A64: FDLUSA-CPS-037-2022 | B64: 2022 | C64: FDLUSA-CPS-037-2022 | D64: https://community.secop.gov.co/Public/Tendering/OpportunityDetail/Index?noticeUID=CO1.NTC.2561551&isFromPublicArea=True&isModal=False | E64: Contratos de prestación de servicios profesionales y de apoyo a la gestión | F64: Contratación directa | G64: Prestación de servicios profesionales y de apoyo a la gestión, o para la ejecución de trabajos artísticos que sólo puedan encomendarse a determinadas personas naturales | H64: PRESTAR LOS SERVICIOS PROFESIONALES JURÍDICOS PARA APOYAR LAS LABORES ADMINISTRATIVAS RELACIONADAS CON LOS PROCESOS PRECONTRACTUALES, CONTRACTUALES Y POS CONTRACTUALES. | I64: Inversión | J64: UN NUEVO CONTRATO SOCIAL Y AMBIENTAL PARA LA BOGOTA DEL SIGLO XXI | K64: 40 | L64: Más mujeres viven una vida libre de violencias, se sienten seguras y acceden con confianza al sistema de justicia | M64: Propósito 3: Inspirar confianza y legitimidad para vivir sin miedo y ser epicentro de cultura ciudadana, paz y reconciliación | N64: O23011603400000001991 | O64: 1 | P64: 1136885606 | Q64: MICHELLE MARGARITA CABALLERO GOMEZ | R64: Persona Natural | W64: 39000000 | AA64: 39000000 | AB64: 39000000 | AC64: 2022-01-17 | AD64: 2022-01-19 | AE64: 2022-07-23 | AF64: 180 | AM64: Terminado | AN64: 1
A65: FDLUSA-CPS-038-2022 | B65: 2022 | C65: FDLUSA-CPS-038-2022 | D65: https://community.secop.gov.co/Public/Tendering/OpportunityDetail/Index?noticeUID=CO1.NTC.2628627&isFromPublicArea=True&isModal=False | E65: Contratos de prestación de servicios profesionales y de apoyo a la gestión | F65: Contratación directa | G65: Prestación de servicios profesionales y de apoyo a la gestión, o para la ejecución de trabajos artísticos que sólo puedan encomendarse a determinadas personas naturales | H65: PRESTAR LOS SERVICIOS PROFESIONALES PARA APOYAR LA ARTICULACIÓN, ASISTENCIA Y ACOMPAÑAMIENTO DE LOS PROCESOS DE PLANEACIÓN LOCAL, PARA LA PROMOCIÓN Y GARANTÍA DE DERECHOS DE LAS MUJERES Y LA IGUALDAD DE GÉNERO QUE CONTRIBUYA A UNA VIDA LIBRE DE VIOLENCIAS, MEDIANTE LA MATERIALIZACIÓN DE ACCIONES PARA LA TERRITORIALIZACIÓN Y TRANSVERSALIZACIÓN DE LA POLÍTICA PUBLICA DE MUJERES Y EQUIDAD DE GÉNERO | I65: Inversión | J65: UN NUEVO CONTRATO SOCIAL Y AMBIENTAL PARA LA BOGOTA DEL SIGLO XXI | K65: 40 | L65: Más mujeres viven una vida libre de violencias, se sienten seguras y acceden con confianza al sistema de justicia | M65: Propósito 3: Inspirar confianza y legitimidad para vivir sin miedo y ser epicentro de cultura ciudadana, paz y reconciliación | N65: O23011603400000001991 | O65: 1 | P65: 1006425660 | Q65: DANIELA JIMENEZ SANCHEZ | R65: Persona Natural | W65: 74750000 | Y65: 1 | Z65: 4024047 | AA65: 78774047 | AB65: 66516667 | AC65: 2022-01-21 | AD65: 2022-01-24 | AE65: 2023-01-26 | AF65: 345 | AG65: 1 | AH65: 28 | AM65: En ejecucion | AN65: 0.8443982445
A66: FDLUSA-CPS-039-2022 | B66: 2022 | C66: FDLUSA-CPS-039-2022 | D66: https://community.secop.gov.co/Public/Tendering/OpportunityDetail/Index?noticeUID=CO1.NTC.2692160&isFromPublicArea=True&isModal=False | E66: Contratos de prestación de servicios profesionales y de apoyo a la gestión | F66: Contratación directa | G66: Prestación de servicios profesionales y de apoyo a la gestión, o para la ejecución de trabajos artísticos que sólo puedan encomendarse a determinadas personas naturales | H66: PRESTAR SERVICIOS PROFESIONALES A LA GESTIÓN Y REALIZACIÓN DE LAS ACCIONES CONCERNIENTES A LA PREVENCIÓN DEL FEMINICIDIO Y LAS VIOLENCIAS CONTRA LA MUJER, BAJO EL ENFOQUE DE LA POLÍTICA PÚBLICA DE MUJER Y EQUIDAD DE GÉNERO. - META PDL VINCULAR 2500 PERSONAS EN ACCIONES PARA LA PREVENCIÓN DEL FEMINICIDIO Y LA VIOLENCIA CONTRA LA MUJER | I66: Inversión | J66: UN NUEVO CONTRATO SOCIAL Y AMBIENTAL PARA LA BOGOTA DEL SIGLO XXI | K66: 40 | L66: Más mujeres viven una vida libre de violencias, se sienten seguras y acceden con confianza al sistema de justicia | M66: Propósito 3: Inspirar confianza y legitimidad para vivir sin miedo y ser epicentro de cultura ciudadana, paz y reconciliación | N66: O23011603400000001991 | O66: 1 | P66: 1020822054 | Q66: YISETH ALEJANDRA SANABRIA GORDILLO | R66: Persona Natural | W66: 27735480 | AA66: 27735480 | AB66: 27735480 | AC66: 2022-01-25 | AD66: 2022-01-28 | AE66: 2022-07-27 | AF66: 180 | AM66: Terminado | AN66: 1
A67: FDLUSA-CPS-040-2022 | B67: 2022 | C67: FDLUSA-CPS-040-2022 | D67: https://community.secop.gov.co/Public/Tendering/OpportunityDetail/Index?noticeUID=CO1.NTC.2640587&isFromPublicArea=True&isModal=False | E67: Contratos de prestación de servicios profesionales y de apoyo a la gestión | F67: Contratación directa | G67: Prestación de servicios profesionales y de apoyo a la gestión, o para la ejecución de trabajos artísticos que sólo puedan encomendarse a determinadas personas naturales | H67: PRESTAR SERVICIOS PROFESIONALES A LA ALCALDÍA LOCAL DE USAQUÉN PARA APOYAR LA FORMULACIÓN, LA GESTIÓN Y EL SEGUIMIENTO DE ESTRATEGIAS QUE PERMITAN UNA AMPLIA PARTICIPACIÓN CIUDADANA, ASÍ COMO EL SEGUIMIENTO DEL PLAN DE DESARROLLO LOCAL, EN ACATAMIENTO DE LOS FINES DE LA GESTIÓN INSTITUCIONAL LOCAL | I67: Inversión | J67: UN NUEVO CONTRATO SOCIAL Y AMBIENTAL PARA LA BOGOTA DEL SIGLO XXI | K67: 6 | L67: Sistema Distrital de Cuidado | M67: Propósito 1: Hacer un nuevo contrato social para incrementar la inclusión social, productiva y política | N67: O23011601060000001989 | O67: 1 | P67: 53050590 | Q67: LINA MARCELA CÁCERES CASTELLANOS | R67: Persona Natural | W67: 55800000 | Y67: 1 | Z67: 18600000 | AA67: 74400000 | AB67: 63446667 | AC67: 2022-01-22 | AD67: 2022-01-24 | AE67: 2023-01-23 | AF67: 270 | AG67: 1 | AH67: 90 | AM67: En ejecucion | AN67: 0.8527777823
A68: FDLUSA-CPS-046-2022 | B68: 2022 | C68: FDLUSA-CPS-046-2022 | D68: https://community.secop.gov.co/Public/Tendering/OpportunityDetail/Index?noticeUID=CO1.NTC.2657808&isFromPublicArea=True&isModal=False | E68: Contratos de prestación de servicios profesionales y de apoyo a la gestión | F68: Contratación directa | G68: Prestación de servicios profesionales y de apoyo a la gestión, o para la ejecución de trabajos artísticos que sólo puedan encomendarse a determinadas personas naturales | H68: PRESTAR LOS SERVICIOS PROFESIONALES A LA ALCALDÍA LOCAL DE USAQUEN, APOYANDO LAS ACTIVIDADES EN MATERIA DE INFRAESTRUCTURA, ASÍ COMO LA FORMULACIÓN Y EJECUCIÓN DE LOS PROYECTOS CULTURALES EN EL MARCO DEL PLAN DE DESARROLLO LOCAL USAQUÉN | I68: Inversión | J68: UN NUEVO CONTRATO SOCIAL Y AMBIENTAL PARA LA BOGOTA DEL SIGLO XXI | K68: 21 | L68: Creación y vida cotidiana: Apropiación ciudadana del arte, la cultura y el patrimonio, para la democracia cultural | M68: Propósito 1: Hacer un nuevo contrato social para incrementar la inclusión social, productiva y política | N68: O23011601210000001992 | O68: 1 | P68: 1018492056 | Q68: CHRYSTEL SHIRLEY BRAVO SEGURA | R68: Persona Natural | W68: 41603220 | Y68: 2 | Z68: 13218484 | AA68: 54821704 | AB68: 46225800 | AC68: 2022-01-22 | AD68: 2022-02-01 | AE68: 2023-01-25 | AF68: 270 | AG68: 2 | AH68: 85 | AM68: En ejecucion | AN68: 0.8432025389
A69: FDLUSA-CPS-041-2022 | B69: 2022 | C69: FDLUSA-CPS-041-2022 | D69: https://community.secop.gov.co/Public/Tendering/OpportunityDetail/Index?noticeUID=CO1.NTC.2597648&isFromPublicArea=True&isModal=False | E69: Contratos de prestación de servicios profesionales y de apoyo a la gestión | F69: Contratación directa | G69: Prestación de servicios profesionales y de apoyo a la gestión, o para la ejecución de trabajos artísticos que sólo puedan encomendarse a determinadas personas naturales | H69: PRESTAR LOS SERVICIOS DE APOYO A LA GESTIÓN DE LAS ACCIONES REFERENTES AL RECONOCIMIENTO Y EXIGIBILIDAD DE LA DISTRIBUCIÓN EQUITATIVA DE LAS ACTIVIDADES DEL HOGAR Y RELATIVAS AL CUIDADO PARA LAS MUJERES CUIDADORAS EN EL MARCO DEL SISTEMA DISTRITAL DE CUIDADO, META PLAN DE DESARROLLO LOCAL VINCULAR 711 MUJERES CUIDADORAS A ESTRATEGIAS DE CUIDADO | I69: Inversión | J69: UN NUEVO CONTRATO SOCIAL Y AMBIENTAL PARA LA BOGOTA DEL SIGLO XXI | K69: 6 | L69: Sistema Distrital de Cuidado | M69: Propósito 1: Hacer un nuevo contrato social para incrementar la inclusión social, productiva y política | N69: O23011601060000001989 | O69: 1 | P69: 10903386 | Q69: WEIMAR ANTONIO SILVA ROJAS | R69: Persona Natural | W69: 26111040 | Y69: 1 | Z69: 8703680 | AA69: 34814720 | AB69: 34814720 | AC69: 2022-01-18 | AD69: 2022-01-21 | AE69: 2022-09-20 | AF69: 180 | AG69: 1 | AH69: 60 | AM69: Terminado | AN69: 1
A70: FDLUSA-CPS-042-2022 | B70: 2022 | C70: FDLUSA-CPS-042-2022 | D70: https://community.secop.gov.co/Public/Tendering/OpportunityDetail/Index?noticeUID=CO1.NTC.2640929&isFromPublicArea=True&isModal=False | E70: Contratos de prestación de servicios profesionales y de apoyo a la gestión | F70: Contratación directa | G70: Prestación de servicios profesionales y de apoyo a la gestión, o para la ejecución de trabajos artísticos que sólo puedan encomendarse a determinadas personas naturales | H70: PRESTAR LOS SERVICIOS PROFESIONALES A LA ALCALDÍA LOCAL DE USAQUEN EN EL APOYO Y ACOMPAÑAMIENTO EN LA EJECUCIÓN DEL PROYECTO QUE BUSCA FORTALECER LAS CONDICIONES DE SALUD DE LAS PERSONAS CON DISCAPACIDAD DE LA LOCALIDAD DE USAQUEN Y SUS CUIDADORES, ASI COMO APOYAR LAS ACTIVIDADES DE ARTICULACION PARA EL DESARROLLO DE ESTRATEGIAS DE SALUD EN LA LOCALIDAD | I70: Inversión | J70: UN NUEVO CONTRATO SOCIAL Y AMBIENTAL PARA LA BOGOTA DEL SIGLO XXI | K70: 6 | L70: Sistema Distrital de Cuidado | M70: Propósito 1: Hacer un nuevo contrato social para incrementar la inclusión social, productiva y política | N70: O23011601060000001961 | O70: 1 | P70: 42880184 | Q70: LIDA TERESITA HERRERA SALAZAR | R70: Persona Natural | W70: 80500000 | AA70: 80500000 | AB70: 71633333 | AC70: 2022-01-21 | AD70: 2022-01-24 | AE70: 2023-01-08 | AF70: 345 | AG70: 1 | AH70: 8 | AM70: En ejecucion | AN70: 0.8898550683
A71: FDLUSA-CPS-043-2022 | B71: 2022 | C71: FDLUSA-CPS-043-2022 | D71: https://community.secop.gov.co/Public/Tendering/OpportunityDetail/Index?noticeUID=CO1.NTC.2623158&isFromPublicArea=True&isModal=False | E71: Contratos de prestación de servicios profesionales y de apoyo a la gestión | F71: Contratación directa | G71: Prestación de servicios profesionales y de apoyo a la gestión, o para la ejecución de trabajos artísticos que sólo puedan encomendarse a determinadas personas naturales | H71: PRESTAR LOS SERVICIOS PROFESIONALES A LA ALCALDÍA LOCAL DE USAQUEN EN EL APOYO A LA FORMULACIÓN Y ACOMPAÑAMIENTO EN LA EJECUCIÓN DE TODOS LOS PROYECTOS CULTURALES CONTEMPLADOS EN EL PLAN DE DESARROLLO LOCAL, ASÍ COMO EN EL SEGUIMIENTO A CONVENIOS Y CONTRATOS QUE SURJAN DE ESTOS | I71: Inversión | J71: UN NUEVO CONTRATO SOCIAL Y AMBIENTAL PARA LA BOGOTA DEL SIGLO XXI | K71: 21 | L71: Creación y vida cotidiana: Apropiación ciudadana del arte, la cultura y el patrimonio, para la democracia cultural | M71: Propósito 1: Hacer un nuevo contrato social para incrementar la inclusión social, productiva y política | N71: O23011601210000001992 | O71: 1 | P71: 72254479 | Q71: CARLOS ARTURO CANTILLO MARTINEZ | R71: Persona Natural | W71: 27735480 | AA71: 27735480 | AB71: 27735480 | AC71: 2022-01-21 | AD71: 2022-01-24 | AE71: 2022-07-23 | AF71: 180 | AM71: Terminado | AN71: 1
A72: FDLUSA-CPS-044-2022 | B72: 2022 | C72: FDLUSA-CPS-044-2022. | D72: https://community.secop.gov.co/Public/Tendering/OpportunityDetail/Index?noticeUID=CO1.NTC.2620025&isFromPublicArea=True&isModal=False | E72: Contratos de prestación de servicios profesionales y de apoyo a la gestión | F72: Contratación directa | G72: Prestación de servicios profesionales y de apoyo a la gestión, o para la ejecución de trabajos artísticos que sólo puedan encomendarse a determinadas personas naturales | H72: PRESTAR LOS SERVICIOS PROFESIONALES COMO ABOGADO PARA APOYAR JURÍDICAMENTE EL DESARROLLO DE LOS PROCESOS CONTRACTUALES Y PROCESOS ADMINISTRATIVOS DEL FONDO DE DESARROLLO LOCAL DE USAQUÉN | I72: Inversión | J72: UN NUEVO CONTRATO SOCIAL Y AMBIENTAL PARA LA BOGOTA DEL SIGLO XXI | K72: 21 | L72: Creación y vida cotidiana: Apropiación ciudadana del arte, la cultura y el patrimonio, para la democracia cultural | M72: Propósito 1: Hacer un nuevo contrato social para incrementar la inclusión social, productiva y política | N72: O23011601210000001992 | O72: 1 | P72: 1136882653 | Q72: MIGUEL FRANCISCO DE LA ESPRIELLA GARCIA | R72: Persona Natural | W72: 39000000 | Y72: 1 | Z72: 13000000 | AA72: 52000000 | AB72: 52000000 | AC72: 2022-01-19 | AD72: 2022-01-24 | AE72: 2022-09-23 | AF72: 180 | AG72: 1 | AH72: 60 | AM72: Terminado | AN72: 1
A73: FDLUSA-CPS-045-2022 | B73: 2022 | C73: FDLUSA-CPS-045-2022 | D73: https://community.secop.gov.co/Public/Tendering/OpportunityDetail/Index?noticeUID=CO1.NTC.2689430&isFromPublicArea=True&isModal=False | E73: Contratos de prestación de servicios profesionales y de apoyo a la gestión | F73: Contratación directa | G73: Prestación de servicios profesionales y de apoyo a la gestión, o para la ejecución de trabajos artísticos que sólo puedan encomendarse a determinadas personas naturales | H73: PRESTAR LOS SERVICIOS PROFESIONALES A LA ALCALDÍA LOCAL DE USAQUEN, APOYANDO EL SEGUIMIENTO A LAS ACTIVIDADES QUE SURJAN DE LOS PROYECTOS CULTURALES, ASÍ COMO A LA FORMULACIÓN Y EJECUCIÓN DE LOS MISMOS | I73: Inversión | J73: UN NUEVO CONTRATO SOCIAL Y AMBIENTAL PARA LA BOGOTA DEL SIGLO XXI | K73: 21 | L73: Creación y vida cotidiana: Apropiación ciudadana del arte, la cultura y el patrimonio, para la democracia cultural | M73: Propósito 1: Hacer un nuevo contrato social para incrementar la inclusión social, productiva y política | N73: O23011601210000001992 | O73: 1 | P73: 1026261226 | Q73: JENNIFER ALEXANDRA MORENO CASTELBLANCO | R73: Persona Natural | W73: 41603220 | Y73: 1 | Z73: 9245160 | AA73: 50848380 | AB73: 46688058 | AC73: 2022-01-25 | AD73: 2022-01-28 | AE73: 2022-12-27 | AF73: 270 | AG73: 1 | AH73: 60 | AI73: 53905330 | AJ73: DIANA CAROLINA PORTELA BOCANEGRA | AK73: 2022-08-01 | AL73: 13405482 | AM73: Terminado | AN73: 0.9181818182
A74: FDLUSA-CPS-047-2022 | B74: 2022 | C74: FDLUSA-CPS-047-2022 | D74: https://community.secop.gov.co/Public/Tendering/OpportunityDetail/Index?noticeUID=CO1.NTC.2602354&isFromPublicArea=True&isModal=False | E74: Contratos de prestación de servicios profesionales y de apoyo a la gestión | F74: Contratación directa | G74: Prestación de servicios profesionales y de apoyo a la gestión, o para la ejecución de trabajos artísticos que sólo puedan encomendarse a determinadas personas naturales | H74: PRESTAR SERVICIOS PROFESIONALES A LA ALCALDÍA LOCAL DE USAQUÉN PARA APOYAR LA FORMULACIÓN, LA GESTIÓN Y EL SEGUIMIENTO DE ES-TRATEGIAS QUE PERMITAN UNA AMPLIA PARTICIPACIÓN CIUDADANA EN ACATAMIENTO DE LOS FINES DE LA GESTIÓN INSTITUCIONAL LOCAL Y EL PLAN DE DESARROLLO LOCAL. | I74: Inversión | J74: UN NUEVO CONTRATO SOCIAL Y AMBIENTAL PARA LA BOGOTA DEL SIGLO XXI | K74: 21 | L74: Creación y vida cotidiana: Apropiación ciudadana del arte, la cultura y el patrimonio, para la democracia cultural | M74: Propósito 1: Hacer un nuevo contrato social para incrementar la inclusión social, productiva y política | N74: O23011601210000001992 | O74: 1 | P74: 1018482702 | Q74: VALERIA MARISOL DIAZ CERCHIARO | R74: Persona Natural | W74: 54000000 | Y74: 1 | Z74: 18000000 | AA74: 72000000 | AB74: 62200000 | AC74: 2022-01-19 | AD74: 2022-01-20 | AE74: 2023-01-19 | AF74: 270 | AG74: 1 | AH74: 90 | AM74: En ejecucion | AN74: 0.8638888889
A75: FDLUSA-CPS-048-2022 | B75: 2022 | C75: FDLUSA-CPS-048-2022 | D75: https://community.secop.gov.co/Public/Tendering/OpportunityDetail/Index?noticeUID=CO1.NTC.2606825&isFromPublicArea=True&isModal=False | E75: Contratos de prestación de servicios profesionales y de apoyo a la gestión | F75: Contratación directa | G75: Prestación de servicios profesionales y de apoyo a la gestión, o para la ejecución de trabajos artísticos que sólo puedan encomendarse a determinadas personas naturales | H75: APOYAR LAS ACTIVIDADES PERIODÍSTICAS, CUBRIMIENTO DE EVENTOS, Y LA CREACIÓN DE ESTRATEGIAS DE COMUNICACIÓN INTERNA Y EXTERNA DE LA ALCALDÍA LOCAL DE USAQUEN | I75: Inversión | J75: UN NUEVO CONTRATO SOCIAL Y AMBIENTAL PARA LA BOGOTA DEL SIGLO XXI | K75: 21 | L75: Creación y vida cotidiana: Apropiación ciudadana del arte, la cultura y el patrimonio, para la democracia cultural | M75: Propósito 1: Hacer un nuevo contrato social para incrementar la inclusión social, productiva y política | N75: O23011601210000001992 | O75: 1 | P75: 1136883135 | Q75: LESLIE CAROLINA DELGADO BOHORQUEZ | R75: Persona Natural | W75: 27735480 | AA75: 27735480 | AB75: 27735480 | AC75: 2022-01-19 | AD75: 2022-01-20 | AE75: 2022-07-19 | AF75: 180 | AM75: Terminado | AN75: 1
A76: FDLUSA-CPS-049-2022 | B76: 2022 | C76: FDLUSA-CPS-049-2022 | D76: https://community.secop.gov.co/Public/Tendering/OpportunityDetail/Index?noticeUID=CO1.NTC.2524431&isFromPublicArea=True&isModal=False | E76: Contratos de prestación de servicios profesionales y de apoyo a la gestión | F76: Contratación directa | G76: Prestación de servicios profesionales y de apoyo a la gestión, o para la ejecución de trabajos artísticos que sólo puedan encomendarse a determinadas personas naturales | H76: EL APOYO ADMINISTRATIVO PARA EL CONTROL Y SEGUIMIENTO DE LOS PROCESOS, PROGRAMAS Y PROYECTOS DE INVERSIÓN DE LA ALCALDÍA LOCAL, ASÍ COMO PARTICIPAR CUANDO SEA REQUERIDO EN ACCIONES, FORMULACIÓN Y SEGUIMIENTO DE LOS PROYECTOS DE INVERSIÓN DENTRO DEL PLAN DE DESARROLLO LOCAL. | I76: Inversión | J76: UN NUEVO CONTRATO SOCIAL Y AMBIENTAL PARA LA BOGOTA DEL SIGLO XXI | K76: 21 | L76: Creación y vida cotidiana: Apropiación ciudadana del arte, la cultura y el patrimonio, para la democracia cultural | M76: Propósito 1: Hacer un nuevo contrato social para incrementar la inclusión social, productiva y política | N76: O23011601210000001992 | O76: 1 | P76: 1022359491 | Q76: PABLO EDGAR CAMPOS RODRIGUEZ | R76: Persona Natural | W76: 69000000 | Y76: 1 | Z76: 6000000 | AA76: 75000000 | AB76: 62600000 | AC76: 2022-01-13 | AD76: 2022-01-18 | AE76: 2023-02-01 | AF76: 345 | AG76: 1 | AH76: 32 | AM76: En ejecucion | AN76: 0.8346666667
A77: FDLUSA-CPS-050-2022 | B77: 2022 | C77: FDLUSA-CPS-050-2022 | D77: https://community.secop.gov.co/Public/Tendering/OpportunityDetail/Index?noticeUID=CO1.NTC.2686354&isFromPublicArea=True&isModal=False | E77: Contratos de prestación de servicios profesionales y de apoyo a la gestión | F77: Contratación directa | G77: Prestación de servicios profesionales y de apoyo a la gestión, o para la ejecución de trabajos artísticos que sólo puedan encomendarse a determinadas personas naturales | H77: PRESTAR LOS SERVICIOS DE APOYO A LA GESTIÓN A LA ALCALDÍA LOCAL DE USAQUEN, EN LAS DIFERENTES ACTIVIDADES OPERATIVAS Y ADMINISTRATIVAS DEL PROYECTO DE INVERSIÓN USAQUÉN, CULTURAL, CREATIVA Y DIVERSA | I77: Inversión | J77: UN NUEVO CONTRATO SOCIAL Y AMBIENTAL PARA LA BOGOTA DEL SIGLO XXI | K77: 21 | L77: Creación y vida cotidiana: Apropiación ciudadana del arte, la cultura y el patrimonio, para la democracia cultural | M77: Propósito 1: Hacer un nuevo contrato social para incrementar la inclusión social, productiva y política | N77: O23011601210000001992 | O77: 1 | P77: 80074717 | Q77: CRISTIAN CAMILO LARROTA MUÑOZ | R77: Persona Natural | W77: 20400000 | AA77: 20400000 | AB77: 20400000 | AC77: 2022-01-25 | AD77: 2022-02-01 | AE77: 2022-07-31 | AF77: 180 | AM77: Terminado | AN77: 1
A78: FDLUSA-CPS-051-2022 | B78: 2022 | C78: FDLUSA-CPS-051-2022 | D78: https://community.secop.gov.co/Public/Tendering/OpportunityDetail/Index?noticeUID=CO1.NTC.2524921&isFromPublicArea=True&isModal=False | E78: Contratos de prestación de servicios profesionales y de apoyo a la gestión | F78: Contratación directa | G78: Prestación de servicios profesionales y de apoyo a la gestión, o para la ejecución de trabajos artísticos que sólo puedan encomendarse a determinadas personas naturales | H78: PRESTAR LOS SERVICIOS PROFESIONALES A LA ALCALDÍA LOCAL DE USAQUEN PARA APOYAR LA ARTICULACIÓN, COORDINACIÓN, FORMULACIÓN, IMPLEMENTACIÓN Y SEGUIMIENTO A LA EJECUCIÓN DE LOS PROGRAMAS, CONVENIOS Y CONTRATOS QUE SURJAN EN EL MARCO DE LOS PROYECTOS CULTURALES DE LA LOCALIDAD DE USAQUÉN EN VIRTUD DEL PLAN DE DESARROLLO LOCAL | I78: Inversión | J78: UN NUEVO CONTRATO SOCIAL Y AMBIENTAL PARA LA BOGOTA DEL SIGLO XXI | K78: 24 | L78: Bogotá región emprendedora e innovadora | M78: Propósito 1: Hacer un nuevo contrato social para incrementar la inclusión social, productiva y política | N78: O23011601240000001990 | O78: 1 | P78: 80768275 | Q78: CESAR AUGUSTO PARDO FORERO | R78: Persona Natural | W78: 54000000 | Y78: 1 | Z78: 18000000 | AA78: 72000000 | AB78: 62000000 | AC78: 2022-01-14 | AD78: 2022-01-21 | AE78: 2023-01-20 | AF78: 270 | AG78: 1 | AH78: 90 | AM78: En ejecucion | AN78: 0.8611111111
A79: FDLUSA-CPS-052-2022 | B79: 2022 | C79: FDLUSA-CPS-052-2022 | D79: https://community.secop.gov.co/Public/Tendering/OpportunityDetail/Index?noticeUID=CO1.NTC.2676351&isFromPublicArea=True&isModal=False | E79: Contratos de prestación de servicios profesionales y de apoyo a la gestión | F79: Contratación directa | G79: Prestación de servicios profesionales y de apoyo a la gestión, o para la ejecución de trabajos artísticos que sólo puedan encomendarse a determinadas personas naturales | H79: PRESTAR LOS SERVICIOS DE APOYO ASISTENCIAL A LA ALCALDÍA LOCAL DE USAQUEN PARA APOYAR LA ARTICULACIÓN, COORDINACIÓN, FORMULACIÓN, IMPLEMENTACIÓN Y SEGUIMIENTO A LA EJECUCIÓN DE LOS PROGRAMAS, CONVENIOS Y CONTRATOS QUE SURJAN EN EL MARCO DE LOS PROYECTOS CULTURALES DE LA LOCALIDAD DE USAQUÉN EN VIRTUD DEL PLAN DE DESARROLLO LOCAL | I79: Inversión | J79: UN NUEVO CONTRATO SOCIAL Y AMBIENTAL PARA LA BOGOTA DEL SIGLO XXI | K79: 24 | L79: Bogotá región emprendedora e innovadora | M79: Propósito 1: Hacer un nuevo contrato social para incrementar la inclusión social, productiva y política | N79: O23011601240000001990 | O79: 1 | P79: 80133121 | Q79: JORGE ANDRES LONDOÑO | R79: Persona Natural | W79: 15600000 | AA79: 15600000 | AB79: 15600000 | AC79: 2022-01-24 | AD79: 2022-01-28 | AE79: 2022-07-27 | AF79: 180 | AM79: Terminado | AN79: 1
A80: FDLUSA-CPS-053-2022 | B80: 2022 | C80: FDLUSA-CPS-053-2022 | D80: https://community.secop.gov.co/Public/Tendering/OpportunityDetail/Index?noticeUID=CO1.NTC.2647076&isFromPublicArea=True&isModal=False | E80: Contratos de prestación de servicios profesionales y de apoyo a la gestión | F80: Contratación directa | G80: Prestación de servicios profesionales y de apoyo a la gestión, o para la ejecución de trabajos artísticos que sólo puedan encomendarse a determinadas personas naturales | H80: PRESTAR LOS SERVICIOS A LA ALCALDIA LOCAL DE USAQUEN, PARA EL APOYO A LA EJECUCION DE LAS ACTIVIDADES Y PROCESOS ADMINISTRATIVOS RELACIONADOS CON AGLOMERACIONES, GESTION DE RIESGOS Y CAMBIO CLIMATICO, EN EL MARCO DEL PROYECTO 1940 ADAPTACION AL TERRITORIO A LA AFECTACION DEL CAMBIO CLIMATICO, ASPECTOS CONTEMPLADOS EN EL PLAN DE DESARROLLO "UN NUEVO CONTRATO SOCIAL Y AMBIENTAL PARA USAQUEN 2021-2024- META PDL "DESARROLLAR 1 INTERVENCION PARA LA REDUCCION DEL RIESGO Y ADAPTACION AL CAMBIO | I80: Inversión | J80: UN NUEVO CONTRATO SOCIAL Y AMBIENTAL PARA LA BOGOTA DEL SIGLO XXI | K80: 30 | L80: Eficiencia en la atención de emergencias | M80: Propósito 2 : Cambiar Nuestros Hábitos de Vida para Reverdecer a Bogotá y Adaptarnos y Mitigar la Crisis Climática | N80: O23011602300000001940 | O80: 1 | P80: 1014188312 | Q80: JUAN PABLO SANCHEZ ACEVEDO | R80: Persona Natural | W80: 30000000 | AA80: 30000000 | AB80: 30000000 | AC80: 2022-01-24 | AD80: 2022-01-27 | AE80: 2022-07-26 | AF80: 180 | AM80: Terminado | AN80: =IF(ISERROR(AB80/AA80),"-",(AB80/AA80)) -> 1
A81: FDLUSA-CPS-054-2022 | B81: 2022 | C81: FDLUSA-CPS-054-2022 | D81: https://community.secop.gov.co/Public/Tendering/OpportunityDetail/Index?noticeUID=CO1.NTC.2645043&isFromPublicArea=True&isModal=False | E81: Contratos de prestación de servicios profesionales y de apoyo a la gestión | F81: Contratación directa | G81: Prestación de servicios profesionales y de apoyo a la gestión, o para la ejecución de trabajos artísticos que sólo puedan encomendarse a determinadas personas naturales | H81: PRESTAR LOS SERVICIOS PROFESIONALES A LA ALCALDÍA LOCAL DE USAQUÉN, PARA APOYAR LA EJECUCIÓN DE LAS ACTIVIDADES Y PROCESOS ADMINISTRATIVOS RELACIONADOS CON AGLOMERACIONES, GESTIÓN DE RIESGOS Y CAMBIO CLIMÁTICO, EN EL MARCO DEL PROYECTO 1940 ADAPTACIÓN AL TERRITORIO A LA AFECTACIÓN DEL CAMBIO CLIMÁTICO, ASPECTOS CONTEMPLADOS EN EL PLAN DE DESARROLLO "UN NUEVO CONTRATO SOCIAL Y AMBIENTAL PARA USAQUÉN | I81: Inversión | J81: UN NUEVO CONTRATO SOCIAL Y AMBIENTAL PARA LA BOGOTA DEL SIGLO XXI | K81: 30 | L81: Eficiencia en la atención de emergencias | M81: Propósito 2 : Cambiar Nuestros Hábitos de Vida para Reverdecer a Bogotá y Adaptarnos y Mitigar la Crisis Climática | N81: O23011602300000001940 | O81: 1 | P81: 52410335 | Q81: CLAUDIA LILIANA MOYA ORJUELA | R81: Persona Natural | W81: 77000000 | Y81: 3 | Z81: 17500000 | AA81: 94500000 | AB81: 71166667 | AC81: 2022-01-21 | AD81: 2022-01-26 | AE81: 2023-03-10 | AF81: 330 | AG81: 3 | AH81: 75 | AM81: En ejecucion | AN81: 0.7530864233
A82: FDLUSA-CPS-055-2022 | B82: 2022 | C82: FDLUSA-CPS-055-2022 | D82: https://community.secop.gov.co/Public/Tendering/OpportunityDetail/Index?noticeUID=CO1.NTC.2636972&isFromPublicArea=True&isModal=False | E82: Contratos de prestación de servicios profesionales y de apoyo a la gestión | F82: Contratación directa | G82: Prestación de servicios profesionales y de apoyo a la gestión, o para la ejecución de trabajos artísticos que sólo puedan encomendarse a determinadas personas naturales | H82: PRESTACIÓN DE SERVICIOS DE APOYO A LA GESTIÓN DE GUÍAS AMBIENTALES PARA REALIZAR ACTIVIDADES DE CAMPO COMPLEMENTARIAS PARA LA EJECUCIÓN DE LA META MANTENER 8000 ÁRBOLES URBANOS Y/O RURALES DEL PROYECTO DE INVERSIÓN 1942 DENOMINADO USAQUÉN MÁS VERDE | I82: Inversión | J82: UN NUEVO CONTRATO SOCIAL Y AMBIENTAL PARA LA BOGOTA DEL SIGLO XXI | K82: 33 | L82: Más árboles y más y mejor espacio público | M82: Propósito 2 : Cambiar Nuestros Hábitos de Vida para Reverdecer a Bogotá y Adaptarnos y Mitigar la Crisis Climática | N82: O23011602330000001942 | O82: 1 | P82: 1001217774 | Q82: SARHA NICOLE RODRIGUEZ CRUZ | R82: Persona Natural | W82: 8000000 | AA82: 8000000 | AB82: 8000000 | AC82: 2022-01-25 | AD82: 2022-01-28 | AE82: 2022-06-27 | AF82: 150 | AM82: Terminado | AN82: 1
A83: FDLUSA-CPS-056-2022 | B83: 2022 | C83: FDLUSA-CPS-056-2022 | D83: https://community.secop.gov.co/Public/Tendering/OpportunityDetail/Index?noticeUID=CO1.NTC.2636492&isFromPublicArea=True&isModal=False | E83: Contratos de prestación de servicios profesionales y de apoyo a la gestión | F83: Contratación directa | G83: Prestación de servicios profesionales y de apoyo a la gestión, o para la ejecución de trabajos artísticos que sólo puedan encomendarse a determinadas personas naturales | H83: PRESTACIÓN DE SERVICIOS DE APOYO A LA GESTIÓN DE GUÍAS AMBIENTALES PARA REALIZAR ACTIVIDADES DE CAMPO COMPLEMENTARIAS PARA LA EJECUCIÓN DE LA META MANTENER 8000 ÁRBOLES URBANOS Y/O RURALES DEL PROYECTO DE INVERSIÓN 1942 DENOMINADO USAQUÉN MÁS VERDE | I83: Inversión | J83: UN NUEVO CONTRATO SOCIAL Y AMBIENTAL PARA LA BOGOTA DEL SIGLO XXI | K83: 33 | L83: Más árboles y más y mejor espacio público | M83: Propósito 2 : Cambiar Nuestros Hábitos de Vida para Reverdecer a Bogotá y Adaptarnos y Mitigar la Crisis Climática | N83: O23011602330000001942 | O83: 1 | P83: 1000158493 | Q83: MARIANA RODRIGUEZ VELASQUEZ | R83: Persona Natural | W83: 8000000 | AA83: 8000000 | AB83: 8000000 | AC83: 2022-01-21 | AD83: 2022-01-26 | AE83: 2022-06-25 | AF83: 150 | AM83: Terminado | AN83: 1
A84: FDLUSA-CPS-057-2022 | B84: 2022 | C84: FDLUSA-CPS-057-2022 | D84: https://community.secop.gov.co/Public/Tendering/OpportunityDetail/Index?noticeUID=CO1.NTC.2771350&isFromPublicArea=True&isModal=False | E84: Contratos de prestación de servicios profesionales y de apoyo a la gestión | F84: Contratación directa | G84: Prestación de servicios profesionales y de apoyo a la gestión, o para la ejecución de trabajos artísticos que sólo puedan encomendarse a determinadas personas naturales | H84: PRESTACIÓN DE SERVICIOS DE APOYO A LA GESTIÓN DE GUÍAS AMBIENTALES PARA REALIZAR ACTIVIDADES DE CAMPO COMPLEMENTARIAS PARA LA EJECUCIÓN DE LA META MANTENER 8000 ÁRBOLES URBANOS Y/O RURALES DEL PROYECTO DE INVERSIÓN 1942 DENOMINADO USAQUÉN MÁS VERDE | I84: Inversión | J84: UN NUEVO CONTRATO SOCIAL Y AMBIENTAL PARA LA BOGOTA DEL SIGLO XXI | K84: 33 | L84: Más árboles y más y mejor espacio público | M84: Propósito 2 : Cambiar Nuestros Hábitos de Vida para Reverdecer a Bogotá y Adaptarnos y Mitigar la Crisis Climática | N84: O23011602330000001942 | O84: 1 | P84: 1012440437 | Q84: RONALD ANDRES ROJAS RODRIGUEZ | R84: Persona Natural | W84: 8000000 | AA84: =+W84+X84+Z84 -> 8000000 | AB84: 8000000 | AC84: 2022-01-28 | AD84: 2022-02-01 | AE84: 2022-06-30 | AF84: 150 | AM84: Terminado | AN84: 1
A85: FDLUSA-CPS-058-2022 | B85: 2022 | C85: FDLUSA-CPS-058-2022 | D85: https://community.secop.gov.co/Public/Tendering/OpportunityDetail/Index?noticeUID=CO1.NTC.2637929&isFromPublicArea=True&isModal=False | E85: Contratos de prestación de servicios profesionales y de apoyo a la gestión | F85: Contratación directa | G85: Prestación de servicios profesionales y de apoyo a la gestión, o para la ejecución de trabajos artísticos que sólo puedan encomendarse a determinadas personas naturales | H85: PRESTACIÓN DE SERVICIOS DE APOYO A LA GESTIÓN DE GUÍAS AMBIENTALES PARA REALIZAR ACTIVIDADES DE CAMPO COMPLEMENTARIAS PARA LA EJECUCIÓN DE LA META PLANTAR 340 ÁRBOLES URBANOS Y/O RURALES DEL PROYECTO DE INVERSIÓN 1942 DENOMINADO USAQUÉN MÁS VERDE | I85: Inversión | J85: UN NUEVO CONTRATO SOCIAL Y AMBIENTAL PARA LA BOGOTA DEL SIGLO XXI | K85: 33 | L85: Más árboles y más y mejor espacio público | M85: Propósito 2 : Cambiar Nuestros Hábitos de Vida para Reverdecer a Bogotá y Adaptarnos y Mitigar la Crisis Climática | N85: O23011602330000001942 | O85: 1 | P85: 1001066693 | Q85: KATERINE LIZETH RUIZ TIBAQUIRÁ | R85: Persona Natural | W85: 8000000 | X85: -1440000 | AA85: 6560000 | AB85: 6560000 | AC85: 2022-01-21 | AD85: 2022-01-27 | AE85: 2022-07-06 | AF85: 150 | AI85: 11347181 | AJ85: LUIS JAVIER CASTRO BALLESTEROS | AK85: 2022-03-09 | AL85: 8000000 | AM85: Terminado | AN85: 1
A86: FDLUSA-CPS-059-2022 | B86: 2022 | C86: FDLUSA-CPS-059-2022 | D86: https://community.secop.gov.co/Public/Tendering/OpportunityDetail/Index?noticeUID=CO1.NTC.2761802&isFromPublicArea=True&isModal=False | E86: Contratos de prestación de servicios profesionales y de apoyo a la gestión | F86: Contratación directa | G86: Prestación de servicios profesionales y de apoyo a la gestión, o para la ejecución de trabajos artísticos que sólo puedan encomendarse a determinadas personas naturales | H86: PRESTACIÓN DE SERVICIOS DE APOYO A LA GESTIÓN DE GUÍAS AMBIENTAL ES PARA REALIZAR ACTIVIDADES DE CAMPO COMPLEMENTARIAS PARA LA EJECUCIÓN DE LA META PLANTAR 340 ÁRBOLES URBANOS Y/O RURALES DEL PROYECTO DE INVERSIÓN 1942 DENOMINADO USAQUÉN MÁS VERDE | I86: Inversión | J86: UN NUEVO CONTRATO SOCIAL Y AMBIENTAL PARA LA BOGOTA DEL SIGLO XXI | K86: 33 | L86: Más árboles y más y mejor espacio público | M86: Propósito 2 : Cambiar Nuestros Hábitos de Vida para Reverdecer a Bogotá y Adaptarnos y Mitigar la Crisis Climática | N86: O23011602330000001942 | O86: 1 | P86: 1000004134 | Q86: DAYANA VANESSA DURAN VELA | R86: Persona Natural | W86: 8000000 | X86: -8000000 | AA86: 0 | AB86: 0 | AC86: 2022-01-28 | AD86: 2022-01-28 | AE86: 2022-01-28 | AF86: 150 | AM86: Terminado | AN86: -
A87: FDLUSA-CPS-060-2022 | B87: 2022 | C87: FDLUSA-CPS-060-2022 | D87: https://community.secop.gov.co/Public/Tendering/OpportunityDetail/Index?noticeUID=CO1.NTC.2593094&isFromPublicArea=True&isModal=False | E87: Contratos de prestación de servicios profesionales y de apoyo a la gestión | F87: Contratación directa | G87: Prestación de servicios profesionales y de apoyo a la gestión, o para la ejecución de trabajos artísticos que sólo puedan encomendarse a determinadas personas naturales | H87: PRESTAR LOS SERVICIOS PROFESIONALES A LA ALCALDIA LOCAL DE USAQUEN, PARA APOYAR LA EJECUCION DEL PROYECTO 1955 ESCUELA DE ECONOMIA CIRCULAR CON SUS COMPONENTES TECNICOS, ASI COMO EL SEGUIMIENTO A LA EJECUCION Y MEJORA CONTINUA DE LOS COMPONENTES DE LA GESTION AMBIENTAL INSTITUCIONAL. | I87: Inversión | J87: UN NUEVO CONTRATO SOCIAL Y AMBIENTAL PARA LA BOGOTA DEL SIGLO XXI | K87: 38 | L87: Ecoeficiencia, reciclaje, manejo de residuos e inclusión de la población recicladora | M87: Propósito 2 : Cambiar Nuestros Hábitos de Vida para Reverdecer a Bogotá y Adaptarnos y Mitigar la Crisis Climática | N87: O23011602380000001955 | O87: 1 | P87: 52914116 | Q87: JENNY PATRICIA VANEGAS MESA | R87: Persona Natural | W87: 63250000 | AA87: 63250000 | AB87: 56833333 | AC87: 2022-01-18 | AD87: 2022-01-21 | AE87: 2023-01-05 | AF87: 345 | AG87: 1 | AH87: 5 | AM87: En ejecucion | AN87: 0.8985507194
A88: FDLUSA-CPS-061-2022 | B88: 2022 | C88: FDLUSA-CPS-061-2022 | D88: https://community.secop.gov.co/Public/Tendering/OpportunityDetail/Index?noticeUID=CO1.NTC.2546321&isFromPublicArea=True&isModal=False | E88: Contratos de prestación de servicios profesionales y de apoyo a la gestión | F88: Contratación directa | G88: Prestación de servicios profesionales y de apoyo a la gestión, o para la ejecución de trabajos artísticos que sólo puedan encomendarse a determinadas personas naturales | H88: APOYAR A LA ALCALDÍA LOCAL DE USAQUÉN EN LA PROMOCIÓN, ARTICULACIÓN,ACOMPAÑAMIENTO Y SEGUIMIENTO PARA LA ATENCIÓN Y PROTECCIÓN DE LOS ANIMALES DOMÉSTICOS Y SILVESTRES DE LA LOCALIDAD.” | I88: Inversión | J88: UN NUEVO CONTRATO SOCIAL Y AMBIENTAL PARA LA BOGOTA DEL SIGLO XXI | K88: 34 | L88: Bogotá protectora de los animales | M88: Propósito 2 : Cambiar Nuestros Hábitos de Vida para Reverdecer a Bogotá y Adaptarnos y Mitigar la Crisis Climática | N88: O23011602340000001933 | O88: 1 | P88: 52173437 | Q88: INGRID LILIANA GOMEZ CALDAS | R88: Persona Natural | W88: 30000000 | AA88: 30000000 | AB88: 30000000 | AC88: 2022-01-13 | AD88: 2022-01-19 | AE88: 2022-07-18 | AF88: 180 | AM88: Terminado | AN88: 1
A89: FDLUSA-CPS-062-2022 | B89: 2022 | C89: FDLUSA-CPS-062-2022 | D89: https://community.secop.gov.co/Public/Tendering/OpportunityDetail/Index?noticeUID=CO1.NTC.2612560&isFromPublicArea=True&isModal=False | E89: Contratos de prestación de servicios profesionales y de apoyo a la gestión | F89: Contratación directa | G89: Prestación de servicios profesionales y de apoyo a la gestión, o para la ejecución de trabajos artísticos que sólo puedan encomendarse a determinadas personas naturales | H89: PRESTAR SERVICIOS PROFESIONALES COMO ENLACE ENTRE FONDO DE DESARROLLO LOCAL USAQUÉN Y EL COMITÉ DE DERECHOS HUMANOS SECRETARIA DISTRITAL DE GOBIERNO, Y COMO REFERENTE LOCAL EN LA MATERIA GARANTIZANDO LA INCLUSIÓN DEL ENFOQUE, CUMPLIMIENTO Y RESPETO DERECHOS HUMANOS EN LAS DIFERENTES INSTANCIAS Y ESPACIOS DONDE HAGA PRESENCIA LA ALCALDÍA LOCAL DE USAQUEN DE CONFORMIDAD CON LA LABOR INSTITUCIONAL | I89: Inversión | J89: UN NUEVO CONTRATO SOCIAL Y AMBIENTAL PARA LA BOGOTA DEL SIGLO XXI | K89: 39 | L89: Bogotá territorio de paz y atención integral a las víctimas del conflicto armado | M89: Propósito 3: Inspirar confianza y legitimidad para vivir sin miedo y ser epicentro de cultura ciudadana, paz y reconciliación | N89: O23011603390000001946 | O89: 1 | P89: 1067939123 | Q89: LUCIA MARGARITA NEGRETE FUENTES | R89: Persona Natural | W89: 60300000 | Y89: 1 | Z89: 16750000 | AA89: 77050000 | AB89: 66776666 | AC89: 2022-01-19 | AD89: 2022-01-21 | AE89: 2023-01-15 | AF89: 270 | AG89: 1 | AH89: 95 | AM89: En ejecucion | AN89: 0.866666658
A90: FDLUSA-CPS-063-2022 | B90: 2022 | C90: FDLUSA-CPS-063-2022 | D90: https://community.secop.gov.co/Public/Tendering/OpportunityDetail/Index?noticeUID=CO1.NTC.2621609&isFromPublicArea=True&isModal=False | E90: Contratos de prestación de servicios profesionales y de apoyo a la gestión | F90: Contratación directa | G90: Prestación de servicios profesionales y de apoyo a la gestión, o para la ejecución de trabajos artísticos que sólo puedan encomendarse a determinadas personas naturales | H90: PRESTAR SERVICIOS DE APOYO A LA GESTIÓN A LA ALCALDÍA LOCAL DE USAQUÉN, REALIZANDO LAS ACTIVIDADES ADMINISTRATIVAS Y OPERATIVAS PARA EL FORTALECIMIENTO DE LAS DIFERENTES INSTANCIAS LOCALES DE PLANEACIÓN PARTICIPATIVA Y LA EJECUCIÓN DE ESTRATEGIAS QUE GARANTICEN UNA AMPLIA PARTICIPACIÓN CIUDADANA | I90: Inversión | J90: UN NUEVO CONTRATO SOCIAL Y AMBIENTAL PARA LA BOGOTA DEL SIGLO XXI | K90: 55 | L90: Fortalecimiento de cultura ciudadana y su institucionalidad | M90: Propósito 5: Construir Bogotá - Región con gobierno abierto, transparente y ciudadanía consciente | N90: O23011605550000001950 | O90: 1 | P90: 51641735 | Q90: MARIA PATRICIA JEREZ CUELLAR | R90: Persona Natural | W90: 25800000 | AA90: 25800000 | AB90: 20640000 | AC90: 2022-01-20 | AD90: 2022-02-07 | AE90: 2022-08-06 | AF90: 180 | AM90: Terminado | AN90: 0.8
A91: FDLUSA-CPS-064-2022 | B91: 2022 | C91: FDLUSA-CPS-064-2022 | D91: https://community.secop.gov.co/Public/Tendering/OpportunityDetail/Index?noticeUID=CO1.NTC.2655448&isFromPublicArea=True&isModal=False | E91: Contratos de prestación de servicios profesionales y de apoyo a la gestión | F91: Contratación directa | G91: Prestación de servicios profesionales y de apoyo a la gestión, o para la ejecución de trabajos artísticos que sólo puedan encomendarse a determinadas personas naturales | H91: PRESTAR SERVICIOS TECNICOS A LA ALCALDÍA LOCAL DE USAQUÉN PARA APOYAR LA FORMULACIÓN, LA GESTIÓN Y EL SEGUIMIENTO DE ESTRATEGIAS QUE PERMITAN UNA AMPLIA PARTICIPACIÓN CIUDADANA, ASÍ COMO EL SEGUIMIENTO DEL PLAN DE DESARROLLO LOCAL, EN ACATAMIENTO DE LOS FINES DE LA GESTIÓN INSTITUCIONAL LOCAL | I91: Inversión | J91: UN NUEVO CONTRATO SOCIAL Y AMBIENTAL PARA LA BOGOTA DEL SIGLO XXI | K91: 55 | L91: Fortalecimiento de cultura ciudadana y su institucionalidad | M91: Propósito 5: Construir Bogotá - Región con gobierno abierto, transparente y ciudadanía consciente | N91: O23011605550000001950 | O91: 1 | P91: 80121105 | Q91: CESAR YESID BERNAL SANCHEZ | R91: Persona Natural | W91: 22200000 | AA91: 22200000 | AB91: 22200000 | AC91: 2022-01-22 | AD91: 2022-01-26 | AE91: 2022-07-25 | AF91: 180 | AM91: Terminado | AN91: 1
A92: FDLUSA-CPS-065-2022 | B92: 2022 | C92: FDLUSA-CPS-065-2022 | D92: https://community.secop.gov.co/Public/Tendering/OpportunityDetail/Index?noticeUID=CO1.NTC.2676020&isFromPublicArea=True&isModal=False | E92: Contratos de prestación de servicios profesionales y de apoyo a la gestión | F92: Contratación directa | G92: Prestación de servicios profesionales y de apoyo a la gestión, o para la ejecución de trabajos artísticos que sólo puedan encomendarse a determinadas personas naturales | H92: APOYAR AL ALCALDE LOCAL DE USAQUÉN EN EL FORTALECIMIENTO E IN-CLUSIÓN DE LAS COMUNIDADES NEGRAS, AFROCOLOMBIANAS Y PALEN-QUERAS EN EL MARCO DE LA POLÍTICA PÚBLICA DISTRITAL AFRODESCEN-DIENTES Y LOS ESPACIOS DE PARTICIPACIÓN | I92: Inversión | J92: UN NUEVO CONTRATO SOCIAL Y AMBIENTAL PARA LA BOGOTA DEL SIGLO XXI | K92: 55 | L92: Fortalecimiento de cultura ciudadana y su institucionalidad | M92: Propósito 5: Construir Bogotá - Región con gobierno abierto, transparente y ciudadanía consciente | N92: O23011605550000001950 | O92: 1 | P92: 41577519 | Q92: MARITZA DE JESUS CONTO DE VALENCIA | R92: Persona Natural | W92: 27735480 | AA92: 27735480 | AB92: 27735480 | AC92: 2022-01-25 | AD92: 2022-02-01 | AE92: 2022-07-30 | AF92: 180 | AM92: Terminado | AN92: 1
A93: FDLUSA-CPS-066-2022 | B93: 2022 | C93: FDLUSA-CPS-066-2022 | D93: https://community.secop.gov.co/Public/Tendering/OpportunityDetail/Index?noticeUID=CO1.NTC.2714041&isFromPublicArea=True&isModal=False | E93: Contratos de prestación de servicios profesionales y de apoyo a la gestión | F93: Contratación directa | G93: Prestación de servicios profesionales y de apoyo a la gestión, o para la ejecución de trabajos artísticos que sólo puedan encomendarse a determinadas personas naturales | H93: PRESTAR SERVICIOS DE APOYO A LA GESTIÓN A LA ALCALDÍA LOCAL DE USAQUÉN, REALIZANDO LAS ACTIVIDADES ADMINISTRATIVAS Y OPERATIVAS PARA EL FORTALECIMIENTO DE LAS DIFERENTES INSTANCIAS LOCALES DE PLANEACIÓN PARTICIPATIVA Y LA EJECUCIÓN DE ESTRATEGIAS QUE GARANTICEN UNA AMPLIA PARTICIPACIÓN CIUDADANA. | I93: Inversión | J93: UN NUEVO CONTRATO SOCIAL Y AMBIENTAL PARA LA BOGOTA DEL SIGLO XXI | K93: 55 | L93: Fortalecimiento de cultura ciudadana y su institucionalidad | M93: Propósito 5: Construir Bogotá - Región con gobierno abierto, transparente y ciudadanía consciente | N93: O23011605550000001950 | O93: 1 | P93: 19276160 | Q93: HECTOR JAVIER GALINDO MORENO | R93: Persona Natural | W93: 25800000 | AA93: 25800000 | AB93: 21213333 | AC93: 2022-01-27 | AD93: 2022-02-03 | AE93: 2022-08-02 | AF93: 180 | AM93: Terminado | AN93: 0.8222222093
A94: FDLUSA-CPS-067-2022 | B94: 2022 | C94: FDLUSA-CPS-067-2022 | D94: https://community.secop.gov.co/Public/Tendering/OpportunityDetail/Index?noticeUID=CO1.NTC.2553822&isFromPublicArea=True&isModal=False | E94: Contratos de prestación de servicios profesionales y de apoyo a la gestión | F94: Contratación directa | G94: Prestación de servicios profesionales y de apoyo a la gestión, o para la ejecución de trabajos artísticos que sólo puedan encomendarse a determinadas personas naturales | H94: PRESTAR SERVICIOS PROFESIONALES A LA ALCALDIA LOCAL DE USAQUEN PARA APOYAR LA FORMULACION, LA GESTION Y EL SEGUIMIENTO DE ESTRATEGIAS QUE PERMITAN UNA AM- PLIA PARTICIPACION CIUDADANA, ASI COMO EL SEGUIMIENTO DEL PLAN DE DESARROLLO LOCAL, EN ACATAMIENTO DE LOS FINES DE LA GESTION INSTITUCIONAL LOCAL | I94: Inversión | J94: UN NUEVO CONTRATO SOCIAL Y AMBIENTAL PARA LA BOGOTA DEL SIGLO XXI | K94: 55 | L94: Fortalecimiento de cultura ciudadana y su institucionalidad | M94: Propósito 5: Construir Bogotá - Región con gobierno abierto, transparente y ciudadanía consciente | N94: O23011605550000001950 | O94: 1 | P94: 79778835 | Q94: JULIOMARIO MARTÍNEZ OSORIO | R94: Persona Natural | W94: 61200000 | Y94: 1 | Z94: 17000000 | AA94: 78200000 | AB94: 70266667 | AC94: 2022-01-14 | AD94: 2022-01-21 | AE94: 2023-01-05 | AF94: 270 | AG94: 1 | AH94: 95 | AM94: En ejecucion | AN94: 0.8985507289
A95: FDLUSA-CPS-068-2022 | B95: 2022 | C95: FDLUSA-CPS-068-2022 | D95: https://community.secop.gov.co/Public/Tendering/OpportunityDetail/Index?noticeUID=CO1.NTC.2676458&isFromPublicArea=True&isModal=False | E95: Contratos de prestación de servicios profesionales y de apoyo a la gestión | F95: Contratación directa | G95: Prestación de servicios profesionales y de apoyo a la gestión, o para la ejecución de trabajos artísticos que sólo puedan encomendarse a determinadas personas naturales | H95: PRESTAR SERVICIOS PROFESIONALES A LA ALCALDÍA LOCAL DE USAQUÉN PARA APOYAR LA FORMULACIÓN, LA GESTIÓN Y EL SEGUIMIENTO DE ES-TRATEGIAS QUE PERMITAN UNA AMPLIA PARTICIPACIÓN CIUDADANA, ASÍ COMO EL SEGUIMIENTO DEL PLAN DE DESARROLLO LOCAL, EN ACATAMIEN-TO DE LOS FINES DE LA GESTIÓN INSTITUCIONAL LOCAL | I95: Inversión | J95: UN NUEVO CONTRATO SOCIAL Y AMBIENTAL PARA LA BOGOTA DEL SIGLO XXI | K95: 55 | L95: Fortalecimiento de cultura ciudadana y su institucionalidad | M95: Propósito 5: Construir Bogotá - Región con gobierno abierto, transparente y ciudadanía consciente | N95: O23011605550000001950 | O95: 1 | P95: 40077422 | Q95: SANDRA MILENA CANTILLO VASQUEZ | R95: Persona Natural | W95: 63000000 | Y95: 1 | Z95: 10500000 | AA95: 73500000 | AB95: 67900000 | AC95: 2022-01-25 | AD95: 2022-02-10 | AE95: 2022-12-24 | AF95: 270 | AG95: 1 | AH95: 75 | AM95: Terminado | AN95: 0.9238095238
A96: FDLUSA-CPS-069-2022 | B96: 2022 | C96: FDLUSA-CPS-069-2022 | D96: https://community.secop.gov.co/Public/Tendering/OpportunityDetail/Index?noticeUID=CO1.NTC.2637392&isFromPublicArea=True&isModal=False | E96: Contratos de prestación de servicios profesionales y de apoyo a la gestión | F96: Contratación directa | G96: Prestación de servicios profesionales y de apoyo a la gestión, o para la ejecución de trabajos artísticos que sólo puedan encomendarse a determinadas personas naturales | H96: PRESTAR LOS SERVICIOS DE APOYO A LA GESTIÓN DE LA ALCALDÍA LOCAL EN EL DESARROLLO DE ESTRATEGIAS DE SEGURIDAD Y CONVIVENCIA, ACOMPA-ÑAMIENTO A LA CIUDADANÍA, SOPORTE LOGÍSTICO Y DIFUSIÓN DE LAS ACTI-VIDADES PROGRAMADAS ZONA DE USAQUÉN, EN EL MARCO DEL PROYECTO "USAQUÉN SEGURA, RESPONSABILIDAD" DE TODOS DEL PLAN DE DESARROLLO LOCAL "USAQUÉN REVERDECE 2021-2024: UN NUEVO CONTRATO SOCIAL Y AM-BIENTAL PARA USAQUÉN | I96: Inversión | J96: UN NUEVO CONTRATO SOCIAL Y AMBIENTAL PARA LA BOGOTA DEL SIGLO XXI | K96: 43 | L96: Cultura ciudadana para la confianza, la convivencia y la participación desde la vida cotidiana | M96: Propósito 3: Inspirar confianza y legitimidad para vivir sin miedo y ser epicentro de cultura ciudadana, paz y reconciliación | N96: O23011603430000001948 | O96: 1 | P96: 1020769419 | Q96: ANDRES YESID OVIEDO VEGA | R96: Persona Natural | W96: 13800000 | AA96: 13800000 | AB96: 13800000 | AC96: 2022-01-22 | AD96: 2022-02-02 | AE96: 2022-08-01 | AF96: 180 | AM96: Terminado | AN96: 1
A97: FDLUSA-CPS-070-2022 | B97: 2022 | C97: FDLUSA-CPS-070-2022 | D97: https://community.secop.gov.co/Public/Tendering/OpportunityDetail/Index?noticeUID=CO1.NTC.2553084&isFromPublicArea=True&isModal=False | E97: Contratos de prestación de servicios profesionales y de apoyo a la gestión | F97: Contratación directa | G97: Prestación de servicios profesionales y de apoyo a la gestión, o para la ejecución de trabajos artísticos que sólo puedan encomendarse a determinadas personas naturales | H97: PRESTAR LOS SERVICIOS DE APOYO A LA GESTIÓN DE LA ALCALDÍA LOCAL EN EL DESARROLLO DE ESTRATEGIAS DE SEGURIDAD Y CONVIVENCIA, ACOMPA-ÑAMIENTO A LA CIUDADANÍA, SOPORTE LOGÍSTICO Y DIFUSIÓN DE LAS ACTIVIDADES PROGRAMADAS ZONA DE USAQUÉN, EN EL MARCO DEL PROYECTO "USAQUÉN SEGURA, RESPONSABILIDAD DE TODOS" DEL PLAN DE DESARROLLO LOCAL "USAQUÉN REVERDECE 2021-2024: UN NUEVO CONTRATO SOCIAL Y AM-BIENTAL PARA USAQUÉN | I97: Inversión | J97: UN NUEVO CONTRATO SOCIAL Y AMBIENTAL PARA LA BOGOTA DEL SIGLO XXI | K97: 43 | L97: Cultura ciudadana para la confianza, la convivencia y la participación desde la vida cotidiana | M97: Propósito 3: Inspirar confianza y legitimidad para vivir sin miedo y ser epicentro de cultura ciudadana, paz y reconciliación | N97: O23011603430000001948 | O97: 1 | P97: 53160316 | Q97: DIANA CAROLINA CARDONA GRISALES | R97: Persona Natural | W97: 28750000 | Y97: 1 | Z97: 833333 | AA97: 29583333 | AB97: 26000000 | AC97: 2022-01-14 | AD97: 2022-01-19 | AE97: 2023-01-13 | AF97: 345 | AG97: 1 | AH97: 13 | AM97: En ejecucion | AN97: 0.8788732493
A98: FDLUSA-CPS-071-2022 | B98: 2022 | C98: FDLUSA-CPS-071-2022 | D98: https://community.secop.gov.co/Public/Tendering/OpportunityDetail/Index?noticeUID=CO1.NTC.2677050&isFromPublicArea=True&isModal=False | E98: Contratos de prestación de servicios profesionales y de apoyo a la gestión | F98: Contratación directa | G98: Prestación de servicios profesionales y de apoyo a la gestión, o para la ejecución de trabajos artísticos que sólo puedan encomendarse a determinadas personas naturales | H98: PRESTAR LOS SERVICIOS DE APOYO A LA GESTIÓN DE LA ALCALDÍA LOCAL EN EL DESARROLLO DE ESTRATEGIAS DE SEGURIDAD Y CONVIVENCIA, ACOMPA-ÑAMIENTO A LA CIUDADANÍA, SOPORTE LOGÍSTICO Y DIFUSIÓN DE LAS ACTI-VIDADES PROGRAMADAS ZONA DE USAQUÉN, EN EL MARCO DEL PROYECTO "USAQUÉN SEGURA, RESPONSABILIDAD" DE TODOS DEL PLAN DE DESARROLLO LOCAL "USAQUÉN REVERDECE 2021-2024: UN NUEVO CONTRATO SOCIAL Y AM-BIENTAL PARA USAQUÉN | I98: Inversión | J98: UN NUEVO CONTRATO SOCIAL Y AMBIENTAL PARA LA BOGOTA DEL SIGLO XXI | K98: 43 | L98: Cultura ciudadana para la confianza, la convivencia y la participación desde la vida cotidiana | M98: Propósito 3: Inspirar confianza y legitimidad para vivir sin miedo y ser epicentro de cultura ciudadana, paz y reconciliación | N98: O23011603430000001948 | O98: 1 | P98: 15961358 | Q98: HENRY BOTERO SANCHEZ | R98: Persona Natural | W98: 13800000 | AA98: 13800000 | AB98: 13800000 | AC98: 2022-01-26 | AD98: 2022-02-02 | AE98: 2022-08-01 | AF98: 180 | AI98: 1013612487 | AJ98: BRYAN FELIPE SAAVEDRA VELASQUEZ | AK98: 2022-03-25 | AL98: 9660000 | AM98: Terminado | AN98: 1
A99: FDLUSA-CPS-072-2022 | B99: 2022 | C99: FDLUSA-CPS-072-2022 | D99: https://community.secop.gov.co/Public/Tendering/OpportunityDetail/Index?noticeUID=CO1.NTC.2631314&isFromPublicArea=True&isModal=False | E99: Contratos de prestación de servicios profesionales y de apoyo a la gestión | F99: Contratación directa | G99: Prestación de servicios profesionales y de apoyo a la gestión, o para la ejecución de trabajos artísticos que sólo puedan encomendarse a determinadas personas naturales | H99: PRESTAR LOS SERVICIOS DE APOYO A LA GESTION DE LA ALCALDIA LOCAL EN EL DESARROLLO DE ESTRATEGIAS DE SEGURIDAD Y CONVIVENCIA, ACOMPA-NAMIENTO A LA CIUDADANIA, SOPORTE LOGISTICO Y DIFUSION DE LAS ACTI-VIDADES PROGRAMADAS ZONA DE USAQUEN, EN EL MARCO DEL PROYECTO "USAQUEN SEGURA, RESPONSABILIDAD" DE TODOS DEL PLAN DE DESARROLLO LOCAL "USAQUEN REVERDECE 2021-2024: UN NUEVO CONTRATO SOCIAL Y AM-BIENTAL PARA USAQUEN | I99: Inversión | J99: UN NUEVO CONTRATO SOCIAL Y AMBIENTAL PARA LA BOGOTA DEL SIGLO XXI | K99: 43 | L99: Cultura ciudadana para la confianza, la convivencia y la participación desde la vida cotidiana | M99: Propósito 3: Inspirar confianza y legitimidad para vivir sin miedo y ser epicentro de cultura ciudadana, paz y reconciliación | N99: O23011603430000001948 | O99: 1 | P99: 52252195 | Q99: TEMILDE CHOCONTÁ ACUÑA | R99: Persona Natural | W99: 26450000 | AA99: 26450000 | AB99: 21236667 | AC99: 2022-01-21 | AD99: 2022-01-31 | AE99: 2023-02-11 | AF99: 345 | AG99: 1 | AH99: 41 | AM99: En ejecucion | AN99: 0.8028985633
A100: FDLUSA-CTO-073-2022 | B100: 2022 | C100: ORDEN DE COMPRA 87066 | D100: https://colombiacompra.gov.co/tienda-virtual-del-estado-colombiano/ordenes-compra/87066 | E100: Contratos de prestación de servicios | F100: Selección abreviada | G100: Acuerdo marco de precios | H100: PRESTACIÓN DEL SERVICIO DE TRANSPORTE TERRESTRE AUTOMOTOR ESPECIAL DE PASAJEROS DE ACUERDO CON LAS NECESIDADES DEL FONDO DE DESARROLLO LOCAL DE USAQUÉN | I100: Funcionamiento | J100: UN NUEVO CONTRATO SOCIAL Y AMBIENTAL PARA LA BOGOTA DEL SIGLO XXI | K100: No aplica | L100: NO APLICA | M100: NO APLICA | N100: FUNCIONAMIENTO | O100: 5 | P100: 901443106 | Q100: UNION TEMPORAL TRANSPORTES POR COLOMBIA | R100: Unión Temporal | S100: 830038996 | T100: ESTURIVANNS S.A.S | U100: 14 | W100: 61373000 | AA100: 61373000 | AB100: 61373000 | AC100: 2022-03-23 | AD100: 2022-03-23 | AE100: 2022-09-22 | AF100: 180 | AM100: Terminado | AN100: 1
A101: FDLUSA-CTO-073-2022 | B101: 2022 | C101: ORDEN DE COMPRA 87066 | D101: https://colombiacompra.gov.co/tienda-virtual-del-estado-colombiano/ordenes-compra/87066 | E101: Contratos de prestación de servicios | F101: Selección abreviada | G101: Acuerdo marco de precios | H101: PRESTACIÓN DEL SERVICIO DE TRANSPORTE TERRESTRE AUTOMOTOR ESPECIAL DE PASAJEROS DE ACUERDO CON LAS NECESIDADES DEL FONDO DE DESARROLLO LOCAL DE USAQUÉN | I101: Funcionamiento | J101: UN NUEVO CONTRATO SOCIAL Y AMBIENTAL PARA LA BOGOTA DEL SIGLO XXI | K101: No aplica | L101: NO APLICA | M101: NO APLICA | N101: FUNCIONAMIENTO | O101: 5 | P101: 901443106 | Q101: UNION TEMPORAL TRANSPORTES POR COLOMBIA | R101: Unión Temporal | S101: 830033581 | T101: TRANSPORTES ESPECIALIZADOS JR SAS | U101: 14 | W101: 0 | AA101: 0 | AC101: 2022-03-23 | AD101: 2022-03-23 | AE101: 2022-09-22 | AF101: 180 | AM101: Terminado | AN101: -
A102: FDLUSA-CTO-073-2022 | B102: 2022 | C102: ORDEN DE COMPRA 87066 | D102: https://colombiacompra.gov.co/tienda-virtual-del-estado-colombiano/ordenes-compra/87066 | E102: Contratos de prestación de servicios | F102: Selección abreviada | G102: Acuerdo marco de precios | H102: PRESTACIÓN DEL SERVICIO DE TRANSPORTE TERRESTRE AUTOMOTOR ESPECIAL DE PASAJEROS DE ACUERDO CON LAS NECESIDADES DEL FONDO DE DESARROLLO LOCAL DE USAQUÉN | I102: Funcionamiento | J102: UN NUEVO CONTRATO SOCIAL Y AMBIENTAL PARA LA BOGOTA DEL SIGLO XXI | K102: No aplica | L102: NO APLICA | M102: NO APLICA | N102: FUNCIONAMIENTO | O102: 5 | P102: 901443106 | Q102: UNION TEMPORAL TRANSPORTES POR COLOMBIA | R102: Unión Temporal | S102: 805028887 | T102: TRANSPORTES ESPECIALES UNO A LIMITADA | U102: 15 | W102: 0 | AA102: 0 | AC102: 2022-03-23 | AD102: 2022-03-23 | AE102: 2022-09-22 | AF102: 180 | AM102: Terminado | AN102: -
A103: FDLUSA-CTO-073-2022 | B103: 2022 | C103: ORDEN DE COMPRA 87066 | D103: https://colombiacompra.gov.co/tienda-virtual-del-estado-colombiano/ordenes-compra/87066 | E103: Contratos de prestación de servicios | F103: Selección abreviada | G103: Acuerdo marco de precios | H103: PRESTACIÓN DEL SERVICIO DE TRANSPORTE TERRESTRE AUTOMOTOR ESPECIAL DE PASAJEROS DE ACUERDO CON LAS NECESIDADES DEL FONDO DE DESARROLLO LOCAL DE USAQUÉN | I103: Funcionamiento | J103: UN NUEVO CONTRATO SOCIAL Y AMBIENTAL PARA LA BOGOTA DEL SIGLO XXI | K103: No aplica | L103: NO APLICA | M103: NO APLICA | N103: FUNCIONAMIENTO | O103: 5 | P103: 901443106 | Q103: UNION TEMPORAL TRANSPORTES POR COLOMBIA | R103: Unión Temporal | S103: 900912423 | T103: VIAJES Y RUTAS DE COLOMBIA SAS | U103: 14 | W103: 0 | AA103: 0 | AC103: 2022-03-23 | AD103: 2022-03-23 | AE103: 2022-09-22 | AF103: 180 | AM103: Terminado | AN103: -
A104: FDLUSA-CTO-073-2022 | B104: 2022 | C104: ORDEN DE COMPRA 87066 | D104: https://colombiacompra.gov.co/tienda-virtual-del-estado-colombiano/ordenes-compra/87066 | E104: Contratos de prestación de servicios | F104: Selección abreviada | G104: Acuerdo marco de precios | H104: PRESTACIÓN DEL SERVICIO DE TRANSPORTE TERRESTRE AUTOMOTOR ESPECIAL DE PASAJEROS DE ACUERDO CON LAS NECESIDADES DEL FONDO DE DESARROLLO LOCAL DE USAQUÉN | I104: Funcionamiento | J104: UN NUEVO CONTRATO SOCIAL Y AMBIENTAL PARA LA BOGOTA DEL SIGLO XXI | K104: No aplica | L104: NO APLICA | M104: NO APLICA | N104: FUNCIONAMIENTO | O104: 5 | P104: 901443106 | Q104: UNION TEMPORAL TRANSPORTES POR COLOMBIA | R104: Unión Temporal | S104: 800105371 | T104: PLATINO VIP SAS | U104: 15 | W104: 0 | AA104: 0 | AC104: 2022-03-23 | AD104: 2022-03-23 | AE104: 2022-09-22 | AF104: 180 | AM104: Terminado | AN104: -
A105: FDLUSA-CTO-073-2022 | B105: 2022 | C105: ORDEN DE COMPRA 87066 | D105: https://colombiacompra.gov.co/tienda-virtual-del-estado-colombiano/ordenes-compra/87066 | E105: Contratos de prestación de servicios | F105: Selección abreviada | G105: Acuerdo marco de precios | H105: PRESTACIÓN DEL SERVICIO DE TRANSPORTE TERRESTRE AUTOMOTOR ESPECIAL DE PASAJEROS DE ACUERDO CON LAS NECESIDADES DEL FONDO DE DESARROLLO LOCAL DE USAQUÉN | I105: Funcionamiento | J105: UN NUEVO CONTRATO SOCIAL Y AMBIENTAL PARA LA BOGOTA DEL SIGLO XXI | K105: No aplica | L105: NO APLICA | M105: NO APLICA | N105: FUNCIONAMIENTO | O105: 5 | P105: 901443106 | Q105: UNION TEMPORAL TRANSPORTES POR COLOMBIA | R105: Unión Temporal | S105: 800210669 | T105: TRANSPORTES GALAXIA S.A | U105: 14 | W105: 0 | AA105: 0 | AC105: 2022-03-23 | AD105: 2022-03-23 | AE105: 2022-09-22 | AF105: 180 | AM105: Terminado | AN105: -
A106: FDLUSA-CTO-073-2022 | B106: 2022 | C106: ORDEN DE COMPRA 87066 | D106: https://colombiacompra.gov.co/tienda-virtual-del-estado-colombiano/ordenes-compra/87066 | E106: Contratos de prestación de servicios | F106: Selección abreviada | G106: Acuerdo marco de precios | H106: PRESTACIÓN DEL SERVICIO DE TRANSPORTE TERRESTRE AUTOMOTOR ESPECIAL DE PASAJEROS DE ACUERDO CON LAS NECESIDADES DEL FONDO DE DESARROLLO LOCAL DE USAQUÉN | I106: Funcionamiento | J106: UN NUEVO CONTRATO SOCIAL Y AMBIENTAL PARA LA BOGOTA DEL SIGLO XXI | K106: No aplica | L106: NO APLICA | M106: NO APLICA | N106: FUNCIONAMIENTO | O106: 5 | P106: 901443106 | Q106: UNION TEMPORAL TRANSPORTES POR COLOMBIA | R106: Unión Temporal | S106: 830115149 | T106: SERVICIO ESPECIAL DE TRANSPORTE ESCOLAR Y DE TURISMO SAS | U106: 14 | W106: 0 | AA106: 0 | AC106: 2022-03-23 | AD106: 2022-03-23 | AE106: 2022-09-22 | AF106: 180 | AM106: Terminado | AN106: -
A107: FDLUSA-CPS-074-2022 | B107: 2022 | C107: FDLUSA-CPS-074-2022 | D107: https://community.secop.gov.co/Public/Tendering/OpportunityDetail/Index?noticeUID=CO1.NTC.2632210&isFromPublicArea=True&isModal=False | E107: Contratos de prestación de servicios profesionales y de apoyo a la gestión | F107: Contratación directa | G107: Prestación de servicios profesionales y de apoyo a la gestión, o para la ejecución de trabajos artísticos que sólo puedan encomendarse a determinadas personas naturales | H107: PRESTAR LOS SERVICIOS DE APOYO A LA GESTION DE LA ALCALDIA LOCAL EN EL DESARROLLO DE ESTRATEGIAS DE SEGURIDAD Y CONVIVENCIA, ACOMPA-NAMIENTO A LA CIUDADANIA, SOPORTE LOGISTICO Y DIFUSION DE LAS ACTI-VIDADES PROGRAMADAS ZONA DE USAQUEN, EN EL MARCO DEL PROYECTO "USAQUEN SEGURA, RESPONSABILIDAD" DE TODOS DEL PLAN DE DESARROLLO LOCAL "USAQUEN REVERDECE 2021-2024: UN NUEVO CONTRATO SOCIAL Y AM-BIENTAL PARA USAQUEN | I107: Inversión | J107: UN NUEVO CONTRATO SOCIAL Y AMBIENTAL PARA LA BOGOTA DEL SIGLO XXI | K107: 43 | L107: Cultura ciudadana para la confianza, la convivencia y la participación desde la vida cotidiana | M107: Propósito 3: Inspirar confianza y legitimidad para vivir sin miedo y ser epicentro de cultura ciudadana, paz y reconciliación | N107: O23011603430000001948 | O107: 1 | P107: 80417962 | Q107: DAVID VEGA CERON | R107: Persona Natural | W107: 20700000 | Y107: 1 | Z107: 5750000 | AA107: 26450000 | AB107: 23383333 | AC107: 2022-01-21 | AD107: 2022-01-26 | AE107: 2023-01-10 | AF107: 270 | AG107: 1 | AH107: 75 | AM107: En ejecucion | AN107: 0.8840579584
A108: FDLUSA-CPS-075-2022 | B108: 2022 | C108: FDLUSA-CPS-075-2022 | D108: https://community.secop.gov.co/Public/Tendering/OpportunityDetail/Index?noticeUID=CO1.NTC.2755522&isFromPublicArea=True&isModal=False | E108: Contratos de prestación de servicios profesionales y de apoyo a la gestión | F108: Contratación directa | G108: Prestación de servicios profesionales y de apoyo a la gestión, o para la ejecución de trabajos artísticos que sólo puedan encomendarse a determinadas personas naturales | H108: PRESTAR LOS SERVICIOS DE APOYO A LA GESTIÓN DE LA ALCALDÍA LOCAL EN EL DESARROLLO DE ESTRATEGIAS DE SEGURIDAD Y CONVIVENCIA, ACOMPA-ÑAMIENTO A LA CIUDADANÍA, SOPORTE LOGÍSTICO Y DIFUSIÓN DE LAS ACTI-VIDADES PROGRAMADAS ZONA DE USAQUÉN, EN EL MARCO DEL PROYECTO "USAQUÉN SEGURA, RESPONSABILIDAD" DE TODOS DEL PLAN DE DESARROLLO LOCAL "USAQUÉN REVERDECE 2021-2024: UN NUEVO CONTRATO SOCIAL Y AM-BIENTAL PARA USAQUÉN" | I108: Inversión | J108: UN NUEVO CONTRATO SOCIAL Y AMBIENTAL PARA LA BOGOTA DEL SIGLO XXI | K108: 43 | L108: Cultura ciudadana para la confianza, la convivencia y la participación desde la vida cotidiana | M108: Propósito 3: Inspirar confianza y legitimidad para vivir sin miedo y ser epicentro de cultura ciudadana, paz y reconciliación | N108: O23011603430000001948 | O108: 1 | P108: 52026851 | Q108: LIGIA YANETH ROMERO BELTRAN | R108: Persona Natural | W108: 13800000 | AA108: 13800000 | AB108: 13800000 | AC108: 2022-01-27 | AD108: 2022-02-01 | AE108: 2022-07-30 | AF108: 180 | AM108: Terminado | AN108: 1
A109: FDLUSA-CPS-076-2022 | B109: 2022 | C109: FDLUSA-CPS-076-2022 | D109: https://community.secop.gov.co/Public/Tendering/OpportunityDetail/Index?noticeUID=CO1.NTC.2659973&isFromPublicArea=True&isModal=False | E109: Contratos de prestación de servicios profesionales y de apoyo a la gestión | F109: Contratación directa | G109: Prestación de servicios profesionales y de apoyo a la gestión, o para la ejecución de trabajos artísticos que sólo puedan encomendarse a determinadas personas naturales | H109: PRESTAR LOS SERVICIOS DE APOYO A LA GESTION DE LA ALCALDIA LOCAL EN EL DESARROLLO DE ESTRATEGIAS DE SEGURIDAD Y CONVIVENCIA, ACOMPA-NAMIENTO A LA CIUDADANIA, SOPORTE LOGISTICO Y DIFUSION DE LAS ACTI-VIDADES PROGRAMADAS ZONA DE USAQUEN, EN EL MARCO DEL PROYECTO "USAQUEN SEGURA, RESPONSABILIDAD" DE TODOS DEL PLAN DE DESARROLLO LOCAL "USAQUEN REVERDECE 2021-2024: UN NUEVO CONTRATO SOCIAL Y AM-BIENTAL PARA USAQUEN | I109: Inversión | J109: UN NUEVO CONTRATO SOCIAL Y AMBIENTAL PARA LA BOGOTA DEL SIGLO XXI | K109: 43 | L109: Cultura ciudadana para la confianza, la convivencia y la participación desde la vida cotidiana | M109: Propósito 3: Inspirar confianza y legitimidad para vivir sin miedo y ser epicentro de cultura ciudadana, paz y reconciliación | N109: O23011603430000001948 | O109: 1 | P109: 1020811827 | Q109: PAULA YISETH LOPEZ BARBOSA | R109: Persona Natural | W109: 20700000 | AA109: 20700000 | AB109: 18400000 | AC109: 2022-01-22 | AD109: 2022-01-26 | AE109: 2022-10-25 | AF109: 270 | AI109: 1016077053 | AJ109: LEONARDO REINA TORRES | AK109: 2022-09-06 | AL109: 4139999 | AM109: Terminado | AN109: 0.8888888889
A110: FDLUSA-CPS-077-2022 | B110: 2022 | C110: FDLUSA-CPS-077-2022 | D110: https://community.secop.gov.co/Public/Tendering/OpportunityDetail/Index?noticeUID=CO1.NTC.2662580&isFromPublicArea=True&isModal=False | E110: Contratos de prestación de servicios profesionales y de apoyo a la gestión | F110: Contratación directa | G110: Prestación de servicios profesionales y de apoyo a la gestión, o para la ejecución de trabajos artísticos que sólo puedan encomendarse a determinadas personas naturales | H110: PRESTAR LOS SERVICIOS DE APOYO A LA GESTIÓN DE LA ALCALDÍA LOCAL EN EL DESARROLLO DE ESTRATEGIAS DE SEGURIDAD Y CONVIVENCIA, ACOMPA-ÑAMIENTO A LA CIUDADANÍA, SOPORTE LOGÍSTICO Y DIFUSIÓN DE LAS ACTI-VIDADES PROGRAMADAS ZONA DE USAQUÉN, EN EL MARCO DEL PROYECTO "USAQUÉN SEGURA, RESPONSABILIDAD" DE TODOS DEL PLAN DE DESARROLLO LOCAL "USAQUÉN REVERDECE 2021-2024: UN NUEVO CONTRATO SOCIAL Y AM-BIENTAL PARA USAQUÉN | I110: Inversión | J110: UN NUEVO CONTRATO SOCIAL Y AMBIENTAL PARA LA BOGOTA DEL SIGLO XXI | K110: 43 | L110: Cultura ciudadana para la confianza, la convivencia y la participación desde la vida cotidiana | M110: Propósito 3: Inspirar confianza y legitimidad para vivir sin miedo y ser epicentro de cultura ciudadana, paz y reconciliación | N110: O23011603430000001948 | O110: 1 | P110: 1020785938 | Q110: GONZALO JAVIER ROJAS SAMACA | R110: Persona Natural | W110: 26450000 | AA110: 26450000 | AB110: 23306667 | AC110: 2022-01-24 | AD110: 2022-01-27 | AE110: 2022-12-31 | AF110: 345 | AM110: Terminado | AN110: 0.8811594329
A111: FDLUSA-CPS-078-2022 | B111: 2022 | C111: FDLUSA-CPS-078-2022 | D111: https://community.secop.gov.co/Public/Tendering/OpportunityDetail/Index?noticeUID=CO1.NTC.2661229&isFromPublicArea=True&isModal=False | E111: Contratos de prestación de servicios profesionales y de apoyo a la gestión | F111: Contratación directa | G111: Prestación de servicios profesionales y de apoyo a la gestión, o para la ejecución de trabajos artísticos que sólo puedan encomendarse a determinadas personas naturales | H111: PRESTAR LOS SERVICIOS DE APOYO A LA GESTION DE LA ALCALDIA LOCAL EN EL DESARROLLO DE ESTRATEGIAS DE SEGURIDAD Y CONVIVENCIA, ACOMPANAMIENTO A LA CIUDADANIA, SOPORTE LOGISTICO Y DIFUSION DE LAS ACTIVIDADES PROGRAMADAS ZONA DE USAQUEN, EN EL MARCO DEL PROYECTO "USAQUEN SEGURA, RESPONSABILIDAD" DE TODOS DEL PLAN DE DESARROLLO LOCAL "USAQUEN REVERDECE 2021-2024: UN NUEVO CONTRATO SOCIAL Y AMBIENTAL PARA USAQUEN | I111: Inversión | J111: UN NUEVO CONTRATO SOCIAL Y AMBIENTAL PARA LA BOGOTA DEL SIGLO XXI | K111: 43 | L111: Cultura ciudadana para la confianza, la convivencia y la participación desde la vida cotidiana | M111: Propósito 3: Inspirar confianza y legitimidad para vivir sin miedo y ser epicentro de cultura ciudadana, paz y reconciliación | N111: O23011603430000001948 | O111: 1 | P111: 1022363258 | Q111: CRISTHIAN EDUARDO RIVERA MURILLO | R111: Persona Natural | W111: 20700000 | Y111: 1 | Z111: 4600000 | AA111: 25300000 | AB111: 23306667 | AC111: 2022-01-24 | AD111: 2022-01-27 | AE111: 2022-12-26 | AF111: 270 | AG111: 1 | AH111: 60 | AM111: Terminado | AN111: 0.9212121344
A112: FDLUSA-CPS-079-2022 | B112: 2022 | C112: FDLUSA-CPS-079-2022 | D112: https://community.secop.gov.co/Public/Tendering/OpportunityDetail/Index?noticeUID=CO1.NTC.2694234&isFromPublicArea=True&isModal=False | E112: Contratos de prestación de servicios profesionales y de apoyo a la gestión | F112: Contratación directa | G112: Prestación de servicios profesionales y de apoyo a la gestión, o para la ejecución de trabajos artísticos que sólo puedan encomendarse a determinadas personas naturales | H112: PRESTAR LOS SERVICIOS DE APOYO A LA GESTIÓN DE LA ALCALDÍA LOCAL EN EL DESARROLLO DE ESTRATEGIAS DE SEGURIDAD Y CONVIVENCIA, ACOMPA-ÑAMIENTO A LA CIUDADANÍA, SOPORTE LOGÍSTICO Y DIFUSIÓN DE LAS ACTI-VIDADES PROGRAMADAS ZONA DE USAQUÉN, EN EL MARCO DEL PROYECTO "USAQUÉN SEGURA, RESPONSABILIDAD" DE TODOS DEL PLAN DE DESARROLLO LOCAL "USAQUÉN REVERDECE 2021-2024: UN NUEVO CONTRATO SOCIAL Y AM-BIENTAL PARA USAQUÉN | I112: Inversión | J112: UN NUEVO CONTRATO SOCIAL Y AMBIENTAL PARA LA BOGOTA DEL SIGLO XXI | K112: 43 | L112: Cultura ciudadana para la confianza, la convivencia y la participación desde la vida cotidiana | M112: Propósito 3: Inspirar confianza y legitimidad para vivir sin miedo y ser epicentro de cultura ciudadana, paz y reconciliación | N112: O23011603430000001948 | O112: 1 | P112: 80927357 | Q112: CARLOS JAVIER FLOREZ AGUILERA | R112: Persona Natural | W112: 26450000 | AA112: 26450000 | AB112: 23000000 | AC112: 2022-01-25 | AD112: 2022-02-01 | AE112: 2022-12-31 | AF112: 345 | AM112: Terminado | AN112: 0.8695652174
A113: FDLUSA-CPS-080-2022 | B113: 2022 | C113: FDLUSA-CPS-080-2022 | D113: https://community.secop.gov.co/Public/Tendering/OpportunityDetail/Index?noticeUID=CO1.NTC.2532253&isFromPublicArea=True&isModal=False | E113: Contratos de prestación de servicios profesionales y de apoyo a la gestión | F113: Contratación directa | G113: Prestación de servicios profesionales y de apoyo a la gestión, o para la ejecución de trabajos artísticos que sólo puedan encomendarse a determinadas personas naturales | H113: PRESTAR LOS SERVICIOS DE APOYO A LA GESTION DE LA ALCALDIA LOCAL EN EL DESARROLLO DE ESTRATEGIAS DE SEGURIDAD Y CONVIVENCIA, ACOMPA-NAMIENTO A LA CIUDADANIA, SOPORTE LOGISTICO Y DIFUSION DE LAS ACTI-VIDADES PROGRAMADAS ZONA DE USAQUEN, EN EL MARCO DEL PROYECTO "USAQUEN SEGURA, RESPONSABILIDAD" DE TODOS DEL PLAN DE DESARROLLO LOCAL "USAQUEN REVERDECE 2021-2024: UN NUEVO CONTRATO SOCIAL Y AM-BIENTAL PARA USAQUEN | I113: Inversión | J113: UN NUEVO CONTRATO SOCIAL Y AMBIENTAL PARA LA BOGOTA DEL SIGLO XXI | K113: 43 | L113: Cultura ciudadana para la confianza, la convivencia y la participación desde la vida cotidiana | M113: Propósito 3: Inspirar confianza y legitimidad para vivir sin miedo y ser epicentro de cultura ciudadana, paz y reconciliación | N113: O23011603430000001948 | O113: 1 | P113: 1016077288 | Q113: JENNY ALEJANDRA FANDIÑO CARRILLO | R113: Persona Natural | W113: 20700000 | Y113: 2 | Z113: 7326317 | AA113: 28026317 | AB113: 24073333 | AC113: 2022-01-12 | AD113: 2022-01-17 | AE113: 2023-01-21 | AF113: 270 | AG113: 2 | AH113: 95 | AM113: En ejecucion | AN113: 0.8589545676
A114: FDLUSA-CPS-081-2022 | B114: 2022 | C114: FDLUSA-CPS-081-2022 | D114: https://community.secop.gov.co/Public/Tendering/OpportunityDetail/Index?noticeUID=CO1.NTC.2568360&isFromPublicArea=True&isModal=False | E114: Contratos de prestación de servicios profesionales y de apoyo a la gestión | F114: Contratación directa | G114: Prestación de servicios profesionales y de apoyo a la gestión, o para la ejecución de trabajos artísticos que sólo puedan encomendarse a determinadas personas naturales | H114: PRESTAR LOS SERVICIOS DE APOYO A LA GESTION DE LA ALCALDIA LOCAL EN EL DESARROLLO DE ESTRATEGIAS DE SEGURIDAD Y CONVIVENCIA, ACOMPA-NAMIENTO A LA CIUDADANIA, SOPORTE LOGISTICO Y DIFUSION DE LAS ACTI-VIDADES PROGRAMADAS ZONA DE USAQUEN, EN EL MARCO DEL PROYECTO "USAQUEN SEGURA, RESPONSABILIDAD" DE TODOS DEL PLAN DE DESARROLLO LOCAL "USAQUEN REVERDECE 2021-2024: UN NUEVO CONTRATO SOCIAL Y AMBIENTAL PARA USAQUEN" | I114: Inversión | J114: UN NUEVO CONTRATO SOCIAL Y AMBIENTAL PARA LA BOGOTA DEL SIGLO XXI | K114: 43 | L114: Cultura ciudadana para la confianza, la convivencia y la participación desde la vida cotidiana | M114: Propósito 3: Inspirar confianza y legitimidad para vivir sin miedo y ser epicentro de cultura ciudadana, paz y reconciliación | N114: O23011603430000001948 | O114: 1 | P114: 1020822779 | Q114: YERALDIN VARGAS PALACIO | R114: Persona Natural | W114: 26450000 | AA114: 26450000 | AB114: 23843333 | AC114: 2022-01-19 | AD114: 2022-01-20 | AE114: 2022-12-31 | AF114: 345 | AM114: Terminado | AN114: 0.9014492628
A115: FDLUSA-CPS-082-2022. | B115: 2022 | C115: FDLUSA-CPS-082-2022. | D115: https://community.secop.gov.co/Public/Tendering/OpportunityDetail/Index?noticeUID=CO1.NTC.2642875&isFromPublicArea=True&isModal=False | E115: Contratos de prestación de servicios profesionales y de apoyo a la gestión | F115: Contratación directa | G115: Prestación de servicios profesionales y de apoyo a la gestión, o para la ejecución de trabajos artísticos que sólo puedan encomendarse a determinadas personas naturales | H115: PRESTAR LOS SERVICIOS DE APOYO A LA GESTION DE LA ALCALDIA LOCAL EN EL DESARROLLO DE ESTRATEGIAS DE SEGURIDAD Y CONVIVENCIA, ACOMPANAMIENTO A LA CIUDADANIA, SOPORTE LOGISTICO Y DIFUSION DE LAS ACTI-VIDADES PROGRAMADAS ZONA DE USAQUEN, EN EL MARCO DEL PROYECTO "USAQUEN SEGURA, RESPONSABILIDAD" DE TODOS DEL PLAN DE DESARROLLO LOCAL "USAQUEN REVERDECE 2021-2024: UN NUEVO CONTRATO SOCIAL Y AM-BIENTAL PARA USAQUEN | I115: Inversión | J115: UN NUEVO CONTRATO SOCIAL Y AMBIENTAL PARA LA BOGOTA DEL SIGLO XXI | K115: 43 | L115: Cultura ciudadana para la confianza, la convivencia y la participación desde la vida cotidiana | M115: Propósito 3: Inspirar confianza y legitimidad para vivir sin miedo y ser epicentro de cultura ciudadana, paz y reconciliación | N115: O23011603430000001948 | O115: 1 | P115: 1019046853 | Q115: MARIA VERONICA CRUZ CARDOZO | R115: Persona Natural | W115: 26450000 | AA115: 26450000 | AB115: 23536667 | AC115: 2022-01-21 | AD115: 2022-01-24 | AE115: 2022-12-31 | AF115: 345 | AM115: Terminado | AN115: 0.8898550851
A116: FDLUSA-CPS-083-2022 | B116: 2022 | C116: FDLUSA-CPS-083-2022 | D116: https://community.secop.gov.co/Public/Tendering/OpportunityDetail/Index?noticeUID=CO1.NTC.2609806&isFromPublicArea=True&isModal=False | E116: Contratos de prestación de servicios profesionales y de apoyo a la gestión | F116: Contratación directa | G116: Prestación de servicios profesionales y de apoyo a la gestión, o para la ejecución de trabajos artísticos que sólo puedan encomendarse a determinadas personas naturales | H116: PRESTAR LOS SERVICIOS DE APOYO A LA GESTION DE LA ALCALDIA LOCAL EN EL DESARROLLO DE ESTRATEGIAS DE SEGURIDAD Y CONVIVENCIA, ACOMPA-NAMIENTO A LA CIUDADANIA, SOPORTE LOGISTICO Y DIFUSION DE LAS ACTI-VIDADES PROGRAMADAS ZONA DE USAQUEN, EN EL MARCO DEL PROYECTO "USAQUEN SEGURA, RESPONSABILIDAD" DE TODOS DEL PLAN DE DESARROLLO LOCAL "USAQUEN REVERDECE 2021-2024: UN NUEVO CONTRATO SOCIAL Y AMBIENTAL PARA USAQUEN | I116: Inversión | J116: UN NUEVO CONTRATO SOCIAL Y AMBIENTAL PARA LA BOGOTA DEL SIGLO XXI | K116: 43 | L116: Cultura ciudadana para la confianza, la convivencia y la participación desde la vida cotidiana | M116: Propósito 3: Inspirar confianza y legitimidad para vivir sin miedo y ser epicentro de cultura ciudadana, paz y reconciliación | N116: O23011603430000001948 | O116: 1 | P116: 1020776564 | Q116: NATALIA ROMERO RODRIGUEZ | R116: Persona Natural | W116: 20700000 | Y116: 1 | Z116: 5750000 | AA116: 26450000 | AB116: 23690000 | AC116: 2022-01-19 | AD116: 2022-01-22 | AE116: 2023-01-07 | AF116: 270 | AG116: 1 | AH116: 75 | AM116: En ejecucion | AN116: 0.8956521739
A117: FDLUSA-CPS-084-2022 | B117: 2022 | C117: FDLUSA-CPS-084-2022 | D117: https://community.secop.gov.co/Public/Tendering/OpportunityDetail/Index?noticeUID=CO1.NTC.2554045&isFromPublicArea=True&isModal=False | E117: Contratos de prestación de servicios profesionales y de apoyo a la gestión | F117: Contratación directa | G117: Prestación de servicios profesionales y de apoyo a la gestión, o para la ejecución de trabajos artísticos que sólo puedan encomendarse a determinadas personas naturales | H117: PRESTAR LOS SERVICIOS DE APOYO A LA GESTION DE LA ALCALDIA LOCAL EN EL DESARROLLO DE ESTRATEGIAS DE SEGURIDAD Y CONVIVENCIA, ACOMPA-NAMIENTO A LA CIUDADANIA, SOPORTE LOGISTICO Y DIFUSION DE LAS ACTI-VIDADES PROGRAMADAS ZONA DE USAQUEN, EN EL MARCO DEL PROYECTO "USAQUEN SEGURA, RESPONSABILIDAD" DE TODOS DEL PLAN DE DESARROLLO LOCAL "USAQUEN REVERDECE 2021-2024: UN NUEVO CONTRATO SOCIAL Y AMBIENTAL PARA USAQUEN | I117: Inversión | J117: UN NUEVO CONTRATO SOCIAL Y AMBIENTAL PARA LA BOGOTA DEL SIGLO XXI | K117: 43 | L117: Cultura ciudadana para la confianza, la convivencia y la participación desde la vida cotidiana | M117: Propósito 3: Inspirar confianza y legitimidad para vivir sin miedo y ser epicentro de cultura ciudadana, paz y reconciliación | N117: O23011603430000001948 | O117: 1 | P117: 1019116959 | Q117: TATIANA JULIETH HERRERA PINTO | R117: Persona Natural | W117: 26450000 | AA117: 26450000 | AB117: 23536667 | AC117: 2022-01-17 | AD117: 2022-01-24 | AE117: 2023-01-08 | AF117: 345 | AG117: 1 | AH117: 8 | AM117: En ejecucion | AN117: 0.8898550851
A118: FDLUSA-CPS-085-2022 | B118: 2022 | C118: FDLUSA-CPS-085-2022 | D118: https://community.secop.gov.co/Public/Tendering/OpportunityDetail/Index?noticeUID=CO1.NTC.2545029&isFromPublicArea=True&isModal=False | E118: Contratos de prestación de servicios profesionales y de apoyo a la gestión | F118: Contratación directa | G118: Prestación de servicios profesionales y de apoyo a la gestión, o para la ejecución de trabajos artísticos que sólo puedan encomendarse a determinadas personas naturales | H118: PRESTAR LOS SERVICIOS DE APOYO A LA GESTIÓN DE LA ALCALDÍA LOCAL EN EL DESARROLLO DE ESTRATEGIAS DE SEGURIDAD Y CONVIVENCIA, ACOMPA-ÑAMIENTO A LA CIUDADANÍA, SOPORTE LOGÍSTICO Y DIFUSIÓN DE LAS ACTI-VIDADES PROGRAMADAS ZONA DE USAQUÉN, EN EL MARCO DEL PROYECTO "USAQUÉN SEGURA, RESPONSABILIDAD" DE TODOS DEL PLAN DE DESARROLLO LOCAL "USAQUÉN REVERDECE 2021-2024: UN NUEVO CONTRATO SOCIAL Y AM-BIENTAL PARA USAQUÉN" | I118: Inversión | J118: UN NUEVO CONTRATO SOCIAL Y AMBIENTAL PARA LA BOGOTA DEL SIGLO XXI | K118: 43 | L118: Cultura ciudadana para la confianza, la convivencia y la participación desde la vida cotidiana | M118: Propósito 3: Inspirar confianza y legitimidad para vivir sin miedo y ser epicentro de cultura ciudadana, paz y reconciliación | N118: O23011603430000001948 | O118: 1 | P118: 79781251 | Q118: LEONEL FERNANDO LEAL HERNANDEZ | R118: Persona Natural | W118: 26450000 | X118: -50 | AA118: 26449950 | AB118: 23920000 | AC118: 2022-01-13 | AD118: 2022-01-19 | AE118: 2023-01-03 | AF118: 345 | AG118: 1 | AH118: 3 | AM118: En ejecucion | AN118: 0.9043495356
A119: FDLUSA-CPS-086-2022 | B119: 2022 | C119: FDLUSA-CPS-086-2022 | D119: https://community.secop.gov.co/Public/Tendering/OpportunityDetail/Index?noticeUID=CO1.NTC.2638095&isFromPublicArea=True&isModal=False | E119: Contratos de prestación de servicios profesionales y de apoyo a la gestión | F119: Contratación directa | G119: Prestación de servicios profesionales y de apoyo a la gestión, o para la ejecución de trabajos artísticos que sólo puedan encomendarse a determinadas personas naturales | H119: PRESTAR LOS SERVICIOS DE APOYO A LA GESTIÓN DE LA ALCALDÍA LOCAL EN EL DESARROLLO DE ESTRATEGIAS DE SEGURIDAD Y CONVIVENCIA, ACOMPA-ÑAMIENTO A LA CIUDADANÍA, SOPORTE LOGÍSTICO Y DIFUSIÓN DE LAS ACTI-VIDADES PROGRAMADAS ZONA DE USAQUÉN, EN EL MARCO DEL PROYECTO "USAQUÉN SEGURA, RESPONSABILIDAD" DE TODOS DEL PLAN DE DESARROLLO LOCAL "USAQUÉN REVERDECE 2021-2024: UN NUEVO CONTRATO SOCIAL Y AM-BIENTAL PARA USAQUÉN | I119: Inversión | J119: UN NUEVO CONTRATO SOCIAL Y AMBIENTAL PARA LA BOGOTA DEL SIGLO XXI | K119: 43 | L119: Cultura ciudadana para la confianza, la convivencia y la participación desde la vida cotidiana | M119: Propósito 3: Inspirar confianza y legitimidad para vivir sin miedo y ser epicentro de cultura ciudadana, paz y reconciliación | N119: O23011603430000001948 | O119: 1 | P119: 1193034339 | Q119: PABLO DAVID ASPRILLA CALLEJAS | R119: Persona Natural | W119: 26450000 | AA119: 26450000 | AB119: 23536667 | AC119: 2022-01-21 | AD119: 2022-01-24 | AE119: 2023-01-08 | AF119: 345 | AG119: 1 | AH119: 8 | AM119: En ejecucion | AN119: 0.8898550851
A120: FDLUSA-CPS-087-2022 | B120: 2022 | C120: FDLUSA-CPS-087-2022 | D120: https://community.secop.gov.co/Public/Tendering/OpportunityDetail/Index?noticeUID=CO1.NTC.2754561&isFromPublicArea=True&isModal=False | E120: Contratos de prestación de servicios profesionales y de apoyo a la gestión | F120: Contratación directa | G120: Prestación de servicios profesionales y de apoyo a la gestión, o para la ejecución de trabajos artísticos que sólo puedan encomendarse a determinadas personas naturales | H120: PRESTAR LOS SERVICIOS DE APOYO A LA GESTIÓN DE LA ALCALDÍA LOCAL EN EL DESARROLLO DE ESTRATEGIAS DE SEGURIDAD Y CONVIVENCIA, ACOMPA-ÑAMIENTO A LA CIUDADANÍA, SOPORTE LOGÍSTICO Y DIFUSIÓN DE LAS ACTI-VIDADES PROGRAMADAS ZONA DE USAQUÉN, EN EL MARCO DEL PROYECTO "USAQUÉN SEGURA, RESPONSABILIDAD" DE TODOS DEL PLAN DE DESARROLLO LOCAL "USAQUÉN REVERDECE 2021-2024: UN NUEVO CONTRATO SOCIAL Y AMBIENTAL PARA USAQUÉN | I120: Inversión | J120: UN NUEVO CONTRATO SOCIAL Y AMBIENTAL PARA LA BOGOTA DEL SIGLO XXI | K120: 43 | L120: Cultura ciudadana para la confianza, la convivencia y la participación desde la vida cotidiana | M120: Propósito 3: Inspirar confianza y legitimidad para vivir sin miedo y ser epicentro de cultura ciudadana, paz y reconciliación | N120: O23011603430000001948 | O120: 1 | P120: 1072663089 | Q120: EDWIN ANDRES HERNANDEZ YARA | R120: Persona Natural | W120: 13800000 | AA120: 13800000 | AB120: 13800000 | AC120: 2022-01-28 | AD120: 2022-02-01 | AE120: 2022-07-30 | AF120: 180 | AM120: Terminado | AN120: 1
A121: FDLUSA-CPS-088-2022 | B121: 2022 | C121: FDLUSA-CPS-088-2022 | D121: https://community.secop.gov.co/Public/Tendering/OpportunityDetail/Index?noticeUID=CO1.NTC.2740935&isFromPublicArea=True&isModal=False | E121: Contratos de prestación de servicios profesionales y de apoyo a la gestión | F121: Contratación directa | G121: Prestación de servicios profesionales y de apoyo a la gestión, o para la ejecución de trabajos artísticos que sólo puedan encomendarse a determinadas personas naturales | H121: PRESTAR LOS SERVICIOS DE APOYO A LA GESTIÓN DE LA ALCALDÍA LOCAL EN EL DESARROLLO DE ESTRATEGIAS DE SEGURIDAD Y CONVIVENCIA, ACOMPA- ÑAMIENTO A LA CIUDADANÍA, SOPORTE LOGÍSTICO Y DIFUSIÓN DE LAS ACTI-VIDADES PROGRAMADAS ZONA DE USAQUÉN, EN EL MARCO DEL PROYECTO "USAQUÉN SEGURA, RESPONSABILIDAD" DE TODOS DEL PLAN DE DESARROLLO LOCAL "USAQUÉN REVERDECE 2021-2024: UN NUEVO CONTRATO SOCIAL Y AM-BIENTAL PARA USAQUÉN | I121: Inversión | J121: UN NUEVO CONTRATO SOCIAL Y AMBIENTAL PARA LA BOGOTA DEL SIGLO XXI | K121: 43 | L121: Cultura ciudadana para la confianza, la convivencia y la participación desde la vida cotidiana | M121: Propósito 3: Inspirar confianza y legitimidad para vivir sin miedo y ser epicentro de cultura ciudadana, paz y reconciliación | N121: O23011603430000001948 | O121: 1 | P121: 80074804 | Q121: HUGO ALFREDO VELASQUEZ HERNANDEZ | R121: Persona Natural | W121: 13800000 | AA121: 13800000 | AB121: 13800000 | AC121: 2022-01-28 | AD121: 2022-02-07 | AE121: 2022-08-06 | AF121: 180 | AM121: Terminado | AN121: 1
A122: FDLUSA-CPS-089-2022 | B122: 2022 | C122: FDLUSA-CPS-089-2022 | D122: https://community.secop.gov.co/Public/Tendering/OpportunityDetail/Index?noticeUID=CO1.NTC.2666574&isFromPublicArea=True&isModal=False | E122: Contratos de prestación de servicios profesionales y de apoyo a la gestión | F122: Contratación directa | G122: Prestación de servicios profesionales y de apoyo a la gestión, o para la ejecución de trabajos artísticos que sólo puedan encomendarse a determinadas personas naturales | H122: PRESTAR LOS SERVICIOS DE APOYO A LA GESTIÓN DE LA ALCALDÍA LOCAL EN EL DESARROLLO DE ESTRATEGIAS DE SEGURIDAD Y CONVIVENCIA, ACOMPA-ÑAMIENTO A LA CIUDADANÍA, SOPORTE LOGÍSTICO Y DIFUSIÓN DE LAS ACTI-VIDADES PROGRAMADAS ZONA DE USAQUÉN, EN EL MARCO DEL PROYECTO "USAQUÉN SEGURA, RESPONSABILIDAD" DE TODOS DEL PLAN DE DESARROLLO LOCAL "USAQUÉN REVERDECE 2021-2024: UN NUEVO CONTRATO SOCIAL Y AM-BIENTAL PARA USAQUÉN | I122: Inversión | J122: UN NUEVO CONTRATO SOCIAL Y AMBIENTAL PARA LA BOGOTA DEL SIGLO XXI | K122: 43 | L122: Cultura ciudadana para la confianza, la convivencia y la participación desde la vida cotidiana | M122: Propósito 3: Inspirar confianza y legitimidad para vivir sin miedo y ser epicentro de cultura ciudadana, paz y reconciliación | N122: O23011603430000001948 | O122: 1 | P122: 52495704 | Q122: SANDRA PATRICIA MENDIETA PACHON | R122: Persona Natural | W122: 13800000 | AA122: 13800000 | AB122: 13800000 | AC122: 2022-01-23 | AD122: 2022-01-25 | AE122: 2022-07-24 | AF122: 180 | AM122: Terminado | AN122: 1
A123: FDLUSA-CPS-090-2022 | B123: 2022 | C123: FDLUSA-CPS-090-2022 | D123: https://community.secop.gov.co/Public/Tendering/OpportunityDetail/Index?noticeUID=CO1.NTC.2520763&isFromPublicArea=True&isModal=False | E123: Contratos de prestación de servicios profesionales y de apoyo a la gestión | F123: Contratación directa | G123: Prestación de servicios profesionales y de apoyo a la gestión, o para la ejecución de trabajos artísticos que sólo puedan encomendarse a determinadas personas naturales | H123: APOYAR EL (LA) ALCALDE (SA) LOCAL EN LA GESTION DE LOS ASUNTOS RELACIONADOS CON SEGURIDAD CIUDADANA, CONVIVENCIA Y PREVENCION DE CONFLICTIVIDADES, VIOLENCIAS Y DELITOS EN LA LOCALIDAD, DE CONFORMIDAD CON EL MARCO NORMATIVO APLICABLE EN LA MATERIA | I123: Inversión | J123: UN NUEVO CONTRATO SOCIAL Y AMBIENTAL PARA LA BOGOTA DEL SIGLO XXI | K123: 48 | L123: Plataforma institucional para la seguridad y justicia | M123: Propósito 3: Inspirar confianza y legitimidad para vivir sin miedo y ser epicentro de cultura ciudadana, paz y reconciliación | N123: O23011603480000001956 | O123: 1 | P123: 1032416090 | Q123: PEDRO ANÍBAL BUITRAGO RINCÓN | R123: Persona Natural | W123: 97750000 | Y123: 1 | Z123: 8500000 | AA123: 106250000 | AB123: 90100000 | AC123: 2022-01-12 | AD123: 2022-01-13 | AE123: 2023-01-27 | AF123: 345 | AG123: 1 | AH123: 30 | AM123: En ejecucion | AN123: 0.848
A124: FDLUSA-CPS-091-2022 | B124: 2022 | C124: FDLUSA-CPS-091-2022 | D124: https://community.secop.gov.co/Public/Tendering/OpportunityDetail/Index?noticeUID=CO1.NTC.2543132&isFromPublicArea=True&isModal=False | E124: Contratos de prestación de servicios profesionales y de apoyo a la gestión | F124: Contratación directa | G124: Prestación de servicios profesionales y de apoyo a la gestión, o para la ejecución de trabajos artísticos que sólo puedan encomendarse a determinadas personas naturales | H124: PRESTAR LOS SERVICIOS DE APOYO A LA GESTIÓN DE LA ALCALDÍA LOCAL EN EL DESARROLLO DE ACTIVIDADES DE SEGURIDAD Y CONVIVENCIA, ACOMPAÑAMIENTO A LA CIUDADANÍA, PARTICIPACIÓN EN LOS PROCESOS DE PREVENCIÓN DE LAS CONTRAVENCIONES EN LA LOCALIDAD | I124: Inversión | J124: UN NUEVO CONTRATO SOCIAL Y AMBIENTAL PARA LA BOGOTA DEL SIGLO XXI | K124: 48 | L124: Plataforma institucional para la seguridad y justicia | M124: Propósito 3: Inspirar confianza y legitimidad para vivir sin miedo y ser epicentro de cultura ciudadana, paz y reconciliación | N124: O23011603480000001956 | O124: 1 | P124: 7141363 | Q124: ROBERT EFRAIN SARMIENTO VILLAR | R124: Persona Natural | W124: 40250000 | Y124: 2 | Z124: 1997220 | AA124: 42247220 | AB124: 36516667 | AC124: 2022-01-13 | AD124: 2022-01-18 | AE124: 2023-01-19 | AF124: 345 | AG124: 2 | AH124: 19 | AM124: En ejecucion | AN124: 0.8643566843
A125: FDLUSA-CPS-092-2022 | B125: 2022 | C125: FDLUSA-CPS-092-2022 | D125: https://community.secop.gov.co/Public/Tendering/OpportunityDetail/Index?noticeUID=CO1.NTC.2642963&isFromPublicArea=True&isModal=False | E125: Contratos de prestación de servicios profesionales y de apoyo a la gestión | F125: Contratación directa | G125: Prestación de servicios profesionales y de apoyo a la gestión, o para la ejecución de trabajos artísticos que sólo puedan encomendarse a determinadas personas naturales | H125: PRESTAR LOS SERVICIOS PROFESIONALES A LA GESTION DE LA ALCALDIA LOCAL EN EL DESARROLLO DE ACTIVIDADES DE SEGURIDAD Y CONVIVENCIA, ACOMPANAMIENTO A LA CIUDADANIA, PARTICIPACION EN LOS PROCESOS DE PREVENCION DE LAS CONDUCTAS CONTRARIAS AL CODIGO DE POLICIA EN LA LOCALIDAD, IMPULSO Y DINAMIZACION PARA LA EJECUCION DE LOS PROYECTOS DEL COMPONENTE DE SEGURIDAD QUE HACEN PARTE DEL PLAN DE DESARROLLO USAQUEN | I125: Inversión | J125: UN NUEVO CONTRATO SOCIAL Y AMBIENTAL PARA LA BOGOTA DEL SIGLO XXI | K125: 48 | L125: Plataforma institucional para la seguridad y justicia | M125: Propósito 3: Inspirar confianza y legitimidad para vivir sin miedo y ser epicentro de cultura ciudadana, paz y reconciliación | N125: O23011603480000001951 | O125: 1 | P125: 1088307396 | Q125: KEVIN ANDRES GALEANO VARGAS | R125: Persona Natural | W125: 69000000 | Y125: 1 | Z125: 3000000 | AA125: 72000000 | AB125: 60800000 | AC125: 2022-01-21 | AD125: 2022-01-27 | AE125: 2023-01-26 | AF125: 350 | AG125: 1 | AH125: 26 | AM125: En ejecucion | AN125: 0.8444444444
A126: FDLUSA-CPS-093-2022 | B126: 2022 | C126: FDLUSA-CPS-093-2022 | D126: https://community.secop.gov.co/Public/Tendering/OpportunityDetail/Index?noticeUID=CO1.NTC.2639357&isFromPublicArea=True&isModal=False | E126: Contratos de prestación de servicios profesionales y de apoyo a la gestión | F126: Contratación directa | G126: Prestación de servicios profesionales y de apoyo a la gestión, o para la ejecución de trabajos artísticos que sólo puedan encomendarse a determinadas personas naturales | H126: PRESTAR LOS SERVICIOS DE APOYO A LA GESTIÓN DE LA ALCALDÍA LOCAL EN EL DESARROLLO DE ESTRATEGIAS DE SEGURIDAD Y CONVIVENCIA, ACOMPAÑAMIENTO A LA CIUDADANÍA, SOPORTE LOGÍSTICO Y DIFUSIÓN DE LAS ACTIVIDADES PROGRAMADAS EN LAS DIFERENTES ZONA DE USAQUÉN, EN EL MARCO DEL PROYECTO USAQUEN CON ACCESO A LA JUSTICIA | I126: Inversión | J126: UN NUEVO CONTRATO SOCIAL Y AMBIENTAL PARA LA BOGOTA DEL SIGLO XXI | K126: 48 | L126: Plataforma institucional para la seguridad y justicia | M126: Propósito 3: Inspirar confianza y legitimidad para vivir sin miedo y ser epicentro de cultura ciudadana, paz y reconciliación | N126: O23011603480000001951 | O126: 1 | P126: 1031173374 | Q126: CHRISTIAN SANTIAGO HEREDIA PEÑUELA | R126: Persona Natural | W126: 20700000 | Y126: 1 | Z126: 4600000 | AA126: 25300000 | AB126: 23536667 | AC126: 2022-01-22 | AD126: 2022-01-24 | AE126: 2022-12-23 | AF126: 270 | AG126: 1 | AH126: 60 | AM126: Terminado | AN126: 0.9303030435
A127: FDLUSA-CPS-094-2022 | B127: 2022 | C127: FDLUSA-CPS-094-2022 | D127: https://community.secop.gov.co/Public/Tendering/OpportunityDetail/Index?noticeUID=CO1.NTC.2662533&isFromPublicArea=True&isModal=False | E127: Contratos de prestación de servicios profesionales y de apoyo a la gestión | F127: Contratación directa | G127: Prestación de servicios profesionales y de apoyo a la gestión, o para la ejecución de trabajos artísticos que sólo puedan encomendarse a determinadas personas naturales | H127: PRESTAR LOS SERVICIOS DE APOYO A LA GESTIÓN DE LA ALCALDÍA LOCAL EN EL DESARROLLO DE ESTRATEGIAS DE SEGURIDAD Y CONVIVENCIA, ACOMPAÑAMIENTO A LA CIUDADANÍA, SOPORTE LOGÍSTICO Y DIFUSIÓN DE LAS ACTIVIDADES PROGRAMADAS POR LA ALCALDÍA LOCAL. | I127: Inversión | J127: UN NUEVO CONTRATO SOCIAL Y AMBIENTAL PARA LA BOGOTA DEL SIGLO XXI | K127: 48 | L127: Plataforma institucional para la seguridad y justicia | M127: Propósito 3: Inspirar confianza y legitimidad para vivir sin miedo y ser epicentro de cultura ciudadana, paz y reconciliación | N127: O23011603480000001951 | O127: 1 | P127: 80419552 | Q127: HERNAN VANEGAS OCHOA | R127: Persona Natural | W127: 8000000 | AA127: 8000000 | AB127: 8000000 | AC127: 2022-01-24 | AD127: 2022-01-31 | AE127: 2022-06-30 | AF127: 150 | AM127: Terminado | AN127: 1
A128: FDLUSA-CPS-095-2022 | B128: 2022 | C128: FDLUSA-CPS-095-2022 | D128: https://community.secop.gov.co/Public/Tendering/OpportunityDetail/Index?noticeUID=CO1.NTC.2610622&isFromPublicArea=True&isModal=False | E128: Contratos de prestación de servicios profesionales y de apoyo a la gestión | F128: Contratación directa | G128: Prestación de servicios profesionales y de apoyo a la gestión, o para la ejecución de trabajos artísticos que sólo puedan encomendarse a determinadas personas naturales | H128: PRESTAR LOS SERVICIOS DE APOYO A LA GESTION DE LA ALCALDIA LOCAL EN EL DESARROLLO DE ESTRATEGIAS DE SEGURIDAD Y CONVIVENCIA, ACOMPANAMIENTO A LA CIUDADANIA, SOPORTE LOGISTICO Y DIFUSION DE LAS ACTIVIDADES PROGRAMADAS POR LA ALCALDIA LOCAL | I128: Inversión | J128: UN NUEVO CONTRATO SOCIAL Y AMBIENTAL PARA LA BOGOTA DEL SIGLO XXI | K128: 48 | L128: Plataforma institucional para la seguridad y justicia | M128: Propósito 3: Inspirar confianza y legitimidad para vivir sin miedo y ser epicentro de cultura ciudadana, paz y reconciliación | N128: O23011603480000001951 | O128: 1 | P128: 1018508704 | Q128: NAREN FABER OLAYA LESMES | R128: Persona Natural | W128: 8000000 | AA128: 8000000 | AB128: 8000000 | AC128: 2022-01-25 | AD128: 2022-01-27 | AE128: 2022-06-26 | AF128: 150 | AM128: Terminado | AN128: 1
A129: FDLUSA-CPS-096-2022 | B129: 2022 | C129: FDLUSA-CPS-096-2022 | D129: https://community.secop.gov.co/Public/Tendering/OpportunityDetail/Index?noticeUID=CO1.NTC.2704917&isFromPublicArea=True&isModal=False | E129: Contratos de prestación de servicios profesionales y de apoyo a la gestión | F129: Contratación directa | G129: Prestación de servicios profesionales y de apoyo a la gestión, o para la ejecución de trabajos artísticos que sólo puedan encomendarse a determinadas personas naturales | H129: PRESTAR LOS SERVICIOS DE APOYO A LA GESTIÓN DE LA ALCALDÍA LOCAL EN EL DESARROLLO DE ESTRATEGIAS DE SEGURIDAD Y CONVIVENCIA, ACOMPAÑAMIENTO A LA CIUDADANÍA, SOPORTE LOGÍSTICO Y DIFUSIÓN DE LAS ACTIVIDADES PROGRAMADAS POR LA ALCALDÍA LOCAL | I129: Inversión | J129: UN NUEVO CONTRATO SOCIAL Y AMBIENTAL PARA LA BOGOTA DEL SIGLO XXI | K129: 48 | L129: Plataforma institucional para la seguridad y justicia | M129: Propósito 3: Inspirar confianza y legitimidad para vivir sin miedo y ser epicentro de cultura ciudadana, paz y reconciliación | N129: O23011603480000001951 | O129: 1 | P129: 1026281889 | Q129: CLAUDIA YURIANY PAIPA RAMIREZ | R129: Persona Natural | W129: 8000000 | AA129: 8000000 | AB129: 8000000 | AC129: 2022-01-26 | AD129: 2022-02-03 | AE129: 2022-07-02 | AF129: 150 | AM129: Terminado | AN129: 1
A130: FDLUSA-CPS-097-2022 | B130: 2022 | C130: FDLUSA-CPS-097-2022 | D130: https://community.secop.gov.co/Public/Tendering/OpportunityDetail/Index?noticeUID=CO1.NTC.2705379&isFromPublicArea=True&isModal=False | E130: Contratos de prestación de servicios profesionales y de apoyo a la gestión | F130: Contratación directa | G130: Prestación de servicios profesionales y de apoyo a la gestión, o para la ejecución de trabajos artísticos que sólo puedan encomendarse a determinadas personas naturales | H130: PRESTAR LOS SERVICIOS DE APOYO A LA GESTIÓN DE LA ALCALDÍA LOCAL EN EL DESARROLLO DE ESTRATEGIAS DE SEGURIDAD Y CONVIVENCIA, ACOMPAÑAMIENTO A LA CIUDADANÍA, SOPORTE LOGÍSTICO Y DIFUSIÓN DE LAS ACTIVIDADES PROGRAMADAS POR LA ALCALDÍA LOCAL. | I130: Inversión | J130: UN NUEVO CONTRATO SOCIAL Y AMBIENTAL PARA LA BOGOTA DEL SIGLO XXI | K130: 48 | L130: Plataforma institucional para la seguridad y justicia | M130: Propósito 3: Inspirar confianza y legitimidad para vivir sin miedo y ser epicentro de cultura ciudadana, paz y reconciliación | N130: O23011603480000001951 | O130: 1 | P130: 1015458217 | Q130: THALIA ANDREA FAJARDO ALDANA | R130: Persona Natural | W130: 8000000 | AA130: 8000000 | AB130: 8000000 | AC130: 2022-01-26 | AD130: 2022-02-04 | AE130: 2022-07-03 | AF130: 150 | AM130: Terminado | AN130: 1
A131: FDLUSA-CPS-098-2022 | B131: 2022 | C131: FDLUSA-CPS-098-2022 | D131: https://community.secop.gov.co/Public/Tendering/OpportunityDetail/Index?noticeUID=CO1.NTC.2694588&isFromPublicArea=True&isModal=False | E131: Contratos de prestación de servicios profesionales y de apoyo a la gestión | F131: Contratación directa | G131: Prestación de servicios profesionales y de apoyo a la gestión, o para la ejecución de trabajos artísticos que sólo puedan encomendarse a determinadas personas naturales | H131: PRESTAR LOS SERVICIOS DE APOYO A LA GESTION DE LA ALCALDIA LOCAL EN EL DESARROLLO DE ESTRATEGIAS DE SEGURIDAD Y CONVIVENCIA, ACOMPANAMIENTO A LA CIUDADANIA, SOPORTE LOGISTICO Y DIFUSION DE LAS ACTIVIDADES PROGRAMADAS POR LA ALCALDIA LOCAL. | I131: Inversión | J131: UN NUEVO CONTRATO SOCIAL Y AMBIENTAL PARA LA BOGOTA DEL SIGLO XXI | K131: 48 | L131: Plataforma institucional para la seguridad y justicia | M131: Propósito 3: Inspirar confianza y legitimidad para vivir sin miedo y ser epicentro de cultura ciudadana, paz y reconciliación | N131: O23011603480000001951 | O131: 1 | P131: 1030544741 | Q131: JHONNY ALENYIS BARON ORJUELA | R131: Persona Natural | W131: 8000000 | AA131: 8000000 | AB131: 8000000 | AC131: 2022-01-26 | AD131: 2022-01-27 | AE131: 2022-06-26 | AF131: 150 | AM131: Terminado | AN131: 1
A132: FDLUSA-CPS-099-2022 | B132: 2022 | C132: FDLUSA-CPS-099-2022 | D132: https://community.secop.gov.co/Public/Tendering/OpportunityDetail/Index?noticeUID=CO1.NTC.2754669&isFromPublicArea=True&isModal=False | E132: Contratos de prestación de servicios profesionales y de apoyo a la gestión | F132: Contratación directa | G132: Prestación de servicios profesionales y de apoyo a la gestión, o para la ejecución de trabajos artísticos que sólo puedan encomendarse a determinadas personas naturales | H132: PRESTAR LOS SERVICIOS DE APOYO A LA GESTIÓN DE LA ALCALDÍA LOCAL EN EL DESARROLLO DE ESTRATEGIAS DE SEGURIDAD Y CONVIVENCIA, ACOMPAÑAMIENTO A LA CIUDADANÍA, SOPORTE LOGÍSTICO Y DIFUSIÓN DE LAS ACTIVIDADES PROGRAMADAS POR LA ALCALDÍA LOCAL. | I132: Inversión | J132: UN NUEVO CONTRATO SOCIAL Y AMBIENTAL PARA LA BOGOTA DEL SIGLO XXI | K132: 48 | L132: Plataforma institucional para la seguridad y justicia | M132: Propósito 3: Inspirar confianza y legitimidad para vivir sin miedo y ser epicentro de cultura ciudadana, paz y reconciliación | N132: O23011603480000001951 | O132: 1 | P132: 1020830806 | Q132: OSCAR CAMILO GUTIERREZ MORA | R132: Persona Natural | W132: 8000000 | AA132: 8000000 | AB132: 8000000 | AC132: 2022-01-27 | AD132: 2022-02-02 | AE132: 2022-07-01 | AF132: 150 | AM132: Terminado | AN132: 1
A133: FDLUSA-CPS-100-2022 | B133: 2022 | C133: FDLUSA-CPS-100-2022 | D133: https://community.secop.gov.co/Public/Tendering/OpportunityDetail/Index?noticeUID=CO1.NTC.2705605&isFromPublicArea=True&isModal=False | E133: Contratos de prestación de servicios profesionales y de apoyo a la gestión | F133: Contratación directa | G133: Prestación de servicios profesionales y de apoyo a la gestión, o para la ejecución de trabajos artísticos que sólo puedan encomendarse a determinadas personas naturales | H133: PRESTAR LOS SERVICIOS DE APOYO A LA GESTIÓN DE LA ALCALDÍA LOCAL EN EL DESARROLLO DE ESTRATEGIAS DE SEGURIDAD Y CONVIVENCIA, ACOMPAÑAMIENTO A LA CIUDADANÍA, SOPORTE LOGÍSTICO Y DIFUSIÓN DE LAS ACTIVIDADES PROGRAMADAS POR LA ALCALDÍA LOCAL. | I133: Inversión | J133: UN NUEVO CONTRATO SOCIAL Y AMBIENTAL PARA LA BOGOTA DEL SIGLO XXI | K133: 48 | L133: Plataforma institucional para la seguridad y justicia | M133: Propósito 3: Inspirar confianza y legitimidad para vivir sin miedo y ser epicentro de cultura ciudadana, paz y reconciliación | N133: O23011603480000001951 | O133: 1 | P133: 1233694253 | Q133: XAVIER ALEXANDER GAMERO BRAVO | R133: Persona Natural | W133: 8000000 | Y133: 1 | Z133: 3200000 | AA133: 11200000 | AB133: 11200000 | AC133: 2022-01-26 | AD133: 2022-01-27 | AE133: 2022-08-26 | AF133: 150 | AG133: 1 | AH133: 60 | AM133: Terminado | AN133: 1
A134: FDLUSA-CPS-101-2022 | B134: 2022 | C134: FDLUSA-CPS-101-2022 | D134: https://community.secop.gov.co/Public/Tendering/OpportunityDetail/Index?noticeUID=CO1.NTC.2705341&isFromPublicArea=True&isModal=False | E134: Contratos de prestación de servicios profesionales y de apoyo a la gestión | F134: Contratación directa | G134: Prestación de servicios profesionales y de apoyo a la gestión, o para la ejecución de trabajos artísticos que sólo puedan encomendarse a determinadas personas naturales | H134: PRESTAR LOS SERVICIOS DE APOYO A LA GESTION DE LA ALCALDIA LOCAL EN EL DESARROLLO DE ESTRATEGIAS DE SEGURIDAD Y CONVIVENCIA, ACOMPANAMIENTO A LA CIUDADANIA, SOPORTE LOGISTICO Y DIFUSION DE LAS ACTIVIDADES PROGRAMADAS POR LA ALCALDIA LOCAL | I134: Inversión | J134: UN NUEVO CONTRATO SOCIAL Y AMBIENTAL PARA LA BOGOTA DEL SIGLO XXI | K134: 48 | L134: Plataforma institucional para la seguridad y justicia | M134: Propósito 3: Inspirar confianza y legitimidad para vivir sin miedo y ser epicentro de cultura ciudadana, paz y reconciliación | N134: O23011603480000001951 | O134: 1 | P134: 1033752426 | Q134: BRAYAN ESTIVEN ESTUPIÑAN MEJIA | R134: Persona Natural | W134: 8000000 | AA134: 8000000 | AB134: 8000000 | AC134: 2022-01-26 | AD134: 2022-01-27 | AE134: 2022-06-26 | AF134: 150 | AM134: Terminado | AN134: 1
A135: FDLUSA-CPS-102-2022 | B135: 2022 | C135: FDLUSA-CPS-102-2022 | D135: https://community.secop.gov.co/Public/Tendering/OpportunityDetail/Index?noticeUID=CO1.NTC.2755043&isFromPublicArea=True&isModal=False | E135: Contratos de prestación de servicios profesionales y de apoyo a la gestión | F135: Contratación directa | G135: Prestación de servicios profesionales y de apoyo a la gestión, o para la ejecución de trabajos artísticos que sólo puedan encomendarse a determinadas personas naturales | H135: PRESTAR LOS SERVICIOS DE APOYO A LA GESTION DE LA ALCALDIA LOCAL EN EL DESARROLLO DE ESTRATEGIAS DE SEGURIDAD Y CONVIVENCIA, ACOMPANAMIENTO A LA CIUDADANIA, SOPORTE LOGISTICO Y DIFUSION DE LAS ACTIVIDADES PROGRAMADAS POR LA ALCALDIA LOCALPRESTAR LOS SERVICIOS DE APOYO A LA GESTION DE LA ALCALDIA LOCAL EN EL DESARROLLO DE ESTRATEGIAS DE SEGURIDAD Y CONVIVENCIA, ACOMPANAMIENTO A LA CIUDADANIA, SOPORTE LOGISTICO Y DIFUSION DE LAS ACTIVIDADES PROGRAMADAS POR LA ALCALDIA LOCAL | I135: Inversión | J135: UN NUEVO CONTRATO SOCIAL Y AMBIENTAL PARA LA BOGOTA DEL SIGLO XXI | K135: 48 | L135: Plataforma institucional para la seguridad y justicia | M135: Propósito 3: Inspirar confianza y legitimidad para vivir sin miedo y ser epicentro de cultura ciudadana, paz y reconciliación | N135: O23011603480000001951 | O135: 1 | P135: 80195783 | Q135: NICOLÁS OSORIO GALLEGO | R135: Persona Natural | W135: 8000000 | AA135: 8000000 | AB135: 8000000 | AC135: 2022-01-27 | AD135: 2022-02-02 | AE135: 2022-07-01 | AF135: 150 | AM135: Terminado | AN135: 1
A136: FDLUSA-CPS-103-2022 | B136: 2022 | C136: FDLUSA-CPS-103-2022 | D136: https://community.secop.gov.co/Public/Tendering/OpportunityDetail/Index?noticeUID=CO1.NTC.2544196&isFromPublicArea=True&isModal=False | E136: Contratos de prestación de servicios profesionales y de apoyo a la gestión | F136: Contratación directa | G136: Prestación de servicios profesionales y de apoyo a la gestión, o para la ejecución de trabajos artísticos que sólo puedan encomendarse a determinadas personas naturales | H136: PRESTAR LOS SERVICIOS PROFESIONALES A LA GESTIÓN DE LA ALCALDÍA LOCAL EN EL DESARROLLO DE ACTIVIDADES DE SEGURIDAD Y CONVIVENCIA, ACOMPAÑAMIENTO A LA CIUDADANÍA, PARTICIPACIÓN EN LOS PROCESOS DE PREVENCIÓN DE LAS CONDUCTAS CONTRARIAS AL CÓDIGO DE POLICÍA EN LA LOCALIDAD | I136: Inversión | J136: UN NUEVO CONTRATO SOCIAL Y AMBIENTAL PARA LA BOGOTA DEL SIGLO XXI | K136: 48 | L136: Plataforma institucional para la seguridad y justicia | M136: Propósito 3: Inspirar confianza y legitimidad para vivir sin miedo y ser epicentro de cultura ciudadana, paz y reconciliación | N136: O23011603480000001951 | O136: 1 | P136: 1019070983 | Q136: DIANA CAROLINA CAÑON LOPEZ | R136: Persona Natural | W136: 60950000 | Y136: 1 | Z136: 2650000 | AA136: 63600000 | AB136: 55296667 | AC136: 2022-01-13 | AD136: 2022-01-18 | AE136: 2023-01-15 | AF136: 330 | AG136: 1 | AH136: 15 | AI136: 1016042260 | AJ136: VIVIANA PAOLA CASTILLO BONILLA | AK136: 2022-06-22 | AL136: 19759667 | AM136: En ejecucion | AN136: 0.8694444497
A137: FDLUSA-CPS-104-2022 | B137: 2022 | C137: FDLUSA-CPS-104-2022 | D137: https://community.secop.gov.co/Public/Tendering/OpportunityDetail/Index?noticeUID=CO1.NTC.2583822&isFromPublicArea=True&isModal=False | E137: Contratos de prestación de servicios profesionales y de apoyo a la gestión | F137: Contratación directa | G137: Prestación de servicios profesionales y de apoyo a la gestión, o para la ejecución de trabajos artísticos que sólo puedan encomendarse a determinadas personas naturales | H137: PRESTAR LOS SERVICIOS PROFESIONALES A LA ALCALDIA LOCAL DE USAQUEN, EN LA PLANEACION EJECUCION DE LOS PROGRAMAS Y PROYECTOS CONTEMPLADOS EN EL COMPONENTE DE SEGURIDAD PARA LA EJECUCION DE ACTIVIDADES DE PROTECCION DE LAS ZONAS DE RESERVA, BUEN USO Y CUIDADO DEL ESPACIO PUBLICO, CUMPLIMIENTO DE NORMAS DE CONVIVENCIA, PREVENCION DE CONTRAVENCIONES Y DEMAS ASUNTOS DE SEGURIDAD Y CONVIVENCIA DEL PLAN DE DESARROLLO LOCAL 2021-2024" | I137: Inversión | J137: UN NUEVO CONTRATO SOCIAL Y AMBIENTAL PARA LA BOGOTA DEL SIGLO XXI | K137: 48 | L137: Plataforma institucional para la seguridad y justicia | M137: Propósito 3: Inspirar confianza y legitimidad para vivir sin miedo y ser epicentro de cultura ciudadana, paz y reconciliación | N137: O23011603480000001951 | O137: 1 | P137: 1020724030 | Q137: CAMILO ALBERTO DIAZ VARELA | R137: Persona Natural | W137: 31800000 | AA137: 31800000 | AB137: 31800000 | AC137: 2022-01-17 | AD137: 2022-01-24 | AE137: 2022-07-23 | AF137: 180 | AM137: Terminado | AN137: 1
A138: FDLUSA-CPS-105-2022 | B138: 2022 | C138: FDLUSA-CPS-105-2022 | D138: https://community.secop.gov.co/Public/Tendering/OpportunityDetail/Index?noticeUID=CO1.NTC.2624288&isFromPublicArea=True&isModal=False | E138: Contratos de prestación de servicios profesionales y de apoyo a la gestión | F138: Contratación directa | G138: Prestación de servicios profesionales y de apoyo a la gestión, o para la ejecución de trabajos artísticos que sólo puedan encomendarse a determinadas personas naturales | H138: PRESTAR LOS SERVICIOS DE APOYO A LA GESTION DE LA ALCALDIA LOCAL EN EL DESARROLLO DE ACTIVIDADES DE SEGURIDAD Y CONVIVENCIA, ACOMPANAMIENTO A LA CIUDADANIA,PARTICIPACION EN LOS PROCESOS DE PREVENCION DE LAS CONTRAVENCIONES EN LA LOCALIDAD" | I138: Inversión | J138: UN NUEVO CONTRATO SOCIAL Y AMBIENTAL PARA LA BOGOTA DEL SIGLO XXI | K138: 48 | L138: Plataforma institucional para la seguridad y justicia | M138: Propósito 3: Inspirar confianza y legitimidad para vivir sin miedo y ser epicentro de cultura ciudadana, paz y reconciliación | N138: O23011603480000001951 | O138: 1 | P138: 1022407046 | Q138: MICHAEL STIVEN GONZÁLEZ ROMERO | R138: Persona Natural | W138: 40250000 | Y138: 1 | Z138: 3186727 | AA138: 43436727 | AB138: 35350000 | AC138: 2022-01-20 | AD138: 2022-01-28 | AE138: 2023-02-09 | AF138: 350 | AG138: 1 | AH138: 39 | AM138: En ejecucion | AN138: 0.8138274323
A139: FDLUSA-CPS-106-2022 | B139: 2022 | C139: FDLUSA-CPS-106-2022 | D139: https://community.secop.gov.co/Public/Tendering/OpportunityDetail/Index?noticeUID=CO1.NTC.2651390&isFromPublicArea=True&isModal=False | E139: Contratos de prestación de servicios profesionales y de apoyo a la gestión | F139: Contratación directa | G139: Prestación de servicios profesionales y de apoyo a la gestión, o para la ejecución de trabajos artísticos que sólo puedan encomendarse a determinadas personas naturales | H139: PRESTAR LOS SERVICIOS PROFESIONALES ESPECIALIZADOS A LA ALCALDÍA LOCAL DE USAQUÉN PARA APOYAR LA ORIENTACIÓN Y SEGUIMIENTO DE PROCESOS TÉCNICOS Y ADMINISTRATIVOS NECESARIOS PARA LA EJECUCIÓN DE LOS PROYECTOS RELACIONADOS CON INFRAESTRUCTURA VIAL, ESPACIOS PUBLICOS, OBRAS Y DEMÁS | I139: Inversión | J139: UN NUEVO CONTRATO SOCIAL Y AMBIENTAL PARA LA BOGOTA DEL SIGLO XXI | K139: 49 | L139: Movilidad segura, sostenible y accesible | M139: Propósito 4: Hacer de Bogotá Región un modelo de movilidad multimodal, incluyente y sostenible | N139: O23011604490000001954 | O139: 1 | P139: 80851019 | Q139: NELSON LUIS VILLERO GUERRA | R139: Persona Natural | W139: 89700000 | Y139: 1 | Z139: 5460000 | AA139: 95160000 | AB139: 79300000 | AC139: 2022-01-26 | AD139: 2022-01-26 | AE139: 2023-02-01 | AF139: 345 | AG139: 1 | AH139: 31 | AM139: En ejecucion | AN139: 0.8333333333
A140: FDLUSA-CPS-107-2022 | B140: 2022 | C140: FDLUSA-CPS-107-2022 | D140: https://community.secop.gov.co/Public/Tendering/OpportunityDetail/Index?noticeUID=CO1.NTC.2659392&isFromPublicArea=True&isModal=False | E140: Contratos de prestación de servicios profesionales y de apoyo a la gestión | F140: Contratación directa | G140: Prestación de servicios profesionales y de apoyo a la gestión, o para la ejecución de trabajos artísticos que sólo puedan encomendarse a determinadas personas naturales | H140: PRESTAR LOS SERVICIOS PROFESIONALES A LA ALCALDÍA LOCAL DE USAQUÉN APOYANDO LOS PROYECTOS DE INFRAESTRUCTURA ENFOCADOS AL SECTOR MOVILIDAD, MEDIANTE LA REALIZACIÓN DE PROCESOS TÉCNICOS Y DE ATENCIÓN A LA CIUDADANÍA RELACIONADOS CON ESPACIO PÚBLICO | I140: Inversión | J140: UN NUEVO CONTRATO SOCIAL Y AMBIENTAL PARA LA BOGOTA DEL SIGLO XXI | K140: 49 | L140: Movilidad segura, sostenible y accesible | M140: Propósito 4: Hacer de Bogotá Región un modelo de movilidad multimodal, incluyente y sostenible | N140: O23011604490000001954 | O140: 1 | P140: 1013663573 | Q140: NELSON JAVIER RODRIGUEZ RAMIREZ | R140: Persona Natural | W140: 30000000 | AA140: 30000000 | AB140: 30000000 | AC140: 2022-01-23 | AD140: 2022-01-31 | AE140: 2022-07-30 | AF140: 180 | AM140: Terminado | AN140: 1
A141: FDLUSA-CPS-108-2022 | B141: 2022 | C141: FDLUSA-CPS-108-2022 | D141: https://community.secop.gov.co/Public/Tendering/OpportunityDetail/Index?noticeUID=CO1.NTC.2570902&isFromPublicArea=True&isModal=False | E141: Contratos de prestación de servicios profesionales y de apoyo a la gestión | F141: Contratación directa | G141: Prestación de servicios profesionales y de apoyo a la gestión, o para la ejecución de trabajos artísticos que sólo puedan encomendarse a determinadas personas naturales | H141: PRESTAR LOS SERVICIOS PROFESIONALES ESPECIALIZADOS A LA ALCALDÍA LOCAL DE USAQUÉN COMO APOYO EN LA ORIENTACIÓN Y SEGUIMIENTO DE PROCESOS TÉCNICOS Y ADMINISTRATIVOS NECESARIOS PARA LA EJECUCIÓN DE LOS PROYECTOS RELACIONADOS CON INFRAESTRUCTURA VIAL, ESPACIOS PUBLICOS Y DEMÁS REALACIONADOS QUE SE ENCUENTREN CONTEMPLADOS EN EL PLAN DE DESARROLLO LOCAL | I141: Inversión | J141: UN NUEVO CONTRATO SOCIAL Y AMBIENTAL PARA LA BOGOTA DEL SIGLO XXI | K141: 49 | L141: Movilidad segura, sostenible y accesible | M141: Propósito 4: Hacer de Bogotá Región un modelo de movilidad multimodal, incluyente y sostenible | N141: O23011604490000001954 | O141: 1 | P141: 1018417424 | Q141: LAURA CRISTINA RAMIREZ SILVA | R141: Persona Natural | W141: 92000000 | Y141: 1 | Z141: 5333333 | AA141: 97333333 | AB141: 83466667 | AC141: 2022-01-17 | AD141: 2022-01-18 | AE141: 2023-01-22 | AF141: 345 | AG141: 1 | AH141: 22 | AM141: En ejecucion | AN141: 0.8575342529
A142: FDLUSA-CPS-109-2022 | B142: 2022 | C142: FDLUSA-CPS-109-2022 | D142: https://community.secop.gov.co/Public/Tendering/OpportunityDetail/Index?noticeUID=CO1.NTC.2661257&isFromPublicArea=True&isModal=False | E142: Contratos de prestación de servicios profesionales y de apoyo a la gestión | F142: Contratación directa | G142: Prestación de servicios profesionales y de apoyo a la gestión, o para la ejecución de trabajos artísticos que sólo puedan encomendarse a determinadas personas naturales | H142: PRESTAR SUS SERVICIOS PROFESIONALES BRINDANDO APOYO EN LA ESTRUCTURACIÓN Y SEGUIMIENTO DE LOS DIFERENTES PROCESOS CONTRACTUALES, ADMINISTRATIVOS Y MISIONALES DE LA ALCALDÍA LOCAL DE USAQUÉN | I142: Inversión | J142: UN NUEVO CONTRATO SOCIAL Y AMBIENTAL PARA LA BOGOTA DEL SIGLO XXI | K142: 49 | L142: Movilidad segura, sostenible y accesible | M142: Propósito 4: Hacer de Bogotá Región un modelo de movilidad multimodal, incluyente y sostenible | N142: O23011604490000001954 | O142: 1 | P142: 40034014 | Q142: LUZ PATRICIA VARGAS OJEDA | R142: Persona Natural | W142: 36000000 | AA142: 36000000 | AB142: 36000000 | AC142: 2022-01-22 | AD142: 2022-01-26 | AE142: 2022-07-25 | AF142: 180 | AM142: Terminado | AN142: 1
A143: FDLUSA-CPS-110-2022 | B143: 2022 | C143: FDLUSA-CPS-110-2022 | D143: https://community.secop.gov.co/Public/Tendering/OpportunityDetail/Index?noticeUID=CO1.NTC.2572911&isFromPublicArea=True&isModal=False | E143: Contratos de prestación de servicios profesionales y de apoyo a la gestión | F143: Contratación directa | G143: Prestación de servicios profesionales y de apoyo a la gestión, o para la ejecución de trabajos artísticos que sólo puedan encomendarse a determinadas personas naturales | H143: PRESTAR LOS SERVICIOS DE APOYO A LA GESTION EN EL DESARROLLO DE LAS ACTIVIDADES, OPERATIVAS EN LOS TRÁMITES CONTRACTUALES, EN LOS APLICATIVOS SIPSE LOCAL Y SIDEAP DEL AREA DE GESTION DE DESARROLLO LOCAL DEL FDLUSA | I143: Inversión | J143: UN NUEVO CONTRATO SOCIAL Y AMBIENTAL PARA LA BOGOTA DEL SIGLO XXI | K143: 49 | L143: Movilidad segura, sostenible y accesible | M143: Propósito 4: Hacer de Bogotá Región un modelo de movilidad multimodal, incluyente y sostenible | N143: O23011604490000001954 | O143: 1 | P143: 1075313630 | Q143: KAROL VIVIANA VARGAS ALBARRACIN | R143: Persona Natural | W143: 16361646 | AA143: 16361646 | AB143: 16361646 | AC143: 2022-01-17 | AD143: 2022-01-18 | AE143: 2022-07-17 | AF143: 180 | AM143: Terminado | AN143: 1
A144: FDLUSA-CPS-111-2022 | B144: 2022 | C144: FDLUSA-CPS-111-2022 | D144: https://community.secop.gov.co/Public/Tendering/OpportunityDetail/Index?noticeUID=CO1.NTC.2535213&isFromPublicArea=True&isModal=False | E144: Contratos de prestación de servicios profesionales y de apoyo a la gestión | F144: Contratación directa | G144: Prestación de servicios profesionales y de apoyo a la gestión, o para la ejecución de trabajos artísticos que sólo puedan encomendarse a determinadas personas naturales | H144: PRESTAR LOS SERVICIOS PROFESIONALES A LA ALCALDÍA LOCAL DE USAQUÉN APOYANDO LOS PROYECTOS DE INFRAESTRUCTURA ENFOCADOS AL SECTOR MOVILIDAD, MEDIANTE LA REALIZACIÓN DE PROCESOS TÉCNICOS Y DE ATENCIÓN A LA CIUDADANÍA RELACIONADOS CON ESPACIO PÚBLICO | I144: Inversión | J144: UN NUEVO CONTRATO SOCIAL Y AMBIENTAL PARA LA BOGOTA DEL SIGLO XXI | K144: 49 | L144: Movilidad segura, sostenible y accesible | M144: Propósito 4: Hacer de Bogotá Región un modelo de movilidad multimodal, incluyente y sostenible | N144: O23011604490000001954 | O144: 1 | P144: 1010202084 | Q144: ZAIDA MARYELINE SARMIENTO CARDENAS | R144: Persona Natural | W144: 53159670 | Y144: 1 | Z144: 2311290 | AA144: 55470960 | AB144: 48383004 | AC144: 2022-01-12 | AD144: 2022-01-17 | AE144: 2023-01-16 | AF144: 345 | AG144: 1 | AH144: 16 | AM144: En ejecucion | AN144: =IF(ISERROR(AB144/AA144),"-",(AB144/AA144)) -> 0.8722222222
A145: FDLUSA-CPS-112-2022 | B145: 2022 | C145: FDLUSA-CPS-112-2022 | D145: https://community.secop.gov.co/Public/Tendering/OpportunityDetail/Index?noticeUID=CO1.NTC.2571118&isFromPublicArea=True&isModal=False | E145: Contratos de prestación de servicios profesionales y de apoyo a la gestión | F145: Contratación directa | G145: Prestación de servicios profesionales y de apoyo a la gestión, o para la ejecución de trabajos artísticos que sólo puedan encomendarse a determinadas personas naturales | H145: PRESTAR LOS SERVICIOS PROFESIONALES ESPECIALIZADOS A LA ALCALDÍA LOCAL DE USAQUÉN PARA EL DESARROLLO DE LAS ACTUACIONES ADMINISTRATIVAS Y JURIDICAS RELACIONADAS CON LA CONTRATACIÓN DE LA ENTIDAD PARA SU NORMAL FUNCIONAMIENTO | I145: Inversión | J145: UN NUEVO CONTRATO SOCIAL Y AMBIENTAL PARA LA BOGOTA DEL SIGLO XXI | K145: 49 | L145: Movilidad segura, sostenible y accesible | M145: Propósito 4: Hacer de Bogotá Región un modelo de movilidad multimodal, incluyente y sostenible | N145: O23011604490000001954 | O145: 1 | P145: 1010167556 | Q145: JULIETH TATIANA SANCHEZ CASTILLO | R145: Persona Natural | W145: 67500000 | Y145: 1 | Z145: 22500000 | AA145: 90000000 | AB145: 78250000 | AC145: 2022-01-17 | AD145: 2022-01-18 | AE145: 2023-01-17 | AF145: 270 | AG145: 1 | AH145: 90 | AM145: En ejecucion | AN145: 0.8694444444
A146: FDLUSA-CPS-113-2022 | B146: 2022 | C146: FDLUSA-CPS-113-2022 | D146: https://community.secop.gov.co/Public/Tendering/OpportunityDetail/Index?noticeUID=CO1.NTC.2695741&isFromPublicArea=True&isModal=False | E146: Contratos de prestación de servicios profesionales y de apoyo a la gestión | F146: Contratación directa | G146: Prestación de servicios profesionales y de apoyo a la gestión, o para la ejecución de trabajos artísticos que sólo puedan encomendarse a determinadas personas naturales | H146: PRESTAR LOS SERVICIOS PROFESIONALES A LA ALCALDIA LOCAL DE USAQUEN EN EL ACOMPAÑAMIENTO TÉCNICO DE LOS ASUNTOS RELACIONADOS CON INFRAESTRUCTURA DE PARQUES, ZONAS DE RECREACION, EMBELLECIMIENTO Y ORNATO QUE SE ADELANTEN EN LA LOCALIDAD | I146: Inversión | J146: UN NUEVO CONTRATO SOCIAL Y AMBIENTAL PARA LA BOGOTA DEL SIGLO XXI | K146: 33 | L146: Más árboles y más y mejor espacio público | M146: Propósito 2 : Cambiar Nuestros Hábitos de Vida para Reverdecer a Bogotá y Adaptarnos y Mitigar la Crisis Climática | N146: O23011602330000001945 | O146: 1 | P146: 1020827898 | Q146: CRISTHIAN CAMILO MONROY ORTIZ | R146: Persona Natural | W146: 27735480 | AA146: 27735480 | AB146: 27735480 | AC146: 2022-01-25 | AD146: 2022-01-26 | AE146: 2022-07-25 | AF146: 180 | AM146: Terminado | AN146: 1
A147: FDLUSA-CPS-114-2022 | B147: 2022 | C147: FDLUSA-CPS-114-2022 | D147: https://community.secop.gov.co/Public/Tendering/OpportunityDetail/Index?noticeUID=CO1.NTC.2532022&isFromPublicArea=True&isModal=False | E147: Contratos de prestación de servicios profesionales y de apoyo a la gestión | F147: Contratación directa | G147: Prestación de servicios profesionales y de apoyo a la gestión, o para la ejecución de trabajos artísticos que sólo puedan encomendarse a determinadas personas naturales | H147: PRESTAR LOS SERVICIOS PROFESIONALES A LA ALCALDIA LOCAL DE USAQUEN EN EL ACOMPAÑAMIENTO TÉCNICO DE LOS ASUNTOS RELACIONADOS CON INFRAESTRUCTURA DE PARQUES, ZONAS DE RECREACION, EMBELLECIMIENTO Y ORNATO QUE SE ADELANTEN EN LA LOCALIDAD | I147: Inversión | J147: UN NUEVO CONTRATO SOCIAL Y AMBIENTAL PARA LA BOGOTA DEL SIGLO XXI | K147: 33 | L147: Más árboles y más y mejor espacio público | M147: Propósito 2 : Cambiar Nuestros Hábitos de Vida para Reverdecer a Bogotá y Adaptarnos y Mitigar la Crisis Climática | N147: O23011602330000001945 | O147: 1 | P147: 37393885 | Q147: MONICA ANDREA MALDONADO ROJAS | R147: Persona Natural | W147: 69000000 | Y147: 1 | Z147: 2533333 | AA147: 71533333 | AB147: 63400000 | AC147: 2022-01-12 | AD147: 2022-01-14 | AE147: 2023-01-11 | AF147: 345 | AG147: 1 | AH147: 13 | AM147: En ejecucion | AN147: 0.8863000973
A148: FDLUSA-CPS-115-2022 | B148: 2022 | C148: FDLUSA-CPS-115-2022 | D148: https://community.secop.gov.co/Public/Tendering/OpportunityDetail/Index?noticeUID=CO1.NTC.2639554&isFromPublicArea=True&isModal=False | E148: Contratos de prestación de servicios profesionales y de apoyo a la gestión | F148: Contratación directa | G148: Prestación de servicios profesionales y de apoyo a la gestión, o para la ejecución de trabajos artísticos que sólo puedan encomendarse a determinadas personas naturales | H148: PRESTAR LOS SERVICIOS DE APOYO A LA ALCALDIA LOCAL DE USAQUEN EN EL ACOMPAÑAMIENTO TÉCNICO DE LOS ASUNTOS RELACIONADOS CON INFRAESTRUCTURA DE PARQUES, ZONAS DE RECREACION, EMBELLECIMIENTO Y ORNATO QUE SE ADELANTEN EN LA LOCALIDAD | I148: Inversión | J148: UN NUEVO CONTRATO SOCIAL Y AMBIENTAL PARA LA BOGOTA DEL SIGLO XXI | K148: 33 | L148: Más árboles y más y mejor espacio público | M148: Propósito 2 : Cambiar Nuestros Hábitos de Vida para Reverdecer a Bogotá y Adaptarnos y Mitigar la Crisis Climática | N148: O23011602330000001945 | O148: 1 | P148: 1018482756 | Q148: FREDY EDUARDO SANCHEZ ALARCON | R148: Persona Natural | W148: 43700000 | AA148: =+W148+X148+Z148 -> 43700000 | AB148: 38886667 | AC148: 2022-01-21 | AD148: 2022-01-24 | AE148: 2023-01-08 | AF148: 345 | AG148: 1 | AH148: 8 | AM148: En ejecucion | AN148: 0.8898550801
A149: FDLUSA-CPS-116-2022 | B149: 2022 | C149: FDLUSA-CPS-116-2022 | D149: https://community.secop.gov.co/Public/Tendering/OpportunityDetail/Index?noticeUID=CO1.NTC.2651297&isFromPublicArea=True&isModal=False | E149: Contratos de prestación de servicios profesionales y de apoyo a la gestión | F149: Contratación directa | G149: Prestación de servicios profesionales y de apoyo a la gestión, o para la ejecución de trabajos artísticos que sólo puedan encomendarse a determinadas personas naturales | H149: PRESTAR LOS SERVICIOS PROFESIONALES COMO ABOGADO PARA APOYAR JURÍDICAMENTE EL DESARROLLO DE LOS PROCESOS CONTRACTUALES Y EL SEGUIMIENTO JURIDICO PROCESOS ADMINISTRATIVOS DEL FONDO DE DESARROLLO LOCAL DE USAQUÉN | I149: Inversión | J149: UN NUEVO CONTRATO SOCIAL Y AMBIENTAL PARA LA BOGOTA DEL SIGLO XXI | K149: 20 | L149: Bogotá, referente en cultura, deporte, recreación y actividad física, con parques para el desarrollo y la salud | M149: Propósito 1: Hacer un nuevo contrato social para incrementar la inclusión social, productiva y política | N149: O23011601200000001939 | O149: 1 | P149: 1065600211 | Q149: JOSE IGNACIO LARA LOPEZ | R149: Persona Natural | W149: 33000000 | AA149: 33000000 | AB149: 33000000 | AC149: 2022-01-22 | AD149: 2022-01-24 | AE149: 2022-07-23 | AF149: 180 | AM149: Terminado | AN149: 1
A150: FDLUSA-CPS-117-2022 | B150: 2022 | C150: FDLUSA-CPS-117-2022 | D150: https://community.secop.gov.co/Public/Tendering/OpportunityDetail/Index?noticeUID=CO1.NTC.2675706&isFromPublicArea=True&isModal=False | E150: Contratos de prestación de servicios profesionales y de apoyo a la gestión | F150: Contratación directa | G150: Prestación de servicios profesionales y de apoyo a la gestión, o para la ejecución de trabajos artísticos que sólo puedan encomendarse a determinadas personas naturales | H150: PRESTAR LOS SERVICIOS PROFESIONALES PARA APOYAR LAS ACTIVIDADES DE DESARROLLO Y SEGUIMIENTO DEL PROYECTO DE INVERSIÓN "1939 USAQUÉN DEPORTIVA Y RECREATIVA | I150: Inversión | J150: UN NUEVO CONTRATO SOCIAL Y AMBIENTAL PARA LA BOGOTA DEL SIGLO XXI | K150: 20 | L150: Bogotá, referente en cultura, deporte, recreación y actividad física, con parques para el desarrollo y la salud | M150: Propósito 1: Hacer un nuevo contrato social para incrementar la inclusión social, productiva y política | N150: O23011601200000001939 | O150: 1 | P150: 80135764 | Q150: JUAN PABLO CAMARGO TIRANO | R150: Persona Natural | W150: 27735480 | AA150: 27735480 | AB150: 27735480 | AC150: 2022-01-23 | AD150: 2022-01-26 | AE150: 2022-07-25 | AF150: 180 | AM150: Terminado | AN150: 1
A151: FDLUSA-CPS-118-2022 | B151: 2022 | C151: FDLUSA-CPS-118-2022 | D151: https://community.secop.gov.co/Public/Tendering/OpportunityDetail/Index?noticeUID=CO1.NTC.2651011&isFromPublicArea=True&isModal=False | E151: Contratos de prestación de servicios profesionales y de apoyo a la gestión | F151: Contratación directa | G151: Prestación de servicios profesionales y de apoyo a la gestión, o para la ejecución de trabajos artísticos que sólo puedan encomendarse a determinadas personas naturales | H151: PRESTAR LOS SERVICIOS TÉCNICOS PARA POYAR LAS DIFERENTES ACTIVIDADES NECESARIAS PARA LA EJECUCIÓN DEL PROYECTO 1939 "USAQUÉN DEPORTIVA Y RECREATIVA". - META CAPACITAR 680 PERSONAS EN LOS CAMPOS DEPORTIVOS | I151: Inversión | J151: UN NUEVO CONTRATO SOCIAL Y AMBIENTAL PARA LA BOGOTA DEL SIGLO XXI | K151: 20 | L151: Bogotá, referente en cultura, deporte, recreación y actividad física, con parques para el desarrollo y la salud | M151: Propósito 1: Hacer un nuevo contrato social para incrementar la inclusión social, productiva y política | N151: O23011601200000001939 | O151: 1 | P151: 1007412469 | Q151: DAVID ALEJANDRO ALMANZA HERNANDEZ | R151: Persona Natural | W151: 39100000 | AA151: 39100000 | AB151: 34566667 | AC151: 2022-01-22 | AD151: 2022-01-26 | AE151: 2023-01-10 | AF151: 345 | AG151: 1 | AH151: 10 | AM151: En ejecucion | AN151: 0.8840579795
A152: FDLUSA-CPS-119-2022 | B152: 2022 | C152: FDLUSA-CPS-119-2022 | D152: https://community.secop.gov.co/Public/Tendering/OpportunityDetail/Index?noticeUID=CO1.NTC.2639867&isFromPublicArea=True&isModal=False | E152: Contratos de prestación de servicios profesionales y de apoyo a la gestión | F152: Contratación directa | G152: Prestación de servicios profesionales y de apoyo a la gestión, o para la ejecución de trabajos artísticos que sólo puedan encomendarse a determinadas personas naturales | H152: PRESTAR LOS SERVICIOS PROFESIONALES REALIZANDO LAS ACTIVIDADES CONCERNIENTES AL DESARROLLO SEGUIMIENTO Y EVALUACIÓN DEL PROYECTO "1939 USAQUÉN DEPORTIVA Y RECREATIVA | I152: Inversión | J152: UN NUEVO CONTRATO SOCIAL Y AMBIENTAL PARA LA BOGOTA DEL SIGLO XXI | K152: 20 | L152: Bogotá, referente en cultura, deporte, recreación y actividad física, con parques para el desarrollo y la salud | M152: Propósito 1: Hacer un nuevo contrato social para incrementar la inclusión social, productiva y política | N152: O23011601200000001939 | O152: 1 | P152: 1032406798 | Q152: CESAR ALEJANDRO VALLEJO DIAZ | R152: Persona Natural | W152: 69000000 | Y152: 1 | Z152: 4000000 | AA152: 73000000 | AB152: 61400000 | AC152: 2022-01-21 | AD152: 2022-01-24 | AE152: 2023-01-28 | AF152: 345 | AG152: 1 | AH152: 28 | AM152: En ejecucion | AN152: 0.8410958904
A153: FDLUSA-CPS-120-2022 | B153: 2022 | C153: FDLUSA-CPS-120-2022 | D153: https://community.secop.gov.co/Public/Tendering/OpportunityDetail/Index?noticeUID=CO1.NTC.2699759&isFromPublicArea=True&isModal=False | E153: Contratos de prestación de servicios profesionales y de apoyo a la gestión | F153: Contratación directa | G153: Prestación de servicios profesionales y de apoyo a la gestión, o para la ejecución de trabajos artísticos que sólo puedan encomendarse a determinadas personas naturales | H153: PRESTAR LOS SERVICIOS PROFESIONALES A LA ALCALDÍA LOCAL DE USAQUÉN EN LA ORGANIZACIÓN, ARTICULACIÓN, ACOMPAÑAMIENTO Y SEGUIMIENTO A LOS PROCESOS, DIFERENTES PROGRAMAS Y PROYECTOS DE INVERSIÓN DEL PLAN DE DESARROLLO LOCAL PARA GARANTIZAR EL DESARROLLO DE LAS ETAPAS PRECONTRACTUAL, CONTRACTUAL Y POS CONTRACTUAL, CON EL FIN DE QUE ESTOS SE REALICEN CUMPLIENDO CON LOS ELEMENTOS Y ETAPAS DENTRO DE LOS TÉRMINOS, PROCEDIMIENTOS Y NORMATIVIDAD ESTABLECIDA - META: REALIZAR 4 ESTRATEGIAS DE FORTALECIMIENT | I153: Inversión | J153: UN NUEVO CONTRATO SOCIAL Y AMBIENTAL PARA LA BOGOTA DEL SIGLO XXI | K153: 57 | L153: Gestión pública local | M153: Propósito 5: Construir Bogotá - Región con gobierno abierto, transparente y ciudadanía consciente | N153: O23011605570000001949 | O153: 1 | P153: 7163250 | Q153: GONZALO ARMANDO CARRERO VILLAMIL | R153: Persona Natural | W153: 46800000 | Y153: 1 | Z153: 15600000 | AA153: 62400000 | AB153: 52520000 | AC153: 2022-01-25 | AD153: 2022-01-28 | AE153: 2023-01-27 | AF153: 270 | AG153: 1 | AH153: 90 | AM153: En ejecucion | AN153: 0.8416666667
A154: FDLUSA-CPS-121-2022 | B154: 2022 | C154: FDLUSA-CPS-121-2022 | D154: https://community.secop.gov.co/Public/Tendering/OpportunityDetail/Index?noticeUID=CO1.NTC.2599748&isFromPublicArea=True&isModal=False | E154: Contratos de prestación de servicios profesionales y de apoyo a la gestión | F154: Contratación directa | G154: Prestación de servicios profesionales y de apoyo a la gestión, o para la ejecución de trabajos artísticos que sólo puedan encomendarse a determinadas personas naturales | H154: APOYAR TÉCNICAMENTE A LOS RESPONSABLES E INTEGRANTES DE LOS PROCESOS EN LA IMPLEMENTACIÓN DE HERRAMIENTAS DE GESTIÓN, SIGUIENDO LOS LINEAMIENTOS METODOLÓGICOS ESTABLECIDOS POR LA OFICINA ASESORA DE PLANEACIÓN DE LA SECRETARÍA DISTRITAL DE GOBIERNO. | I154: Inversión | J154: UN NUEVO CONTRATO SOCIAL Y AMBIENTAL PARA LA BOGOTA DEL SIGLO XXI | K154: 57 | L154: Gestión pública local | M154: Propósito 5: Construir Bogotá - Región con gobierno abierto, transparente y ciudadanía consciente | N154: O23011605570000001949 | O154: 1 | P154: 80859383 | Q154: CAMILO DIAZ TOVAR | R154: Persona Natural | W154: 36000000 | AA154: 36000000 | AB154: 36000000 | AC154: 2022-01-18 | AD154: 2022-01-21 | AE154: 2022-07-20 | AF154: 180 | AM154: Terminado | AN154: 1
A155: FDLUSA-CPS-122-2022 | B155: 2022 | C155: FDLUSA-CPS-122-2022 | D155: https://community.secop.gov.co/Public/Tendering/OpportunityDetail/Index?noticeUID=CO1.NTC.2530289&isFromPublicArea=True&isModal=False | E155: Contratos de prestación de servicios profesionales y de apoyo a la gestión | F155: Contratación directa | G155: Prestación de servicios profesionales y de apoyo a la gestión, o para la ejecución de trabajos artísticos que sólo puedan encomendarse a determinadas personas naturales | H155: PRESTAR LOS SERVICIOS PROFESIONALES PARA APOYAR LOS PROCESOS DE PLANEACIÓN, EJECUCIÓN Y SEGUIMIENTO DE ACTIVIDADES DE LOS PROCESOS Y PROYECTOS DE INVERSIÓN DEL PLAN DE DESARROLLO LOCAL DE USAQUÉN, DE ACUERDO CON LOS PROCEDIMIENTOS, LINEAMIENTOS ESTABLECIDOS Y LA NORMATIVIDAD VIGENTE - META: REALIZAR 4 ESTRATEGIAS DE FORTALECIMIENTO INSTITUCIONAL | I155: Inversión | J155: UN NUEVO CONTRATO SOCIAL Y AMBIENTAL PARA LA BOGOTA DEL SIGLO XXI | K155: 57 | L155: Gestión pública local | M155: Propósito 5: Construir Bogotá - Región con gobierno abierto, transparente y ciudadanía consciente | N155: O23011605570000001949 | O155: 1 | P155: 1020793728 | Q155: LINA PAOLA CARO PORRAS | R155: Persona Natural | W155: 58500000 | X155: -58500000 | AA155: 0 | AB155: 0 | AC155: 2022-01-12 | AD155: 2022-01-31 | AE155: 2022-01-31 | AF155: 0 | AM155: Terminado | AN155: -
A156: FDLUSA-CPS-123-2022 | B156: 2022 | C156: FDLUSA-CPS-123-2022 | D156: https://community.secop.gov.co/Public/Tendering/OpportunityDetail/Index?noticeUID=CO1.NTC.2678698&isFromPublicArea=True&isModal=False | E156: Contratos de prestación de servicios profesionales y de apoyo a la gestión | F156: Contratación directa | G156: Prestación de servicios profesionales y de apoyo a la gestión, o para la ejecución de trabajos artísticos que sólo puedan encomendarse a determinadas personas naturales | H156: PRESTAR LOS SERVICIOS PROFESIONALES PARA APOYAR A LA ALCALDÍA LOCAL DE USAQUÉN EN LA ADMINISTRACIÓN Y SOPORTE DE LA ESTRUCTURA TECNOLÓGICA DE PROPIEDAD Y CUSTODIA DEL FONDO DE DESARROLLO LOCAL DE USAQUÉN, ASÍ COMO APOYAR LOS PROCESOS DE FORMULACIÓN Y EJECUCIÓN DE PROYECTOS TIC | I156: Inversión | J156: UN NUEVO CONTRATO SOCIAL Y AMBIENTAL PARA LA BOGOTA DEL SIGLO XXI | K156: 57 | L156: Gestión pública local | M156: Propósito 5: Construir Bogotá - Región con gobierno abierto, transparente y ciudadanía consciente | N156: O23011605570000001949 | O156: 1 | P156: 1019033686 | Q156: EDGAR ALBERTO LEON MEDINA | R156: Persona Natural | W156: 46800000 | Y156: 1 | Z156: 15600000 | AA156: 62400000 | AB156: 52520000 | AC156: 2022-01-24 | AD156: 2022-01-28 | AE156: 2023-01-27 | AF156: 270 | AG156: 1 | AH156: 90 | AM156: En ejecucion | AN156: 0.8416666667
A157: FDLUSA-CPS-124-2022 | B157: 2022 | C157: FDLUSA-CPS-124-2022 | D157: https://community.secop.gov.co/Public/Tendering/OpportunityDetail/Index?noticeUID=CO1.NTC.2636457&isFromPublicArea=True&isModal=False | E157: Contratos de prestación de servicios profesionales y de apoyo a la gestión | F157: Contratación directa | G157: Prestación de servicios profesionales y de apoyo a la gestión, o para la ejecución de trabajos artísticos que sólo puedan encomendarse a determinadas personas naturales | H157: APOYAR Y DAR SOPORTE TÉCNICO AL ADMINISTRADOR Y USUARIO FINAL DE LA RED DE SISTEMAS Y TECNOLOGÍA E INFORMACIÓN DE LA ALCALDÍA LOCAL | I157: Inversión | J157: UN NUEVO CONTRATO SOCIAL Y AMBIENTAL PARA LA BOGOTA DEL SIGLO XXI | K157: 57 | L157: Gestión pública local | M157: Propósito 5: Construir Bogotá - Región con gobierno abierto, transparente y ciudadanía consciente | N157: O23011605570000001949 | O157: 1 | P157: 79536048 | Q157: CARLOS EDUARDO BARRAGAN PLAZAS | R157: Persona Natural | W157: 36000000 | Y157: 2 | Z157: 8000000 | AA157: 44000000 | AB157: 40400000 | AC157: 2022-01-22 | AD157: 2022-01-28 | AE157: 2022-12-27 | AF157: 270 | AG157: 2 | AH157: 60 | AM157: Terminado | AN157: 0.9181818182
A158: FDLUSA-CPS-125-2022 | B158: 2022 | C158: FDLUSA-CPS-125-2022 | D158: https://community.secop.gov.co/Public/Tendering/OpportunityDetail/Index?noticeUID=CO1.NTC.2715491&isFromPublicArea=True&isModal=False | E158: Contratos de prestación de servicios profesionales y de apoyo a la gestión | F158: Contratación directa | G158: Prestación de servicios profesionales y de apoyo a la gestión, o para la ejecución de trabajos artísticos que sólo puedan encomendarse a determinadas personas naturales | H158: PRESTAR SUS SERVICIOS DE APOYO A LA GESTIÓN A LA ALCALDÍA LOCAL DE USAQUEN EN LOS PROCESOS DE ENTRADA Y SALIDA DE CORRESPONDENCIA, EJECUTANDO LOS PROCESOS ADMINISTRATIVOS DE LA ENTIDAD PARA SU CONTROL Y VERIFICACIÓN | I158: Inversión | J158: UN NUEVO CONTRATO SOCIAL Y AMBIENTAL PARA LA BOGOTA DEL SIGLO XXI | K158: 57 | L158: Gestión pública local | M158: Propósito 5: Construir Bogotá - Región con gobierno abierto, transparente y ciudadanía consciente | N158: O23011605570000001949 | O158: 1 | P158: 1022401679 | Q158: WENDY YURANI ESCUDERO TOBON | R158: Persona Natural | W158: 16361646 | AA158: 16361646 | AB158: 16361646 | AC158: 2022-01-26 | AD158: 2022-02-01 | AE158: 2022-07-30 | AF158: 180 | AM158: Terminado | AN158: 1
A159: FDLUSA-CPS-126-2022 | B159: 2022 | C159: FDLUSA-CPS-126-2022 | D159: https://community.secop.gov.co/Public/Tendering/OpportunityDetail/Index?noticeUID=CO1.NTC.2678899&isFromPublicArea=True&isModal=False | E159: Contratos de prestación de servicios profesionales y de apoyo a la gestión | F159: Contratación directa | G159: Prestación de servicios profesionales y de apoyo a la gestión, o para la ejecución de trabajos artísticos que sólo puedan encomendarse a determinadas personas naturales | H159: PRESTAR SUS SERVICIOS DE APOYO A LA GESTIÓN EN EL PROCESO DE ATENCIÓN, RECEPCIÓN, RADICACIÓN, NOTIFICACIÓN Y ENTREGA DE LA CORRESPONDENCIA INTERNA Y EXTERNA Y CONTROL DE DERECHOS DE PETICIÓN DE LA ALCALDÍA LOCAL DE USAQUÉN | I159: Inversión | J159: UN NUEVO CONTRATO SOCIAL Y AMBIENTAL PARA LA BOGOTA DEL SIGLO XXI | K159: 57 | L159: Gestión pública local | M159: Propósito 5: Construir Bogotá - Región con gobierno abierto, transparente y ciudadanía consciente | N159: O23011605570000001949 | O159: 1 | P159: 1057597664 | Q159: WENDY YINETH LINARES RINCON | R159: Persona Natural | W159: 18000000 | AA159: 18000000 | AB159: 18000000 | AC159: 2022-01-24 | AD159: 2022-01-28 | AE159: 2022-07-27 | AF159: 180 | AM159: Terminado | AN159: 1
A160: FDLUSA-CPS-127-2022 | B160: 2022 | C160: FDLUSA-CPS-127-2022 | D160: https://community.secop.gov.co/Public/Tendering/OpportunityDetail/Index?noticeUID=CO1.NTC.2637551&isFromPublicArea=True&isModal=False | E160: Contratos de prestación de servicios profesionales y de apoyo a la gestión | F160: Contratación directa | G160: Prestación de servicios profesionales y de apoyo a la gestión, o para la ejecución de trabajos artísticos que sólo puedan encomendarse a determinadas personas naturales | H160: PRESTAR LOS SERVICIOS PROFESIONALES EN EL APOYO A LA IMPLEMENTACIÓN DE LAS DIFERENTES ACCIONES Y LINEAMIENTOS TÉCNICOS PARA EL PROGRAMA DE GESTIÓN DOCUMENTAL Y DEMÁS INSTRUMENTOS TÉCNICOS ARCHIVÍSTICOS REQUERIDOS EN LA ALCALDÍA LOCAL DE USAQUÉN | I160: Inversión | J160: UN NUEVO CONTRATO SOCIAL Y AMBIENTAL PARA LA BOGOTA DEL SIGLO XXI | K160: 57 | L160: Gestión pública local | M160: Propósito 5: Construir Bogotá - Región con gobierno abierto, transparente y ciudadanía consciente | N160: O23011605570000001949 | O160: 1 | P160: 1022937473 | Q160: YESENIA SANTAMARIA SUAREZ | R160: Persona Natural | W160: 27735480 | Y160: 2 | Z160: 9245160 | AA160: 36980640 | AB160: 36980640 | AC160: 2022-01-21 | AD160: 2022-01-24 | AE160: 2022-09-23 | AF160: 180 | AG160: 2 | AH160: 60 | AM160: Terminado | AN160: 1
A161: FDLUSA-CPS-128-2022 | B161: 2022 | C161: FDLUSA-CPS-128-2022 | D161: https://community.secop.gov.co/Public/Tendering/OpportunityDetail/Index?noticeUID=CO1.NTC.2639587&isFromPublicArea=True&isModal=False | E161: Contratos de prestación de servicios profesionales y de apoyo a la gestión | F161: Contratación directa | G161: Prestación de servicios profesionales y de apoyo a la gestión, o para la ejecución de trabajos artísticos que sólo puedan encomendarse a determinadas personas naturales | H161: APOYAR LA GESTIÓN DOCUMENTAL DE LA ALCALDÍA LOCAL EN LA IMPLEMENTACIÓN DE LOS PROCESOS DE CLASIFICACIÓN, ORDENACIÓN, SELECCIÓN NATURAL, FOLIACIÓN, IDENTIFICACIÓN, LEVANTAMIENTO DE INVENTARIOS, ALMACENAMIENTO Y APLICACIÓN DE PROTOCOLOS DE ELIMINACIÓN Y TRANSFERENCIAS DOCUMENTALES | I161: Inversión | J161: UN NUEVO CONTRATO SOCIAL Y AMBIENTAL PARA LA BOGOTA DEL SIGLO XXI | K161: 57 | L161: Gestión pública local | M161: Propósito 5: Construir Bogotá - Región con gobierno abierto, transparente y ciudadanía consciente | N161: O23011605570000001949 | O161: 1 | P161: 1013673626 | Q161: SANTIAGO ANDRES PATIÑO HERNANDEZ | R161: Persona Natural | W161: 16361646 | AA161: 16361646 | AB161: 16361646 | AC161: 2022-01-21 | AD161: 2022-01-25 | AE161: 2022-07-24 | AF161: 180 | AM161: Terminado | AN161: 1
A162: FDLUSA-CPS-129-2022 | B162: 2022 | C162: FDLUSA-CPS-129-2022 | D162: https://community.secop.gov.co/Public/Tendering/OpportunityDetail/Index?noticeUID=CO1.NTC.2531455&isFromPublicArea=True&isModal=False | E162: Contratos de prestación de servicios profesionales y de apoyo a la gestión | F162: Contratación directa | G162: Prestación de servicios profesionales y de apoyo a la gestión, o para la ejecución de trabajos artísticos que sólo puedan encomendarse a determinadas personas naturales | H162: APOYAR EN LAS TAREAS OPERATIVAS DE CARÁCTER ARCHIVÍSTICO DESARROLLADAS EN LA ALCALDÍA LOCAL PARA GARANTIZAR LA APLICACIÓN CORRECTA DE LOS PROCEDIMIENTOS TÉCNICOS | I162: Inversión | J162: UN NUEVO CONTRATO SOCIAL Y AMBIENTAL PARA LA BOGOTA DEL SIGLO XXI | K162: 57 | L162: Gestión pública local | M162: Propósito 5: Construir Bogotá - Región con gobierno abierto, transparente y ciudadanía consciente | N162: O23011605570000001949 | O162: 1 | P162: 1032457500 | Q162: MARTHA ISABEL SANCHEZ DELGADO | R162: Persona Natural | W162: 21000000 | X162: -7816667 | AA162: 13183333 | AB162: 13183333 | AC162: 2022-01-12 | AD162: 2022-01-20 | AE162: 2022-07-19 | AF162: 180 | AM162: Terminado | AN162: 1
A163: FDLUSA-CPS-130-2022 | B163: 2022 | C163: FDLUSA-CPS-130-2022 | D163: https://community.secop.gov.co/Public/Tendering/OpportunityDetail/Index?noticeUID=CO1.NTC.2741041&isFromPublicArea=True&isModal=False | E163: Contratos de prestación de servicios profesionales y de apoyo a la gestión | F163: Contratación directa | G163: Prestación de servicios profesionales y de apoyo a la gestión, o para la ejecución de trabajos artísticos que sólo puedan encomendarse a determinadas personas naturales | H163: APOYAR LA GESTIÓN DOCUMENTAL DE LA ALCALDÍA LOCAL EN LA IMPLEMENTACIÓN DE LOS PROCESOS DE CLASIFICACIÓN, ORDENACIÓN, SELECCIÓN NATURAL, FOLIACIÓN, IDENTIFICACIÓN, LEVANTAMIENTO DE INVENTARIOS, ALMACENAMIENTO Y APLICACIÓN DE PROTOCOLOS DE ELIMINACIÓN Y TRANSFERENCIAS DOCUMENTALES | I163: Inversión | J163: UN NUEVO CONTRATO SOCIAL Y AMBIENTAL PARA LA BOGOTA DEL SIGLO XXI | K163: 57 | L163: Gestión pública local | M163: Propósito 5: Construir Bogotá - Región con gobierno abierto, transparente y ciudadanía consciente | N163: O23011605570000001949 | O163: 1 | P163: 93407975 | Q163: JUAN GABRIEL CHACON ORTIZ | R163: Persona Natural | W163: 13634705 | AA163: 13634705 | AB163: 13634705 | AC163: 2022-01-27 | AD163: 2022-02-02 | AE163: 2022-07-01 | AF163: 150 | AM163: Terminado | AN163: 1
A164: FDLUSA-CPS-132-2022 | B164: 2022 | C164: FDLUSA-CPS-132-2022 | D164: https://community.secop.gov.co/Public/Tendering/OpportunityDetail/Index?noticeUID=CO1.NTC.2696457&isFromPublicArea=True&isModal=False | E164: Contratos de prestación de servicios profesionales y de apoyo a la gestión | F164: Contratación directa | G164: Prestación de servicios profesionales y de apoyo a la gestión, o para la ejecución de trabajos artísticos que sólo puedan encomendarse a determinadas personas naturales | H164: APOYAR EN LAS TAREAS OPERATIVAS DE CARÁCTER ARCHIVÍSTICO DESARROLLADAS EN LA ALCALDÍA LOCAL PARA GARANTIZAR LA APLICACIÓN CORRECTA DE LOS PROCEDIMIENTOS TÉCNICOS | I164: Inversión | J164: UN NUEVO CONTRATO SOCIAL Y AMBIENTAL PARA LA BOGOTA DEL SIGLO XXI | K164: 57 | L164: Gestión pública local | M164: Propósito 5: Construir Bogotá - Región con gobierno abierto, transparente y ciudadanía consciente | N164: O23011605570000001949 | O164: 1 | P164: 1031174157 | Q164: JHON MARIO CACERES RUBIANO | R164: Persona Natural | W164: 16035000 | AA164: 16035000 | AB164: 16035000 | AC164: 2022-01-25 | AD164: 2022-01-26 | AE164: 2022-06-25 | AF164: 150 | AM164: Terminado | AN164: 1
A165: FDLUSA-CPS-133-2022 | B165: 2022 | C165: FDLUSA-CPS-133-2022 | D165: https://community.secop.gov.co/Public/Tendering/OpportunityDetail/Index?noticeUID=CO1.NTC.2716221&isFromPublicArea=True&isModal=False | E165: Contratos de prestación de servicios profesionales y de apoyo a la gestión | F165: Contratación directa | G165: Prestación de servicios profesionales y de apoyo a la gestión, o para la ejecución de trabajos artísticos que sólo puedan encomendarse a determinadas personas naturales | H165: APOYAR EN LAS TAREAS OPERATIVAS DE CARÁCTER ARCHIVÍSTICO DESARROLLADAS EN LA ALCALDÍA LOCAL PARA GARANTIZAR LA APLICACIÓN CORRECTA DE LOS PROCEDIMIENTOS TÉCNICOS | I165: Inversión | J165: UN NUEVO CONTRATO SOCIAL Y AMBIENTAL PARA LA BOGOTA DEL SIGLO XXI | K165: 57 | L165: Gestión pública local | M165: Propósito 5: Construir Bogotá - Región con gobierno abierto, transparente y ciudadanía consciente | N165: O23011605570000001949 | O165: 1 | P165: 80745564 | Q165: BORWMAN ALEXANDER GONZALEZ CASTELLANOS | R165: Persona Natural | W165: 16035000 | AA165: 16035000 | AB165: 16035000 | AC165: 2022-01-26 | AD165: 2022-01-27 | AE165: 2022-06-26 | AF165: 150 | AM165: Terminado | AN165: 1
A166: FDLUSA-CPS-134-2022 | B166: 2022 | C166: FDLUSA-CPS-134-2022 | D166: https://community.secop.gov.co/Public/Tendering/OpportunityDetail/Index?noticeUID=CO1.NTC.2715344&isFromPublicArea=True&isModal=False | E166: Contratos de prestación de servicios profesionales y de apoyo a la gestión | F166: Contratación directa | G166: Prestación de servicios profesionales y de apoyo a la gestión, o para la ejecución de trabajos artísticos que sólo puedan encomendarse a determinadas personas naturales | H166: APOYAR EN LAS TAREAS OPERATIVAS DE CARÁCTER ARCHIVÍSTICO DESARROLLADAS EN LA ALCALDÍA LOCAL PARA GARANTIZAR LA APLICACIÓN CORRECTA DE LOS PROCEDIMIENTOS TÉCNICOS | I166: Inversión | J166: UN NUEVO CONTRATO SOCIAL Y AMBIENTAL PARA LA BOGOTA DEL SIGLO XXI | K166: 57 | L166: Gestión pública local | M166: Propósito 5: Construir Bogotá - Región con gobierno abierto, transparente y ciudadanía consciente | N166: O23011605570000001949 | O166: 1 | P166: 1010191796 | Q166: MARIA DEL CARMEN NAIZAQUE SOLORZANO | R166: Persona Natural | W166: 16035000 | AA166: 16035000 | AB166: 16035000 | AC166: 2022-01-26 | AD166: 2022-01-27 | AE166: 2022-06-26 | AF166: 150 | AM166: Terminado | AN166: 1
A167: FDLUSA-CPS-135-2022 | B167: 2022 | C167: FDLUSA-CPS-135-2022 | D167: https://community.secop.gov.co/Public/Tendering/OpportunityDetail/Index?noticeUID=CO1.NTC.2714621&isFromPublicArea=True&isModal=False | E167: Contratos de prestación de servicios profesionales y de apoyo a la gestión | F167: Contratación directa | G167: Prestación de servicios profesionales y de apoyo a la gestión, o para la ejecución de trabajos artísticos que sólo puedan encomendarse a determinadas personas naturales | H167: APOYAR EN LAS TAREAS OPERATIVAS DE CARÁCTER ARCHIVÍSTICO DESARROLLADAS EN LA ALCALDÍA LOCAL PARA GARANTIZAR LA APLICACIÓN CORRECTA DE LOS PROCEDIMIENTOS TÉCNICOS | I167: Inversión | J167: UN NUEVO CONTRATO SOCIAL Y AMBIENTAL PARA LA BOGOTA DEL SIGLO XXI | K167: 57 | L167: Gestión pública local | M167: Propósito 5: Construir Bogotá - Región con gobierno abierto, transparente y ciudadanía consciente | N167: O23011605570000001949 | O167: 1 | P167: 21018921 | Q167: LADY CONSTANZA MONROY ROJAS | R167: Persona Natural | W167: 16035000 | AA167: 16035000 | AB167: 16035000 | AC167: 2022-01-26 | AD167: 2022-01-27 | AE167: 2022-06-26 | AF167: 150 | AM167: Terminado | AN167: 1
A168: FDLUSA-CPS-139-2022 | B168: 2022 | C168: FDLUSA-CPS-139-2022 | D168: https://community.secop.gov.co/Public/Tendering/OpportunityDetail/Index?noticeUID=CO1.NTC.2722724&isFromPublicArea=True&isModal=False | E168: Contratos de prestación de servicios profesionales y de apoyo a la gestión | F168: Contratación directa | G168: Prestación de servicios profesionales y de apoyo a la gestión, o para la ejecución de trabajos artísticos que sólo puedan encomendarse a determinadas personas naturales | H168: APOYAR EN LAS TAREAS OPERATIVAS DE CARÁCTER ARCHIVÍSTICO DESARROLLADAS EN LA ALCALDÍA LOCAL PARA GARANTIZAR LA APLICACIÓN CORRECTA DE LOS PROCEDIMIENTOS TÉCNICOS | I168: Inversión | J168: UN NUEVO CONTRATO SOCIAL Y AMBIENTAL PARA LA BOGOTA DEL SIGLO XXI | K168: 57 | L168: Gestión pública local | M168: Propósito 5: Construir Bogotá - Región con gobierno abierto, transparente y ciudadanía consciente | N168: O23011605570000001949 | O168: 1 | P168: 1075240385 | Q168: LINA MARIA ESCOBAR RAMOS | R168: Persona Natural | W168: 12828000 | AA168: 12828000 | AB168: 12828000 | AC168: 2022-01-26 | AD168: 2022-02-01 | AE168: 2022-05-31 | AF168: 120 | AM168: Terminado | AN168: 1
A169: FDLUSA-CPS-140-2022 | B169: 2022 | C169: FDLUSA-CPS-140-2022 | D169: https://community.secop.gov.co/Public/Tendering/OpportunityDetail/Index?noticeUID=CO1.NTC.2763020&isFromPublicArea=True&isModal=False | E169: Contratos de prestación de servicios profesionales y de apoyo a la gestión | F169: Contratación directa | G169: Prestación de servicios profesionales y de apoyo a la gestión, o para la ejecución de trabajos artísticos que sólo puedan encomendarse a determinadas personas naturales | H169: APOYAR EN LAS TAREAS OPERATIVAS DE CARÁCTER ARCHIVÍSTICO DESARROLLADAS EN LA ALCALDÍA LOCAL PARA GARANTIZAR LA APLICACIÓN CORRECTA DE LOS PROCEDIMIENTOS TÉCNICOS | I169: Inversión | J169: UN NUEVO CONTRATO SOCIAL Y AMBIENTAL PARA LA BOGOTA DEL SIGLO XXI | K169: 57 | L169: Gestión pública local | M169: Propósito 5: Construir Bogotá - Región con gobierno abierto, transparente y ciudadanía consciente | N169: O23011605570000001949 | O169: 1 | P169: 1032379290 | Q169: ANDREA DEL PILAR GARCIA PEREZ | R169: Persona Natural | W169: 12828000 | AA169: 12828000 | AB169: 12828000 | AC169: 2022-01-28 | AD169: 2022-02-01 | AE169: 2022-05-31 | AF169: 120 | AM169: Terminado | AN169: 1
A170: FDLUSA-CPS-141-2022 | B170: 2022 | C170: FDLUSA-CPS-141-2022 | D170: https://community.secop.gov.co/Public/Tendering/OpportunityDetail/Index?noticeUID=CO1.NTC.2784795&isFromPublicArea=True&isModal=False | E170: Contratos de prestación de servicios profesionales y de apoyo a la gestión | F170: Contratación directa | G170: Prestación de servicios profesionales y de apoyo a la gestión, o para la ejecución de trabajos artísticos que sólo puedan encomendarse a determinadas personas naturales | H170: APOYAR EN LAS TAREAS OPERATIVAS DE CARÁCTER ARCHIVÍSTICO DESARROLLADAS EN LA ALCALDÍA LOCAL PARA GARANTIZAR LA APLICACIÓN CORRECTA DE LOS PROCEDIMIENTOS TÉCNICOS | I170: Inversión | J170: UN NUEVO CONTRATO SOCIAL Y AMBIENTAL PARA LA BOGOTA DEL SIGLO XXI | K170: 57 | L170: Gestión pública local | M170: Propósito 5: Construir Bogotá - Región con gobierno abierto, transparente y ciudadanía consciente | N170: O23011605570000001949 | O170: 1 | P170: 1024503303 | Q170: YAMILE VIVIANA LEON PUERTO | R170: Persona Natural | W170: 12828000 | AA170: 12828000 | AB170: 12828000 | AC170: 2022-01-28 | AD170: 2022-02-07 | AE170: 2022-06-06 | AF170: 120 | AM170: Terminado | AN170: 1
A171: FDLUSA-CPS-142-2022 | B171: 2022 | C171: FDLUSA-CPS-142-2022 | D171: https://community.secop.gov.co/Public/Tendering/OpportunityDetail/Index?noticeUID=CO1.NTC.2660313&isFromPublicArea=True&isModal=False | E171: Contratos de prestación de servicios profesionales y de apoyo a la gestión | F171: Contratación directa | G171: Prestación de servicios profesionales y de apoyo a la gestión, o para la ejecución de trabajos artísticos que sólo puedan encomendarse a determinadas personas naturales | H171: PRESTAR SUS SERVICIOS DE APOYO A LA GESTIÓN A LA ALCALDÍA LOCAL DE USAQUEN EN LOS PROCESOS DE ENTRADA Y SALIDA DE CORRESPONDENCIA, EJECUTANDO LOS PROCESOS ADMINISTRATIVOS DE LA ENTIDAD PARA SU CONTROL Y VERIFICACIÓN | I171: Inversión | J171: UN NUEVO CONTRATO SOCIAL Y AMBIENTAL PARA LA BOGOTA DEL SIGLO XXI | K171: 57 | L171: Gestión pública local | M171: Propósito 5: Construir Bogotá - Región con gobierno abierto, transparente y ciudadanía consciente | N171: O23011605570000001949 | O171: 1 | P171: 79844532 | Q171: OSCAR ANDRES GONZALEZ RODRIGUEZ | R171: Persona Natural | W171: 24542469 | Y171: 1 | Z171: 5453882 | AA171: 29996351 | AB171: 27269410 | AC171: 2022-01-22 | AD171: 2022-02-01 | AE171: 2022-12-30 | AF171: 270 | AG171: 1 | AH171: 60 | AM171: Terminado | AN171: 0.9090909091
A172: FDLUSA-CPS-143-2022 | B172: 2022 | C172: FDLUSA-CPS-143-2022 | D172: https://community.secop.gov.co/Public/Tendering/OpportunityDetail/Index?noticeUID=CO1.NTC.2661331&isFromPublicArea=True&isModal=False | E172: Contratos de prestación de servicios profesionales y de apoyo a la gestión | F172: Contratación directa | G172: Prestación de servicios profesionales y de apoyo a la gestión, o para la ejecución de trabajos artísticos que sólo puedan encomendarse a determinadas personas naturales | H172: PRESTAR SUS SERVICIOS DE APOYO A LA GESTIÓN A LA ALCALDÍA LOCAL DE USAQUEN EN LOS PROCESOS DE ENTRADA Y SALIDA DE CORRESPONDENCIA, EJECUTANDO LOS PROCESOS ADMINISTRATIVOS DE LA ENTIDAD PARA SU CONTROL Y VERIFICACIÓN | I172: Inversión | J172: UN NUEVO CONTRATO SOCIAL Y AMBIENTAL PARA LA BOGOTA DEL SIGLO XXI | K172: 57 | L172: Gestión pública local | M172: Propósito 5: Construir Bogotá - Región con gobierno abierto, transparente y ciudadanía consciente | N172: O23011605570000001949 | O172: 1 | P172: 80101374 | Q172: YEFER ANDERSON NOVOA AREVALO | R172: Persona Natural | W172: 24542469 | Y172: 1 | Z172: 8180823 | AA172: 32723292 | AB172: 27542119 | AC172: 2022-01-23 | AD172: 2022-01-28 | AE172: 2023-01-27 | AF172: 270 | AG172: 1 | AH172: 90 | AM172: En ejecucion | AN172: 0.841667122
A173: FDLUSA-CPS-144-2022 | B173: 2022 | C173: FDLUSA-CPS-144-2022 | D173: https://community.secop.gov.co/Public/Tendering/OpportunityDetail/Index?noticeUID=CO1.NTC.2550537&isFromPublicArea=True&isModal=False | E173: Contratos de prestación de servicios profesionales y de apoyo a la gestión | F173: Contratación directa | G173: Prestación de servicios profesionales y de apoyo a la gestión, o para la ejecución de trabajos artísticos que sólo puedan encomendarse a determinadas personas naturales | H173: PRESTAR LOS SERVICIOS PROFESIONALES A LA ALCALDÍA LOCAL DE USAQUEN, EN LA REALIZACIÓN DE ACTIVIDADES Y TRAMITES ADMINISTRATIVOS RELACIONADOS CON LOS ASUNTOS CONTABLES Y FINANCIEROS NECESARIOS PARA EL NORMAL FUNCIONAMIENTO DEL ÁREA DE GESTIÓN DE DESARROLLO LOCAL | I173: Inversión | J173: UN NUEVO CONTRATO SOCIAL Y AMBIENTAL PARA LA BOGOTA DEL SIGLO XXI | K173: 57 | L173: Gestión pública local | M173: Propósito 5: Construir Bogotá - Región con gobierno abierto, transparente y ciudadanía consciente | N173: O23011605570000001949 | O173: 1 | P173: 53000759 | Q173: JENNY ALEXANDRA FERNANDEZ VILLAR | R173: Persona Natural | W173: 54000000 | AA173: 54000000 | AB173: 50800000 | AC173: 2022-01-14 | AD173: 2022-01-17 | AE173: 2022-10-16 | AF173: 270 | AM173: Terminado | AN173: 0.9407407407
A174: FDLUSA-CPS-145-2022 | B174: 2022 | C174: FDLUSA-CPS-145-2022 | D174: https://community.secop.gov.co/Public/Tendering/OpportunityDetail/Index?noticeUID=CO1.NTC.2620994&isFromPublicArea=True&isModal=False | E174: Contratos de prestación de servicios profesionales y de apoyo a la gestión | F174: Contratación directa | G174: Prestación de servicios profesionales y de apoyo a la gestión, o para la ejecución de trabajos artísticos que sólo puedan encomendarse a determinadas personas naturales | H174: PRESTAR LOS SERVICIOS PROFESIONALES A LA ALCALDÍA LOCAL DE USAQUÉN, EN LA REALIZACIÓN DE ACTIVIDADES Y TRAMITES ADMINISTRATIVOS REFERENTES A LA GESTIÓN DEL PRESUPUESTO DEL FDL, NECESARIOS PARA EL NORMAL FUNCIONAMIENTO DEL ÁREA DE GESTIÓN DE DESARROLLO LOCAL | I174: Inversión | J174: UN NUEVO CONTRATO SOCIAL Y AMBIENTAL PARA LA BOGOTA DEL SIGLO XXI | K174: 57 | L174: Gestión pública local | M174: Propósito 5: Construir Bogotá - Región con gobierno abierto, transparente y ciudadanía consciente | N174: O23011605570000001949 | O174: 1 | P174: 10779866 | Q174: JOHNNY ALEJANDRO PICO HOYOS | R174: Persona Natural | W174: 55800000 | Y174: 2 | Z174: 22391362 | AA174: 78191362 | AB174: 64066667 | AC174: 2022-01-20 | AD174: 2022-01-21 | AE174: 2023-02-08 | AF174: 270 | AG174: 2 | AH174: 108 | AM174: En ejecucion | AN174: 0.8193573479
A175: FDLUSA-CPS-146-2022 | B175: 2022 | C175: FDLUSA-CPS-146-2022 | D175: https://community.secop.gov.co/Public/Tendering/OpportunityDetail/Index?noticeUID=CO1.NTC.2565965&isFromPublicArea=True&isModal=False | E175: Contratos de prestación de servicios profesionales y de apoyo a la gestión | F175: Contratación directa | G175: Prestación de servicios profesionales y de apoyo a la gestión, o para la ejecución de trabajos artísticos que sólo puedan encomendarse a determinadas personas naturales | H175: PRESTAR LOS SERVICIOS PROFESIONALES AL AREA DE GESTIÓN DE DESARROLLO LOCAL BRINDANDO APOYO EN CUANTO A LA GESTIÓN EN EL LEVANTAMIENTO DE INVENTARIOS, CONTROL DE BIENES MUEBLES E INMUEBLES EXISTENTES Y DEMAS TEMAS RELACIONADOS A CARGO DE LA ALCALDÍA LOCAL DE USAQUEN | I175: Inversión | J175: UN NUEVO CONTRATO SOCIAL Y AMBIENTAL PARA LA BOGOTA DEL SIGLO XXI | K175: 57 | L175: Gestión pública local | M175: Propósito 5: Construir Bogotá - Región con gobierno abierto, transparente y ciudadanía consciente | N175: O23011605570000001949 | O175: 1 | P175: 80409994 | Q175: NESTOR ALFONSO URREGO CARDENAS | R175: Persona Natural | W175: 41603220 | Y175: 1 | Z175: 11556450 | AA175: 53159670 | AB175: 48074832 | AC175: 2022-01-18 | AD175: 2022-01-19 | AE175: 2023-01-03 | AF175: 270 | AG175: 1 | AH175: 75 | AM175: En ejecucion | AN175: 0.9043478261
A176: FDLUSA-CPS-147-2022 | B176: 2022 | C176: FDLUSA-CPS-147-2022 | D176: https://community.secop.gov.co/Public/Tendering/OpportunityDetail/Index?noticeUID=CO1.NTC.2574071&isFromPublicArea=True&isModal=False | E176: Contratos de prestación de servicios profesionales y de apoyo a la gestión | F176: Contratación directa | G176: Prestación de servicios profesionales y de apoyo a la gestión, o para la ejecución de trabajos artísticos que sólo puedan encomendarse a determinadas personas naturales | H176: PRESTAR LOS SERVICIOS DE APOYO A LA GESTIÓN EN EL LEVANTAMIENTO DE INVENTARIOS, CONTROL DE BIENES MUEBLES E INMUEBLES EXISTENTES A CARGO DE LA ALCALDÍA LOCAL DE USAQUÉN | I176: Inversión | J176: UN NUEVO CONTRATO SOCIAL Y AMBIENTAL PARA LA BOGOTA DEL SIGLO XXI | K176: 57 | L176: Gestión pública local | M176: Propósito 5: Construir Bogotá - Región con gobierno abierto, transparente y ciudadanía consciente | N176: O23011605570000001949 | O176: 1 | P176: 91430672 | Q176: ANGEL MARIA NORIEGA GOMEZ | R176: Persona Natural | W176: 29996351 | Y176: 1 | Z176: 2726941 | AA176: 32723292 | AB176: 28360186 | AC176: 2022-01-18 | AD176: 2022-01-19 | AE176: 2023-01-18 | AF176: 330 | AG176: 1 | AH176: 30 | AM176: En ejecucion | AN176: 0.8666666544
A177: FDLUSA-CPS-148-2022 | B177: 2022 | C177: FDLUSA-CPS-148-2022 | D177: https://community.secop.gov.co/Public/Tendering/OpportunityDetail/Index?noticeUID=CO1.NTC.2567493&isFromPublicArea=True&isModal=False | E177: Contratos de prestación de servicios profesionales y de apoyo a la gestión | F177: Contratación directa | G177: Prestación de servicios profesionales y de apoyo a la gestión, o para la ejecución de trabajos artísticos que sólo puedan encomendarse a determinadas personas naturales | H177: PRESTAR SERVICIOS DE APOYO TÉCNICO PARA LA GESTIÓN DE LA JUNTA ADMINISTRADORA LOCAL DE USAQUÉN PARA EL DESARROLLO DE LAS ACTIVIDADES ADMINISTRATIVAS Y OPERATIVAS REQUERIDAS PARA EL NORMAL FUNCIONAMIENTO DE LA CORPORACIÓN - META PDL REALIZAR 4 ESTRATEGIAS DE FORTALECIMIENTO INSTITUCIONAL | I177: Inversión | J177: UN NUEVO CONTRATO SOCIAL Y AMBIENTAL PARA LA BOGOTA DEL SIGLO XXI | K177: 57 | L177: Gestión pública local | M177: Propósito 5: Construir Bogotá - Región con gobierno abierto, transparente y ciudadanía consciente | N177: O23011605570000001949 | O177: 1 | P177: 1010200074 | Q177: ERIKA SOLANYE LOPEZ CARDENAS | R177: Persona Natural | W177: 23930574 | AA177: 23930574 | AB177: 23930574 | AC177: 2022-01-17 | AD177: 2022-01-19 | AE177: 2022-07-18 | AF177: 180 | AM177: Terminado | AN177: 1
A178: FDLUSA-CPS-149-2022 | B178: 2022 | C178: FDLUSA-CPS-149-2022 | D178: https://community.secop.gov.co/Public/Tendering/OpportunityDetail/Index?noticeUID=CO1.NTC.2734460&isFromPublicArea=True&isModal=False | E178: Contratos de prestación de servicios profesionales y de apoyo a la gestión | F178: Contratación directa | G178: Prestación de servicios profesionales y de apoyo a la gestión, o para la ejecución de trabajos artísticos que sólo puedan encomendarse a determinadas personas naturales | H178: PRESTAR SERVICIOS DE APOYO TÉCNICO PARA LA GESTIÓN DE LA JUNTA ADMINISTRADORA LOCAL DE USAQUÉN PARA EL DESARROLLO DE LAS ACTIVIDADES ADMINISTRATIVAS Y OPERATIVAS REQUERIDAS PARA EL NORMAL FUNCIONAMIENTO DE LA CORPORACIÓN META PDL REALIZAR 4 ESTRATEGIAS DE FORTALECIMIENTO INSTITUCIONAL | I178: Inversión | J178: UN NUEVO CONTRATO SOCIAL Y AMBIENTAL PARA LA BOGOTA DEL SIGLO XXI | K178: 57 | L178: Gestión pública local | M178: Propósito 5: Construir Bogotá - Región con gobierno abierto, transparente y ciudadanía consciente | N178: O23011605570000001949 | O178: 1 | P178: 53002013 | Q178: NANCY MILENA HERNANDEZ PARADA | R178: Persona Natural | W178: 19182000 | AA178: 19182000 | AB178: 19182000 | AC178: 2022-01-28 | AD178: 2022-02-01 | AE178: 2022-07-30 | AF178: 180 | AM178: Terminado | AN178: 1
A179: FDLUSA-CPS-150-2022 | B179: 2022 | C179: FDLUSA-CPS-150-2022 | D179: https://community.secop.gov.co/Public/Tendering/OpportunityDetail/Index?noticeUID=CO1.NTC.2633967&isFromPublicArea=True&isModal=False | E179: Contratos de prestación de servicios profesionales y de apoyo a la gestión | F179: Contratación directa | G179: Prestación de servicios profesionales y de apoyo a la gestión, o para la ejecución de trabajos artísticos que sólo puedan encomendarse a determinadas personas naturales | H179: PRESTAR LOS SERVICIOS COMO CONDUCTOR DE VEHÍCULO LIVIANO Y/O PESADO EN LA ALCALDÍA LOCAL DE USAQUÉN CON PLACAS OLM872, OJX855, OLM958 Y OLN059 META PDL Realizar 4 estrategias de fortalecimiento institucional. | I179: Inversión | J179: UN NUEVO CONTRATO SOCIAL Y AMBIENTAL PARA LA BOGOTA DEL SIGLO XXI | K179: 57 | L179: Gestión pública local | M179: Propósito 5: Construir Bogotá - Región con gobierno abierto, transparente y ciudadanía consciente | N179: O23011605570000001949 | O179: 1 | P179: 80423168 | Q179: JOSE EDUARDO MENGUA RINCON | R179: Persona Natural | W179: 31359822 | Y179: 1 | Z179: 2726941 | AA179: 34086763 | AB179: 27723900 | AC179: 2022-01-24 | AD179: 2022-01-26 | AE179: 2023-01-31 | AF179: 345 | AG179: 1 | AH179: 30 | AM179: En ejecucion | AN179: 0.8133333165
A180: FDLUSA-CPS-151-2022 | B180: 2022 | C180: FDLUSA-CPS-151-2022 | D180: https://community.secop.gov.co/Public/Tendering/OpportunityDetail/Index?noticeUID=CO1.NTC.2570450&isFromPublicArea=True&isModal=False | E180: Contratos de prestación de servicios profesionales y de apoyo a la gestión | F180: Contratación directa | G180: Prestación de servicios profesionales y de apoyo a la gestión, o para la ejecución de trabajos artísticos que sólo puedan encomendarse a determinadas personas naturales | H180: PRESTAR LOS SERVICIOS COMO CONDUCTOR DE VEHÍCULO LIVIANO Y/O PESADO EN LA ALCALDÍA LOCAL DE USAQUÉN CON PLACAS OLM872, OJX855, OLM958 Y OLN059 - META PDL Realizar 4 estrategias de fortalecimiento institucional. | I180: Inversión | J180: UN NUEVO CONTRATO SOCIAL Y AMBIENTAL PARA LA BOGOTA DEL SIGLO XXI | K180: 57 | L180: Gestión pública local | M180: Propósito 5: Construir Bogotá - Región con gobierno abierto, transparente y ciudadanía consciente | N180: O23011605570000001949 | O180: 1 | P180: 79799993 | Q180: FREDY ANDRES GORDILLO VALERO | R180: Persona Natural | W180: 24542469 | Y180: 1 | Z180: 8180823 | AA180: 32723292 | AB180: 28269288 | AC180: 2022-01-17 | AD180: 2022-01-20 | AE180: 2023-01-19 | AF180: 270 | AG180: 1 | AH180: 90 | AM180: En ejecucion | AN180: 0.8638888777
A181: FDLUSA-CPS-152-2022 | B181: 2022 | C181: FDLUSA-CPS-152-2022 | D181: https://community.secop.gov.co/Public/Tendering/OpportunityDetail/Index?noticeUID=CO1.NTC.2594041&isFromPublicArea=True&isModal=False | E181: Contratos de prestación de servicios profesionales y de apoyo a la gestión | F181: Contratación directa | G181: Prestación de servicios profesionales y de apoyo a la gestión, o para la ejecución de trabajos artísticos que sólo puedan encomendarse a determinadas personas naturales | H181: PRESTAR LOS SERVICIOS COMO CONDUCTOR DE VEHÍCULO LIVIANO Y/O PESADO EN LA ALCALDÍA LOCAL DE USAQUÉN - META PDL REALIZAR 4 ESTRATEGIAS DE FORTALECIMIENTO INSTITUCIONAL | I181: Inversión | J181: UN NUEVO CONTRATO SOCIAL Y AMBIENTAL PARA LA BOGOTA DEL SIGLO XXI | K181: 57 | L181: Gestión pública local | M181: Propósito 5: Construir Bogotá - Región con gobierno abierto, transparente y ciudadanía consciente | N181: O23011605570000001949 | O181: 1 | P181: 79294310 | Q181: HERMAN ANTONIO LOPEZ AMANTE | R181: Persona Natural | W181: 44000000 | Y181: 1 | Z181: 6000000 | AA181: 50000000 | AB181: 41333333 | AC181: 2022-01-18 | AD181: 2022-01-21 | AE181: 2023-02-05 | AF181: 330 | AG181: 1 | AH181: 45 | AM181: En ejecucion | AN181: 0.82666666
A182: FDLUSA-CPS-153-2022 | B182: 2022 | C182: FDLUSA-CPS-153-2022 | D182: https://community.secop.gov.co/Public/Tendering/OpportunityDetail/Index?noticeUID=CO1.NTC.2674288&isFromPublicArea=True&isModal=False | E182: Contratos de prestación de servicios profesionales y de apoyo a la gestión | F182: Contratación directa | G182: Prestación de servicios profesionales y de apoyo a la gestión, o para la ejecución de trabajos artísticos que sólo puedan encomendarse a determinadas personas naturales | H182: PRESTAR LOS SERVICIOS COMO CONDUCTOR DE VEHÍCULO LIVIANO Y/O PESADO EN LA ALCALDÍA LOCAL DE USAQUÉN CON PLACAS OLM872, OJX855, OLM958 Y OLN059 - META PDL Realizar 4 estrategias de fortalecimiento institucional | I182: Inversión | J182: UN NUEVO CONTRATO SOCIAL Y AMBIENTAL PARA LA BOGOTA DEL SIGLO XXI | K182: 57 | L182: Gestión pública local | M182: Propósito 5: Construir Bogotá - Región con gobierno abierto, transparente y ciudadanía consciente | N182: O23011605570000001949 | O182: 1 | P182: 79778052 | Q182: JULIO HECTALIVAR FARFAN CAMPOS | R182: Persona Natural | W182: 16361646 | AA182: 16361646 | AB182: 16361646 | AC182: 2022-01-23 | AD182: 2022-02-01 | AE182: 2022-07-31 | AF182: 180 | AM182: Terminado | AN182: 1
A183: FDLUSA-CPS-154-2022 | B183: 2022 | C183: FDLUSA-CPS-154-2022 | D183: https://community.secop.gov.co/Public/Tendering/OpportunityDetail/Index?noticeUID=CO1.NTC.2577641&isFromPublicArea=True&isModal=False | E183: Contratos de prestación de servicios profesionales y de apoyo a la gestión | F183: Contratación directa | G183: Prestación de servicios profesionales y de apoyo a la gestión, o para la ejecución de trabajos artísticos que sólo puedan encomendarse a determinadas personas naturales | H183: PRESTAR LOS SERVICIOS COMO CONDUCTOR DE VEHÍCULO LIVIANO Y/O PESADO EN LA ALCALDÍA LOCAL DE USAQUÉN CON PLACAS OLM872, OJX855, OLM958 Y OLN059 - META PDL Realizar 4 estrategias de fortalecimiento institucional | I183: Inversión | J183: UN NUEVO CONTRATO SOCIAL Y AMBIENTAL PARA LA BOGOTA DEL SIGLO XXI | K183: 57 | L183: Gestión pública local | M183: Propósito 5: Construir Bogotá - Región con gobierno abierto, transparente y ciudadanía consciente | N183: O23011605570000001949 | O183: 1 | P183: 1026566436 | Q183: LUIS ERNESTO CASTILLO BETANCOURT | R183: Persona Natural | W183: 16361646 | X183: -2501233 | AA183: 13860413 | AB183: 13860413 | AC183: 2022-01-17 | AD183: 2022-01-19 | AE183: 2022-07-18 | AF183: 180 | AM183: Terminado | AN183: 1
A184: FDLUSA-CPS-155-2022 | B184: 2022 | C184: FDLUSA-CPS-155-2022 | D184: https://community.secop.gov.co/Public/Tendering/OpportunityDetail/Index?noticeUID=CO1.NTC.2520405&isFromPublicArea=True&isModal=False | E184: Contratos de prestación de servicios profesionales y de apoyo a la gestión | F184: Contratación directa | G184: Prestación de servicios profesionales y de apoyo a la gestión, o para la ejecución de trabajos artísticos que sólo puedan encomendarse a determinadas personas naturales | H184: PRESTAR LOS SERVICIOS TÉCNICOS ORIENTADOS AL APOYO, SEGUIMIENTO Y ANÁLISIS ESTRATÉGICO DE LAS ACTIVIDADES RELACIONADAS CON LA REVISION Y VALIDACION DE LAS RESPUESTAS A LOS DERECHOS DE PETICION REZAGADOS DEDE 2016 HASTA LA FECHA A TRAVÉS DE LOS INFORMES EMITIDOS POR SECRETARIA DE GOBIERNO PARA LA ALCALDÍA LOCAL DE USAQUÉN | I184: Inversión | J184: UN NUEVO CONTRATO SOCIAL Y AMBIENTAL PARA LA BOGOTA DEL SIGLO XXI | K184: 57 | L184: Gestión pública local | M184: Propósito 5: Construir Bogotá - Región con gobierno abierto, transparente y ciudadanía consciente | N184: O23011605570000001949 | O184: 1 | P184: 1030593643 | Q184: JULY DANIELA TIQUE HERNANDEZ | R184: Persona Natural | W184: 46505085 | Y184: 1 | Z184: 6341603 | AA184: 52846688 | AB184: 44954915 | AC184: 2022-01-11 | AD184: 2022-01-12 | AE184: 2023-01-25 | AF184: 330 | AG184: 1 | AH184: 45 | AM184: En ejecucion | AN184: 0.8506666492
A185: FDLUSA-CPS-156-2022 | B185: 2022 | C185: FDLUSA-CPS-156-2022 | D185: https://community.secop.gov.co/Public/Tendering/OpportunityDetail/Index?noticeUID=CO1.NTC.2628425&isFromPublicArea=True&isModal=False | E185: Contratos de prestación de servicios profesionales y de apoyo a la gestión | F185: Contratación directa | G185: Prestación de servicios profesionales y de apoyo a la gestión, o para la ejecución de trabajos artísticos que sólo puedan encomendarse a determinadas personas naturales | H185: PRESTAR LOS SERVICIOS PROFESIONALES A LA ALCALDIA LOCAL DE USAQUÉN EN LAS ÁREAS DE GESTIÓN DEL DESARROLLO, ADMINISTRATIVA, FINANCIERA, Y ÁREA DE GESTIÓN POLICIVA, EN LA REVISIÓN, TRAMITE, DEPURACIÓN Y CIERRE DE PETICIONES, QUE SE ENCUENTREN VIGENTES EN LA ALCALDIA LOCAL Y DEMÁS QUE SE ALLEGUEN, EN CUMPLIMIENTO DE LAS METAS ESTABLECIDAS EN EL PLAN DE DESARROLLO LOCAL DE USAQUÉN, EL PLAN DE GESTIÓN Y PLANES DE MEJORAMIENTO VIGENTES | I185: Inversión | J185: UN NUEVO CONTRATO SOCIAL Y AMBIENTAL PARA LA BOGOTA DEL SIGLO XXI | K185: 57 | L185: Gestión pública local | M185: Propósito 5: Construir Bogotá - Región con gobierno abierto, transparente y ciudadanía consciente | N185: O23011605570000001949 | O185: 1 | P185: 1032366234 | Q185: LORENA PATRICIA CASTELLANOS GUERRERO | R185: Persona Natural | W185: 53159670 | AA185: 53159670 | AB185: 46071714 | AC185: 2022-01-22 | AD185: 2022-02-02 | AE185: 2023-01-16 | AF185: 345 | AG185: 1 | AH185: 16 | AM185: En ejecucion | AN185: 0.8666666667
A186: FDLUSA-CPS-157-2022 | B186: 2022 | C186: FDLUSA-CPS-157-2022 | D186: https://community.secop.gov.co/Public/Tendering/OpportunityDetail/Index?noticeUID=CO1.NTC.2600983&isFromPublicArea=True&isModal=False | E186: Contratos de prestación de servicios profesionales y de apoyo a la gestión | F186: Contratación directa | G186: Prestación de servicios profesionales y de apoyo a la gestión, o para la ejecución de trabajos artísticos que sólo puedan encomendarse a determinadas personas naturales | H186: PRESTAR LOS SERVICIOS PROFESIONALES ESPECIALIZADOS EN EL AREÁ DE GESTIÓN DE DESARROLLO LOCAL DE USAQUEN, PARA APOYAR LA REALIZACIÓN DE ACTIVIDADES JURIDICAS Y ADMINISTRATIVAS, PROCESOS DE ARTICULACIÓN CON LAS DEMÁS AREÁS, EN CUMPLIMIENTO DEL PLAN DE DESARROLLO "USAQUEN REVERDECE 2021-2024 | I186: Inversión | J186: UN NUEVO CONTRATO SOCIAL Y AMBIENTAL PARA LA BOGOTA DEL SIGLO XXI | K186: 57 | L186: Gestión pública local | M186: Propósito 5: Construir Bogotá - Región con gobierno abierto, transparente y ciudadanía consciente | N186: O23011605570000001949 | O186: 1 | P186: 1075252644 | Q186: DIANA LORENA MONJE ALBARRACIN | R186: Persona Natural | W186: 59200000 | Y186: 2 | Z186: 25900000 | AA186: 85100000 | AB186: 76713333 | AC186: 2022-01-18 | AD186: 2022-01-20 | AE186: 2023-01-04 | AF186: 240 | AG186: 2 | AH186: 105 | AM186: En ejecucion | AN186: 0.9014492714
A187: FDLUSA-CPS-158-2022 | B187: 2022 | C187: FDLUSA-CPS-158-2022 | D187: https://community.secop.gov.co/Public/Tendering/OpportunityDetail/Index?noticeUID=CO1.NTC.2612106&isFromPublicArea=True&isModal=False | E187: Contratos de prestación de servicios profesionales y de apoyo a la gestión | F187: Contratación directa | G187: Prestación de servicios profesionales y de apoyo a la gestión, o para la ejecución de trabajos artísticos que sólo puedan encomendarse a determinadas personas naturales | H187: PRESTAR LOS SERVICIOS PROFESIONALES ESPECIALIZADOS PARA DISEÑAR UNA METODOLOGÍA DE CONTROL Y CUMPLIMIENTO BASADO EN EL MODELO DELIVERY UNIT, QUE PERMITA AL DESPACHO DEL ALCALDE LOCAL DE USAQUÉN IDENTIFICAR Y PRIORIZAR OBJETIVOS ESTRATÉGICOS, DISEÑAR PLANES DE TRABAJO PARA EL CUMPLIMIENTO DE LOS OBJETIVOS Y HACER SEGUIMIENTO Y CONTROL AL CUMPLIMIENTO DE LOS OBJETIVOS PRIORIZADOS, EN EL MARCO DEL PLAN DE DESARROLLO LOCAL DE USAQUÉN - META PDL REALIZAR 4 ESTRATEGIA DE FORTALECIMIENTO INSTITUCIONAL | I187: Inversión | J187: UN NUEVO CONTRATO SOCIAL Y AMBIENTAL PARA LA BOGOTA DEL SIGLO XXI | K187: 57 | L187: Gestión pública local | M187: Propósito 5: Construir Bogotá - Región con gobierno abierto, transparente y ciudadanía consciente | N187: O23011605570000001949 | O187: 1 | P187: 80155153 | Q187: DIEGO ALEJANDRO GARZON CUBILLOS | R187: Persona Natural | W187: 109250000 | Y187: 1 | Z187: 9500000 | AA187: 118750000 | AB187: 98483333 | AC187: 2022-01-19 | AD187: 2022-01-20 | AE187: 2023-02-03 | AF187: 345 | AG187: 1 | AH187: 34 | AM187: En ejecucion | AN187: 0.8293333305
A188: FDLUSA-CPS-159-2022 | B188: 2022 | C188: FDLUSA-CPS-159-2022 | D188: https://community.secop.gov.co/Public/Tendering/OpportunityDetail/Index?noticeUID=CO1.NTC.2608801&isFromPublicArea=True&isModal=False | E188: Contratos de prestación de servicios profesionales y de apoyo a la gestión | F188: Contratación directa | G188: Prestación de servicios profesionales y de apoyo a la gestión, o para la ejecución de trabajos artísticos que sólo puedan encomendarse a determinadas personas naturales | H188: PRESTAR SERVICIOS TECNICOS DE APOYO PARA LA REALIZACIÓN DE ACTIVIDADES SECRETARIALES Y TRAMITES DE INFORMACIÓN REQUERIDAS EN EL DESPACHO DE LA ALCALDÍA LOCAL | I188: Inversión | J188: UN NUEVO CONTRATO SOCIAL Y AMBIENTAL PARA LA BOGOTA DEL SIGLO XXI | K188: 57 | L188: Gestión pública local | M188: Propósito 5: Construir Bogotá - Región con gobierno abierto, transparente y ciudadanía consciente | N188: O23011605570000001949 | O188: 1 | P188: 1015397616 | Q188: JUAN DIEGO BUSTOS MUÑOZ | R188: Persona Natural | W188: 48618953 | Y188: 1 | Z188: 2113868 | AA188: 50732821 | AB188: 43263821 | AC188: 2022-01-19 | AD188: 2022-01-24 | AE188: 2023-01-23 | AF188: 345 | AG188: 1 | AH188: 23 | AM188: En ejecucion | AN188: 0.8527777511
A189: FDLUSA-CPS-160-2022 | B189: 2022 | C189: FDLUSA-CPS-160-2022 | D189: https://community.secop.gov.co/Public/Tendering/OpportunityDetail/Index?noticeUID=CO1.NTC.2523965&isFromPublicArea=True&isModal=False | E189: Contratos de prestación de servicios profesionales y de apoyo a la gestión | F189: Contratación directa | G189: Prestación de servicios profesionales y de apoyo a la gestión, o para la ejecución de trabajos artísticos que sólo puedan encomendarse a determinadas personas naturales | H189: PRESTAR LOS SERVICIOS PROFESIONALES A LA ALCALDÍA LOCAL DE USAQUEN ÁREA DE GESTIÓN DE DESARROLLO LOCAL Y DESPACHO EN EL DESARROLLO DE ACTIVIDADES Y TRAMITES RELACIONADOS CON LA PLANEACIÓN LOCAL Y ESTRUCTURACIÓN DE INDICADORES DE SEGUIMIENTO | I189: Inversión | J189: UN NUEVO CONTRATO SOCIAL Y AMBIENTAL PARA LA BOGOTA DEL SIGLO XXI | K189: 57 | L189: Gestión pública local | M189: Propósito 5: Construir Bogotá - Región con gobierno abierto, transparente y ciudadanía consciente | N189: O23011605570000001949 | O189: 1 | P189: 1062813973 | Q189: MARIA JOSE RIOS MACHADO | R189: Persona Natural | W189: 66000000 | Y189: 1 | Z189: 9000000 | AA189: 75000000 | AB189: 63600000 | AC189: 2022-01-12 | AD189: 2022-01-13 | AE189: 2023-01-27 | AF189: 330 | AG189: 1 | AH189: 45 | AM189: En ejecucion | AN189: 0.848
A190: FDLUSA-CPS-161-2022 | B190: 2022 | C190: FDLUSA-CPS-161-2022 | D190: https://community.secop.gov.co/Public/Tendering/OpportunityDetail/Index?noticeUID=CO1.NTC.2703460&isFromPublicArea=True&isModal=False | E190: Contratos de prestación de servicios profesionales y de apoyo a la gestión | F190: Contratación directa | G190: Prestación de servicios profesionales y de apoyo a la gestión, o para la ejecución de trabajos artísticos que sólo puedan encomendarse a determinadas personas naturales | H190: PRESTAR LOS SERVICIOS PROFESIONALES ESPECIALIZADOS A LA ALCALDÍA LOCAL DE USAQUÉN EN MATERIA JURÍDICA, EN APOYO DE LA REVISIÓN Y CONCEPTO DE LOS ASUNTOS JURÍDICOS QUE SE REQUIERAN POR PARTE DEL DESPACHO DEL ALCALDE LOCAL | I190: Inversión | J190: UN NUEVO CONTRATO SOCIAL Y AMBIENTAL PARA LA BOGOTA DEL SIGLO XXI | K190: 57 | L190: Gestión pública local | M190: Propósito 5: Construir Bogotá - Región con gobierno abierto, transparente y ciudadanía consciente | N190: O23011605570000001949 | O190: 1 | P190: 79951328 | Q190: LUIS ENRIQUE SUAREZ ZAMORA | R190: Persona Natural | W190: 99000000 | AA190: 99000000 | AB190: 90000000 | AC190: 2022-01-26 | AD190: 2022-02-01 | AE190: 2022-12-31 | AF190: 330 | AM190: Terminado | AN190: 0.9090909091
A191: FDLUSA-CPS-162-2022 | B191: 2022 | C191: FDLUSA-CPS-162-2022 | D191: https://community.secop.gov.co/Public/Tendering/OpportunityDetail/Index?noticeUID=CO1.NTC.2567055&isFromPublicArea=True&isModal=False | E191: Contratos de prestación de servicios profesionales y de apoyo a la gestión | F191: Contratación directa | G191: Prestación de servicios profesionales y de apoyo a la gestión, o para la ejecución de trabajos artísticos que sólo puedan encomendarse a determinadas personas naturales | H191: PRESTAR SERVICIOS PROFESIONALES ESPECIALIZADOS A LA ALCALDÍA LOCAL DE USAQUÉN PARA APOYAR EN EL SEGUIMIENTO DEL PLAN DE DESARROLLO LOCAL, ASÍ COMO EN LA FORMULACIÓN DE ESTRATEGIAS QUE PERMITAN UNA AMPLIA PARTICIPACIÓN CIUDADANA TANTO EN LA FORMULACIÓN COMO EN EL SEGUIMIENTO DEL PLAN DE DESARROLLO LOCAL, EN ACATAMIENTO DE LOS FINES DE LA GESTIÓN INSTITUCIONAL LOCAL | I191: Inversión | J191: UN NUEVO CONTRATO SOCIAL Y AMBIENTAL PARA LA BOGOTA DEL SIGLO XXI | K191: 57 | L191: Gestión pública local | M191: Propósito 5: Construir Bogotá - Región con gobierno abierto, transparente y ciudadanía consciente | N191: O23011605570000001949 | O191: 1 | P191: 2735569 | Q191: ROGELIO ZULETA GALINDO | R191: Persona Natural | W191: 109250000 | Y191: 1 | Z191: 4750000 | AA191: 114000000 | AB191: 98800000 | AC191: 2022-01-17 | AD191: 2022-01-19 | AE191: 2023-01-18 | AF191: 345 | AG191: 1 | AH191: 18 | AM191: En ejecucion | AN191: 0.8666666667
A192: FDLUSA-CPS-163-2022 | B192: 2022 | C192: FDLUSA-CPS-163-2022 | D192: https://community.secop.gov.co/Public/Tendering/OpportunityDetail/Index?noticeUID=CO1.NTC.2592593&isFromPublicArea=True&isModal=False | E192: Contratos de prestación de servicios profesionales y de apoyo a la gestión | F192: Contratación directa | G192: Prestación de servicios profesionales y de apoyo a la gestión, o para la ejecución de trabajos artísticos que sólo puedan encomendarse a determinadas personas naturales | H192: PRESTAR SERVICIOS PROFESIONALES ESPECIALIZADOS A LA ALCALDÍA LOCAL DE USAQUÉN, PARA APOYAR EN LA REVISIÓN JURÍDICA DE LOS DOCUMENTOS NECESARIOS PARA ADELANTAR LOS PROCESOS CONTRACTUALES QUE SE REQUIERAN EN EL FONDO DE DESARROLLO LOCAL, EN ACATAMIENTO DE LOS FINES DE LA GESTIÓN INSTITUCIONAL LOCAL | I192: Inversión | J192: UN NUEVO CONTRATO SOCIAL Y AMBIENTAL PARA LA BOGOTA DEL SIGLO XXI | K192: 57 | L192: Gestión pública local | M192: Propósito 5: Construir Bogotá - Región con gobierno abierto, transparente y ciudadanía consciente | N192: O23011605570000001949 | O192: 1 | P192: 1020743056 | Q192: MARIA FERNANDA SIERRA FORERO | R192: Persona Natural | W192: 109250000 | Y192: 1 | Z192: 9500000 | AA192: 118750000 | AB192: 98800000 | AC192: 2022-01-18 | AD192: 2022-01-19 | AE192: 2023-02-03 | AF192: 345 | AG192: 1 | AH192: 33 | AM192: En ejecucion | AN192: 0.832
A193: FDLUSA-CPS-164-2022 | B193: 2022 | C193: FDLUSA-CPS-164-2022 | D193: https://community.secop.gov.co/Public/Tendering/OpportunityDetail/Index?noticeUID=CO1.NTC.2569609&isFromPublicArea=True&isModal=False | E193: Contratos de prestación de servicios profesionales y de apoyo a la gestión | F193: Contratación directa | G193: Prestación de servicios profesionales y de apoyo a la gestión, o para la ejecución de trabajos artísticos que sólo puedan encomendarse a determinadas personas naturales | H193: PRESTAR SERVICIOS PROFESIONALES PARA LA GESTIÓN LOCAL DE USAQUÉN EN EL DESARROLLO DE LAS ACTIVIDADES ADMINISTRATIVAS Y OPERATIVAS REQUERIDAS PARA EL NORMAL FUNCIONAMIENTO DE LA ALCALDIA LOCAL DE USAQUEN - META PDL REALIZAR 4 ESTRATEGIA DE FORTALECIMIENTO INSTITUCIONAL | I193: Inversión | J193: UN NUEVO CONTRATO SOCIAL Y AMBIENTAL PARA LA BOGOTA DEL SIGLO XXI | K193: 57 | L193: Gestión pública local | M193: Propósito 5: Construir Bogotá - Región con gobierno abierto, transparente y ciudadanía consciente | N193: O23011605570000001949 | O193: 1 | P193: 1113693097 | Q193: ISABELA CAROLINA JUNCA ARISTIZABAL | R193: Persona Natural | W193: 27735480 | AA193: 27735480 | AB193: 27735480 | AC193: 2022-01-18 | AD193: 2022-01-28 | AE193: 2022-07-27 | AF193: 180 | AM193: Terminado | AN193: 1
A194: FDLUSA-CPS-165-2022 | B194: 2022 | C194: FDLUSA-CPS-165-2022 | D194: https://community.secop.gov.co/Public/Tendering/OpportunityDetail/Index?noticeUID=CO1.NTC.2599704&isFromPublicArea=True&isModal=False | E194: Contratos de prestación de servicios profesionales y de apoyo a la gestión | F194: Contratación directa | G194: Prestación de servicios profesionales y de apoyo a la gestión, o para la ejecución de trabajos artísticos que sólo puedan encomendarse a determinadas personas naturales | H194: PRESTAR LOS SERVICIOS PROFESIONALES A LA ALCALDÍA LOCAL DE USAQUÉN BRINDANDO ACOMPAÑAMIENTO AL ALCALDE LOCAL EN LOS PROCESOS DE ORDEN JURIDICO Y ADMINISTRATIVO, QUE SE LLEVEN ACABO EN EL DESPACHO PARA EL CUMPLIMIENTO DE LA GESTIÓN INSTITUCIONAL LOCAL | I194: Inversión | J194: UN NUEVO CONTRATO SOCIAL Y AMBIENTAL PARA LA BOGOTA DEL SIGLO XXI | K194: 57 | L194: Gestión pública local | M194: Propósito 5: Construir Bogotá - Región con gobierno abierto, transparente y ciudadanía consciente | N194: O23011605570000001949 | O194: 1 | P194: 1020814561 | Q194: MARIA DEL MAR MORENO ZULETA | R194: Persona Natural | W194: 88000000 | Y194: 1 | Z194: 12000000 | AA194: 100000000 | AB194: 82933333 | AC194: 2022-01-18 | AD194: 2022-01-20 | AE194: 2023-02-05 | AF194: 330 | AG194: 1 | AH194: 45 | AM194: En ejecucion | AN194: 0.82933333
A195: FDLUSA-CPS-166-2022 | B195: 2022 | C195: FDLUSA-CPS-166-2022 | D195: https://community.secop.gov.co/Public/Tendering/OpportunityDetail/Index?noticeUID=CO1.NTC.2558375&isFromPublicArea=True&isModal=False | E195: Contratos de prestación de servicios profesionales y de apoyo a la gestión | F195: Contratación directa | G195: Prestación de servicios profesionales y de apoyo a la gestión, o para la ejecución de trabajos artísticos que sólo puedan encomendarse a determinadas personas naturales | H195: PRESTAR SUS SERVICIOS PROFESIONALES A LA ALCALDÍA LOCAL DE USAQUÉN EN LA ORGANIZACIÓN, ARTICULACIÓN, ORIENTACIÓN Y SEGUIMIENTO TRANSVERSAL A LOS PROCESOS, PROGRAMAS Y PROYECTOS DE INVERSIÓN DEL PLAN DE DESARROLLO LOCAL PARA GARANTIZAR EL DESARROLLO DE LAS ETAPAS PRECONTRACTUAL, CONTRACTUAL Y POS CONTRACTUAL, CON EL FIN DE QUE ESTOS SE REALICEN CUMPLIENDO CON LOS ELEMENTOS Y ETAPAS DENTRO DE LOS TÉRMINOS, PROCEDIMIENTOS Y NORMATIVIDAD ESTABLECIDA - META: REALIZAR 4 ESTRATEGIAS DE FORTALECIMIENTO | I195: Inversión | J195: UN NUEVO CONTRATO SOCIAL Y AMBIENTAL PARA LA BOGOTA DEL SIGLO XXI | K195: 57 | L195: Gestión pública local | M195: Propósito 5: Construir Bogotá - Región con gobierno abierto, transparente y ciudadanía consciente | N195: O23011605570000001949 | O195: 1 | P195: 1026251827 | Q195: LEIDY MILENA TELLEZ RUBIO | R195: Persona Natural | W195: 79450602 | Y195: 1 | Z195: 10834173 | AA195: 90284775 | AB195: 75598452 | AC195: 2022-01-14 | AD195: 2022-01-17 | AE195: 2022-02-01 | AF195: 330 | AG195: 1 | AH195: 45 | AM195: Terminado | AN195: 0.8373333378
A196: FDLUSA-CPS-167-2022 | B196: 2022 | C196: FDLUSA-CPS-167-2022 | D196: https://community.secop.gov.co/Public/Tendering/OpportunityDetail/Index?noticeUID=CO1.NTC.2559616&isFromPublicArea=True&isModal=False | E196: Contratos de prestación de servicios profesionales y de apoyo a la gestión | F196: Contratación directa | G196: Prestación de servicios profesionales y de apoyo a la gestión, o para la ejecución de trabajos artísticos que sólo puedan encomendarse a determinadas personas naturales | H196: PRESTAR SERVICIOS PROFESIONALES DE ABOGADO ESPECIALISTA PARA EL APOYO A LOS DESPACHOS COMISORIOS EN EL DESPACHO DEL ALCALDE | I196: Inversión | J196: UN NUEVO CONTRATO SOCIAL Y AMBIENTAL PARA LA BOGOTA DEL SIGLO XXI | K196: 57 | L196: Gestión pública local | M196: Propósito 5: Construir Bogotá - Región con gobierno abierto, transparente y ciudadanía consciente | N196: O23011605570000001949 | O196: 1 | P196: 1065638936 | Q196: MARIA LAURA MORENO ZULETA | R196: Persona Natural | W196: 99000000 | Y196: 1 | Z196: 9000000 | AA196: 108000000 | AB196: 94200000 | AC196: 2022-01-14 | AD196: 2022-01-17 | AE196: 2023-01-16 | AF196: 330 | AG196: 1 | AH196: 30 | AM196: En ejecucion | AN196: 0.8722222222
A197: FDLUSA-CPS-168-2022 | B197: 2022 | C197: FDLUSA-CPS-168-2022 | D197: https://community.secop.gov.co/Public/Tendering/OpportunityDetail/Index?noticeUID=CO1.NTC.2523495&isFromPublicArea=True&isModal=False | E197: Contratos de prestación de servicios profesionales y de apoyo a la gestión | F197: Contratación directa | G197: Prestación de servicios profesionales y de apoyo a la gestión, o para la ejecución de trabajos artísticos que sólo puedan encomendarse a determinadas personas naturales | H197: PRESTAR LOS SERVICIOS PROFESIONALES COMO APOYO JURÍDICO EN LOS PROCESOS DE REVISIÓN DE SOPORTES PARA PAGO DE LAS CUENTAS DE COBRO PRESENTADAS Y REVISIÓN DE LIQUIDACIONES CONFORME A LAS OBLIGACIONES Y COMPROMISOS DEL FONDO DE DESARROLLO LOCAL DE USAQUÉN | I197: Inversión | J197: UN NUEVO CONTRATO SOCIAL Y AMBIENTAL PARA LA BOGOTA DEL SIGLO XXI | K197: 57 | L197: Gestión pública local | M197: Propósito 5: Construir Bogotá - Región con gobierno abierto, transparente y ciudadanía consciente | N197: O23011605570000001949 | O197: 1 | P197: 1065825534 | Q197: ADRIANA LIZETH MUÑOZ MORENO | R197: Persona Natural | W197: 58157836 | Y197: 1 | Z197: 7930614 | AA197: 66088450 | AB197: 56043006 | AC197: 2022-01-12 | AD197: 2022-01-13 | AE197: 2023-01-27 | AF197: 330 | AG197: 1 | AH197: 45 | AM197: En ejecucion | AN197: 0.8480000061
A198: FDLUSA-CPS-169-2022 | B198: 2022 | C198: FDLUSA-CPS-169-2022 | D198: https://community.secop.gov.co/Public/Tendering/OpportunityDetail/Index?noticeUID=CO1.NTC.2633902&isFromPublicArea=True&isModal=False | E198: Contratos de prestación de servicios profesionales y de apoyo a la gestión | F198: Contratación directa | G198: Prestación de servicios profesionales y de apoyo a la gestión, o para la ejecución de trabajos artísticos que sólo puedan encomendarse a determinadas personas naturales | H198: PRESTAR LOS PROFESIONALES A LA ALCALDÍA LOCAL DE USAQUÉN PARA LA ESTRUCTURACIÓN, DESARROLLO Y SEGUIMIENTO DE LAS ACTUACIONES ADMINISTRATIVAS RELACIONADAS CON LOS ASUNTOS JURÍDICOS DE LA CONTRATACIÓN, - META PDL REALIZAR 4 ESTRATEGIAS DE FORTALECIMIENTO INSTITUCIONAL | I198: Inversión | J198: UN NUEVO CONTRATO SOCIAL Y AMBIENTAL PARA LA BOGOTA DEL SIGLO XXI | K198: 57 | L198: Gestión pública local | M198: Propósito 5: Construir Bogotá - Región con gobierno abierto, transparente y ciudadanía consciente | N198: O23011605570000001949 | O198: 1 | P198: 32735116 | Q198: CARLA PETRUSSKA ROBINSON MOLINA | R198: Persona Natural | W198: 63000000 | Y198: 1 | Z198: 17500000 | AA198: 80500000 | AB198: 70000000 | AC198: 2022-01-21 | AD198: 2022-02-01 | AE198: 2023-01-14 | AF198: 270 | AG198: 1 | AH198: 75 | AM198: En ejecucion | AN198: 0.8695652174
A199: FDLUSA-CPS-170-2022 | B199: 2022 | C199: FDLUSA-CPS-170-2022 | D199: https://community.secop.gov.co/Public/Tendering/OpportunityDetail/Index?noticeUID=CO1.NTC.2537182&isFromPublicArea=True&isModal=False | E199: Contratos de prestación de servicios profesionales y de apoyo a la gestión | F199: Contratación directa | G199: Prestación de servicios profesionales y de apoyo a la gestión, o para la ejecución de trabajos artísticos que sólo puedan encomendarse a determinadas personas naturales | H199: PRESTAR LOS SERVICIOS PROFESIONALES ESPECIALIZADOS DE ABOGADO EN LOS PROCESOS CONTRACTUALES Y EL SEGUIMIENTO JURIDICO DE LOS PROCESOS ADMINISTRATIVOS DEL FONDO DE DESARROLLO LOCAL DE USAQUÉN | I199: Inversión | J199: UN NUEVO CONTRATO SOCIAL Y AMBIENTAL PARA LA BOGOTA DEL SIGLO XXI | K199: 57 | L199: Gestión pública local | M199: Propósito 5: Construir Bogotá - Región con gobierno abierto, transparente y ciudadanía consciente | N199: O23011605570000001949 | O199: 1 | P199: 1032439579 | Q199: ANDERSON GUTIERREZ MEJIA | R199: Persona Natural | W199: 83061993 | Y199: 1 | Z199: 7222782 | AA199: 90284775 | AB199: 75357692 | AC199: 2022-01-14 | AD199: 2022-01-18 | AE199: 2022-02-01 | AF199: 345 | AG199: 1 | AH199: 31 | AM199: Terminado | AN199: 0.8346666645
A200: FDLUSA-CPS-171-2022 | B200: 2022 | C200: FDLUSA-CPS-171-2022 | D200: https://community.secop.gov.co/Public/Tendering/ContractNoticePhases/View?PPI=CO1.PPI.16892374&isFromPublicArea=True&isModal=False | E200: Contratos de prestación de servicios profesionales y de apoyo a la gestión | F200: Contratación directa | G200: Prestación de servicios profesionales y de apoyo a la gestión, o para la ejecución de trabajos artísticos que sólo puedan encomendarse a determinadas personas naturales | H200: COORDINA, LIDERA Y ASESORA LOS PLANES Y ESTRATEGIAS DE COMUNICACIÓN INTERNA Y EXTERNA PARA LA DIVULGACIÓN DE LOS PROGRAMAS, PROYECTOS Y ACTIVIDADES DE LA ALCALDÍA LOCAL | I200: Inversión | J200: UN NUEVO CONTRATO SOCIAL Y AMBIENTAL PARA LA BOGOTA DEL SIGLO XXI | K200: 57 | L200: Gestión pública local | M200: Propósito 5: Construir Bogotá - Región con gobierno abierto, transparente y ciudadanía consciente | N200: O23011605570000001949 | O200: 1 | P200: 1018437987 | Q200: LEIDY YINETH MUÑOZ ROMERO | R200: Persona Natural | W200: 42000000 | AA200: 42000000 | AB200: 42000000 | AC200: 2022-01-21 | AD200: 2022-01-21 | AE200: 2022-07-20 | AF200: 180 | AM200: Terminado | AN200: 1
A201: FDLUSA-CPS-172-2022 | B201: 2022 | C201: FDLUSA-CPS-172-2022 | D201: https://community.secop.gov.co/Public/Tendering/OpportunityDetail/Index?noticeUID=CO1.NTC.2629326&isFromPublicArea=True&isModal=False | E201: Contratos de prestación de servicios profesionales y de apoyo a la gestión | F201: Contratación directa | G201: Prestación de servicios profesionales y de apoyo a la gestión, o para la ejecución de trabajos artísticos que sólo puedan encomendarse a determinadas personas naturales | H201: APOYAR AL EQUIPO DE PRENSA Y COMUNICACIONES DE LA ALCALDIA LOCAL EN LA REALIZACION DE PRODUCTOS Y PIEZAS DIGITALES, IMPRESAS Y PUBLICITARIAS DE GRAN FORMATO Y DE ANIMACION GRAFICA, ASI COMO APOYAR LA PRODUCCION Y MONTAJE DE EVENTOS | I201: Inversión | J201: UN NUEVO CONTRATO SOCIAL Y AMBIENTAL PARA LA BOGOTA DEL SIGLO XXI | K201: 57 | L201: Gestión pública local | M201: Propósito 5: Construir Bogotá - Región con gobierno abierto, transparente y ciudadanía consciente | N201: O23011605570000001949 | O201: 1 | P201: 1019017844 | Q201: LAURA JULIANA ISAACS MARROQUIN | R201: Persona Natural | W201: 53159670 | Y201: 1 | Z201: 2311290 | AA201: 55470960 | AB201: 47150316 | AC201: 2022-01-21 | AD201: 2022-01-25 | AE201: 2023-01-15 | AF201: 345 | AG201: 1 | AH201: 15 | AM201: En ejecucion | AN201: 0.85
A202: FDLUSA-CPS-173-2022 | B202: 2022 | C202: FDLUSA-CPS-173-2022 | D202: https://community.secop.gov.co/Public/Tendering/OpportunityDetail/Index?noticeUID=CO1.NTC.2634431&isFromPublicArea=True&isModal=False | E202: Contratos de prestación de servicios profesionales y de apoyo a la gestión | F202: Contratación directa | G202: Prestación de servicios profesionales y de apoyo a la gestión, o para la ejecución de trabajos artísticos que sólo puedan encomendarse a determinadas personas naturales | H202: PRESTAR SERVICIOS PROFECIONALES A LA ALCALDIA LOCAL DE USAQUEN, EN LA CREACION, REALIZACION, PRODUCCION Y EDICION DE VIDEOS, ASI COMO EL REGISTRO, EDICION Y PRESENTACION DE FO- TOGRAFIAS DE LOS ACONTECIMIENTOS, HECHOS Y EVENTOS EXTERNOS E INTERNOS DE LA ALCALDIA LOCAL Y EL ACOMPAÑAMIENTO AL EQUIPO DE PRENSA Y COMUNICACIONES | I202: Inversión | J202: UN NUEVO CONTRATO SOCIAL Y AMBIENTAL PARA LA BOGOTA DEL SIGLO XXI | K202: 57 | L202: Gestión pública local | M202: Propósito 5: Construir Bogotá - Región con gobierno abierto, transparente y ciudadanía consciente | N202: O23011605570000001949 | O202: 1 | P202: 52106203 | Q202: JADY GONZALEZ RODRIGUEZ | R202: Persona Natural | W202: 53159670 | AA202: 53159670 | AB202: 47766660 | AC202: 2022-01-21 | AD202: 2022-01-21 | AE202: 2023-01-05 | AF202: 345 | AG202: 1 | AH202: 5 | AM202: En ejecucion | AN202: 0.8985507246
... 483 more rows

Sheet Proposito_programa
B2: PDD | C2: No. Programa | D2: Programa | E2: Propósito
A3: Acuerdo 761 2020 | B3: Un Nuevo Contrato Social y Ambiental para la Bogotá del Siglo XXI | C3: 1 | D3: Subsidios y transferencias para la equidad | E3: Propósito 1: Hacer un nuevo contrato social para incrementar la inclusión social, productiva y política
A4: Pag. 51 | B4: Un Nuevo Contrato Social y Ambiental para la Bogotá del Siglo XXI | C4: =+C3+1 -> 2 | D4: Igualdad de oportunidades y desarrollo de capacidades para las mujeres | E4: Propósito 1: Hacer un nuevo contrato social para incrementar la inclusión social, productiva y política
B5: Un Nuevo Contrato Social y Ambiental para la Bogotá del Siglo XXI | C5: =+C4+1 -> 3 | D5: Movilidad social integral | E5: Propósito 1: Hacer un nuevo contrato social para incrementar la inclusión social, productiva y política
B6: Un Nuevo Contrato Social y Ambiental para la Bogotá del Siglo XXI | C6: 4 | D6: Prevención de la exclusión por razones étnicas, religiosas, sociales, políticas y de orientación sexual | E6: Propósito 1: Hacer un nuevo contrato social para incrementar la inclusión social, productiva y política
B7: Un Nuevo Contrato Social y Ambiental para la Bogotá del Siglo XXI | C7: 5 | D7: Promoción de la igualdad, el desarrollo de capacidades y el reconocimiento de las mujeres | E7: Propósito 1: Hacer un nuevo contrato social para incrementar la inclusión social, productiva y política
B8: Un Nuevo Contrato Social y Ambiental para la Bogotá del Siglo XXI | C8: 6 | D8: Sistema Distrital de Cuidado | E8: Propósito 1: Hacer un nuevo contrato social para incrementar la inclusión social, productiva y política
B9: Un Nuevo Contrato Social y Ambiental para la Bogotá del Siglo XXI | C9: 7 | D9: Mejora de la gestión de instituciones de salud | E9: Propósito 1: Hacer un nuevo contrato social para incrementar la inclusión social, productiva y política
B10: Un Nuevo Contrato Social y Ambiental para la Bogotá del Siglo XXI | C10: 8 | D10: Prevención y atención de maternidad temprana | E10: Propósito 1: Hacer un nuevo contrato social para incrementar la inclusión social, productiva y política
B11: Un Nuevo Contrato Social y Ambiental para la Bogotá del Siglo XXI | C11: 9 | D11: Prevención y cambios para mejorar la salud de la población | E11: Propósito 1: Hacer un nuevo contrato social para incrementar la inclusión social, productiva y política
B12: Un Nuevo Contrato Social y Ambiental para la Bogotá del Siglo XXI | C12: 10 | D12: Salud para la vida y el bienestar | E12: Propósito 1: Hacer un nuevo contrato social para incrementar la inclusión social, productiva y política
B13: Un Nuevo Contrato Social y Ambiental para la Bogotá del Siglo XXI | C13: 11 | D13: Salud y bienestar para niñas y niños | E13: Propósito 1: Hacer un nuevo contrato social para incrementar la inclusión social, productiva y política
B14: Un Nuevo Contrato Social y Ambiental para la Bogotá del Siglo XXI | C14: 12 | D14: Educación inicial: Bases sólidas para la vida. | E14: Propósito 1: Hacer un nuevo contrato social para incrementar la inclusión social, productiva y política
B15: Un Nuevo Contrato Social y Ambiental para la Bogotá del Siglo XXI | C15: 13 | D15: Educación para todos y todas: acceso y permanencia con equidad y énfasis en educación rural | E15: Propósito 1: Hacer un nuevo contrato social para incrementar la inclusión social, productiva y política
B16: Un Nuevo Contrato Social y Ambiental para la Bogotá del Siglo XXI | C16: 14 | D16: Formación integral: más y mejor tiempo en los colegios | E16: Propósito 1: Hacer un nuevo contrato social para incrementar la inclusión social, productiva y política
B17: Un Nuevo Contrato Social y Ambiental para la Bogotá del Siglo XXI | C17: 15 | D17: Plan Distrital de Lectura, Escritura y Oralidad: "Leer para la vida" | E17: Propósito 1: Hacer un nuevo contrato social para incrementar la inclusión social, productiva y política
B18: Un Nuevo Contrato Social y Ambiental para la Bogotá del Siglo XXI | C18: 16 | D18: Transformación pedagógica y mejoramiento de la gestión educativa. Es con los maestros y maestras. | E18: Propósito 1: Hacer un nuevo contrato social para incrementar la inclusión social, productiva y política
B19: Un Nuevo Contrato Social y Ambiental para la Bogotá del Siglo XXI | C19: 17 | D19: Jóvenes con capacidades: Proyecto de vida para la ciudadanía, la innovación y el trabajo del siglo XXI | E19: Propósito 1: Hacer un nuevo contrato social para incrementar la inclusión social, productiva y política
B20: Un Nuevo Contrato Social y Ambiental para la Bogotá del Siglo XXI | C20: 18 | D20: Cierre de brechas para la inclusión productiva urbano rural | E20: Propósito 1: Hacer un nuevo contrato social para incrementar la inclusión social, productiva y política
B21: Un Nuevo Contrato Social y Ambiental para la Bogotá del Siglo XXI | C21: 19 | D21: Vivienda y entornos dignos en el territorio urbano y rural | E21: Propósito 1: Hacer un nuevo contrato social para incrementar la inclusión social, productiva y política
B22: Un Nuevo Contrato Social y Ambiental para la Bogotá del Siglo XXI | C22: 20 | D22: Bogotá, referente en cultura, deporte, recreación y actividad física, con parques para el desarrollo y la salud | E22: Propósito 1: Hacer un nuevo contrato social para incrementar la inclusión social, productiva y política
B23: Un Nuevo Contrato Social y Ambiental para la Bogotá del Siglo XXI | C23: 21 | D23: Creación y vida cotidiana: Apropiación ciudadana del arte, la cultura y el patrimonio, para la democracia cultural | E23: Propósito 1: Hacer un nuevo contrato social para incrementar la inclusión social, productiva y política
B24: Un Nuevo Contrato Social y Ambiental para la Bogotá del Siglo XXI | C24: 22 | D24: Transformación cultural para la conciencia ambiental y el cuidado de la fauna doméstica | E24: Propósito 1: Hacer un nuevo contrato social para incrementar la inclusión social, productiva y política
B25: Un Nuevo Contrato Social y Ambiental para la Bogotá del Siglo XXI | C25: 23 | D25: Bogotá rural | E25: Propósito 1: Hacer un nuevo contrato social para incrementar la inclusión social, productiva y política
B26: Un Nuevo Contrato Social y Ambiental para la Bogotá del Siglo XXI | C26: 24 | D26: Bogotá región emprendedora e innovadora | E26: Propósito 1: Hacer un nuevo contrato social para incrementar la inclusión social, productiva y política
B27: Un Nuevo Contrato Social y Ambiental para la Bogotá del Siglo XXI | C27: 25 | D27: Bogotá región productiva y competitiva | E27: Propósito 1: Hacer un nuevo contrato social para incrementar la inclusión social, productiva y política
B28: Un Nuevo Contrato Social y Ambiental para la Bogotá del Siglo XXI | C28: 26 | D28: Bogotá - región, el mejor destino para visitar | E28: Propósito 1: Hacer un nuevo contrato social para incrementar la inclusión social, productiva y política
B29: Un Nuevo Contrato Social y Ambiental para la Bogotá del Siglo XXI | C29: 27 | D29: Cambio cultural para la gestión de la crisis climática | E29: Propósito 2 : Cambiar Nuestros Hábitos de Vida para Reverdecer a Bogotá y Adaptarnos y Mitigar la Crisis Climática
B30: Un Nuevo Contrato Social y Ambiental para la Bogotá del Siglo XXI | C30: =+C29+1 -> 28 | D30: Bogotá protectora de sus recursos naturales | E30: Propósito 2 : Cambiar Nuestros Hábitos de Vida para Reverdecer a Bogotá y Adaptarnos y Mitigar la Crisis Climática
B31: Un Nuevo Contrato Social y Ambiental para la Bogotá del Siglo XXI | C31: =+C30+1 -> 29 | D31: Asentamientos y entornos protectores | E31: Propósito 2 : Cambiar Nuestros Hábitos de Vida para Reverdecer a Bogotá y Adaptarnos y Mitigar la Crisis Climática
B32: Un Nuevo Contrato Social y Ambiental para la Bogotá del Siglo XXI | C32: 30 | D32: Eficiencia en la atención de emergencias | E32: Propósito 2 : Cambiar Nuestros Hábitos de Vida para Reverdecer a Bogotá y Adaptarnos y Mitigar la Crisis Climática
B33: Un Nuevo Contrato Social y Ambiental para la Bogotá del Siglo XXI | C33: 31 | D33: Protección y valoración del patrimonio tangible e intangible en Bogotá y la región | E33: Propósito 2 : Cambiar Nuestros Hábitos de Vida para Reverdecer a Bogotá y Adaptarnos y Mitigar la Crisis Climática
B34: Un Nuevo Contrato Social y Ambiental para la Bogotá del Siglo XXI | C34: 32 | D34: Revitalización urbana para la competitividad | E34: Propósito 2 : Cambiar Nuestros Hábitos de Vida para Reverdecer a Bogotá y Adaptarnos y Mitigar la Crisis Climática
B35: Un Nuevo Contrato Social y Ambiental para la Bogotá del Siglo XXI | C35: 33 | D35: Más árboles y más y mejor espacio público | E35: Propósito 2 : Cambiar Nuestros Hábitos de Vida para Reverdecer a Bogotá y Adaptarnos y Mitigar la Crisis Climática
B36: Un Nuevo Contrato Social y Ambiental para la Bogotá del Siglo XXI | C36: 34 | D36: Bogotá protectora de los animales | E36: Propósito 2 : Cambiar Nuestros Hábitos de Vida para Reverdecer a Bogotá y Adaptarnos y Mitigar la Crisis Climática
B37: Un Nuevo Contrato Social y Ambiental para la Bogotá del Siglo XXI | C37: 35 | D37: Manejo y prevención de contaminación | E37: Propósito 2 : Cambiar Nuestros Hábitos de Vida para Reverdecer a Bogotá y Adaptarnos y Mitigar la Crisis Climática
B38: Un Nuevo Contrato Social y Ambiental para la Bogotá del Siglo XXI | C38: 36 | D38: Manejo y saneamiento de los cuerpos de agua | E38: Propósito 2 : Cambiar Nuestros Hábitos de Vida para Reverdecer a Bogotá y Adaptarnos y Mitigar la Crisis Climática
B39: Un Nuevo Contrato Social y Ambiental para la Bogotá del Siglo XXI | C39: 37 | D39: Provisión y mejoramiento de servicios públicos | E39: Propósito 2 : Cambiar Nuestros Hábitos de Vida para Reverdecer a Bogotá y Adaptarnos y Mitigar la Crisis Climática
B40: Un Nuevo Contrato Social y Ambiental para la Bogotá del Siglo XXI | C40: 38 | D40: Ecoeficiencia, reciclaje, manejo de residuos e inclusión de la población recicladora | E40: Propósito 2 : Cambiar Nuestros Hábitos de Vida para Reverdecer a Bogotá y Adaptarnos y Mitigar la Crisis Climática
B41: Un Nuevo Contrato Social y Ambiental para la Bogotá del Siglo XXI | C41: 39 | D41: Bogotá territorio de paz y atención integral a las víctimas del conflicto armado | E41: Propósito 3: Inspirar confianza y legitimidad para vivir sin miedo y ser epicentro de cultura ciudadana, paz y reconciliación
B42: Un Nuevo Contrato Social y Ambiental para la Bogotá del Siglo XXI | C42: =+C41+1 -> 40 | D42: Más mujeres viven una vida libre de violencias, se sienten seguras y acceden con confianza al sistema de justicia | E42: Propósito 3: Inspirar confianza y legitimidad para vivir sin miedo y ser epicentro de cultura ciudadana, paz y reconciliación
B43: Un Nuevo Contrato Social y Ambiental para la Bogotá del Siglo XXI | C43: =+C42+1 -> 41 | D43: Sin machismo ni violencias contra las mujeres, las niñas y los niños | E43: Propósito 3: Inspirar confianza y legitimidad para vivir sin miedo y ser epicentro de cultura ciudadana, paz y reconciliación
B44: Un Nuevo Contrato Social y Ambiental para la Bogotá del Siglo XXI | C44: 42 | D44: Conciencia y cultura ciudadana para la seguridad, la convivencia y la construcción de confianza | E44: Propósito 3: Inspirar confianza y legitimidad para vivir sin miedo y ser epicentro de cultura ciudadana, paz y reconciliación
B45: Un Nuevo Contrato Social y Ambiental para la Bogotá del Siglo XXI | C45: 43 | D45: Cultura ciudadana para la confianza, la convivencia y la participación desde la vida cotidiana | E45: Propósito 3: Inspirar confianza y legitimidad para vivir sin miedo y ser epicentro de cultura ciudadana, paz y reconciliación
B46: Un Nuevo Contrato Social y Ambiental para la Bogotá del Siglo XXI | C46: 44 | D46: Autoconciencia, respeto y cuidado en el espacio público | E46: Propósito 3: Inspirar confianza y legitimidad para vivir sin miedo y ser epicentro de cultura ciudadana, paz y reconciliación
B47: Un Nuevo Contrato Social y Ambiental para la Bogotá del Siglo XXI | C47: 45 | D47: Espacio público más seguro y construido colectivamente | E47: Propósito 3: Inspirar confianza y legitimidad para vivir sin miedo y ser epicentro de cultura ciudadana, paz y reconciliación
B48: Un Nuevo Contrato Social y Ambiental para la Bogotá del Siglo XXI | C48: 46 | D48: Atención a jóvenes y adultos infractores con impacto en su proyecto de vida | E48: Propósito 3: Inspirar confianza y legitimidad para vivir sin miedo y ser epicentro de cultura ciudadana, paz y reconciliación
B49: Un Nuevo Contrato Social y Ambiental para la Bogotá del Siglo XXI | C49: 47 | D49: Calidad de Vida y Derechos de la Población privada de la libertad | E49: Propósito 3: Inspirar confianza y legitimidad para vivir sin miedo y ser epicentro de cultura ciudadana, paz y reconciliación
B50: Un Nuevo Contrato Social y Ambiental para la Bogotá del Siglo XXI | C50: 48 | D50: Plataforma institucional para la seguridad y justicia | E50: Propósito 3: Inspirar confianza y legitimidad para vivir sin miedo y ser epicentro de cultura ciudadana, paz y reconciliación
B51: Un Nuevo Contrato Social y Ambiental para la Bogotá del Siglo XXI | C51: 49 | D51: Movilidad segura, sostenible y accesible | E51: Propósito 4: Hacer de Bogotá Región un modelo de movilidad multimodal, incluyente y sostenible
B52: Un Nuevo Contrato Social y Ambiental para la Bogotá del Siglo XXI | C52: =+C51+1 -> 50 | D52: Red de metros | E52: Propósito 4: Hacer de Bogotá Región un modelo de movilidad multimodal, incluyente y sostenible
B53: Un Nuevo Contrato Social y Ambiental para la Bogotá del Siglo XXI | C53: 51 | D53: Gobierno Abierto | E53: Propósito 5: Construir Bogotá - Región con gobierno abierto, transparente y ciudadanía consciente
B54: Un Nuevo Contrato Social y Ambiental para la Bogotá del Siglo XXI | C54: =+C53+1 -> 52 | D54: Integración regional, distrital y local | E54: Propósito 5: Construir Bogotá - Región con gobierno abierto, transparente y ciudadanía consciente
B55: Un Nuevo Contrato Social y Ambiental para la Bogotá del Siglo XXI | C55: 53 | D55: Información para la toma de decisiones | E55: Propósito 5: Construir Bogotá - Región con gobierno abierto, transparente y ciudadanía consciente
B56: Un Nuevo Contrato Social y Ambiental para la Bogotá del Siglo XXI | C56: 54 | D56: Transformación digital y gestión de TIC para un territorio inteligente | E56: Propósito 5: Construir Bogotá - Región con gobierno abierto, transparente y ciudadanía consciente
B57: Un Nuevo Contrato Social y Ambiental para la Bogotá del Siglo XXI | C57: 55 | D57: Fortalecimiento de cultura ciudadana y su institucionalidad | E57: Propósito 5: Construir Bogotá - Región con gobierno abierto, transparente y ciudadanía consciente
B58: Un Nuevo Contrato Social y Ambiental para la Bogotá del Siglo XXI | C58: 56 | D58: Gestión pública efectiva | E58: Propósito 5: Construir Bogotá - Región con gobierno abierto, transparente y ciudadanía consciente
B59: Un Nuevo Contrato Social y Ambiental para la Bogotá del Siglo XXI | C59: 57 | D59: Gestión pública local | E59: Propósito 5: Construir Bogotá - Región con gobierno abierto, transparente y ciudadanía consciente

Sheet Tipo (hidden)
C1: Modalidad de Selección | D1: afectacion | E1: Naturaleza Jurídica
A2: 1 | C2: Concurso de méritos | D2: Funcionamiento | E2: Persona Natural
A3: 2 | C3: Contratación directa | D3: Inversión | E3: Persona Jurídica
A4: 3 | C4: Contratación mínima cuantia | D4: Operación | E4: Unión Temporal
A5: 4 | C5: Selección abreviada | E5: Consorcio
A6: 5 | C6: Licitación pública | E6: Sociedad con objeto único
A7: 6 | C7: Otros | E7: Persona jurídica extranjera
A8: 7 | C8: Régimen especial | E8: Sin ánimo de lucro
A9: 8 | E9: Cabildo indígena
A10: 9 | E10: Consejo comunitario de las comunidades negras
A11: 10 | C11: Selección abreviada | E11: Organizaciones de segundo nivel
A12: 11 | C12: Subasta inversa | E12: Formas o expresiones organizativas, afrocolombianas, raizales y palenqueras
A13: 12 | C13: Bolsas de productos | E13: Organizaciones de base de comunidades negras
A14: 13 | C14: Acuerdo marco de precios | E14: Asociaciones de autoridades tradicionales indígenas
A15: 14 | C15: Selección abreviada por menor cuantía
A16: 15
A17: 16 | C17: contratacion directa
A18: 17 | C18: Urgencia manifiesta
A19: 18 | C19: Contratación de empréstitos
A20: 19 | C20: Contratos interadministrativos
A21: 20 | C21: Contratación de bienes y servicios en el sector Defensa
B22: SECTOR | C22: Contratos para el desarrollo de actividades científicas y tecnológicas
A23: 1 | B23: Gestión Pública | C23: Contratos de encargo fiduciario que celebren las entidades territoriales cuando inician el Acuerdo de Reestructuración de Pasivos
A24: =+A23+1 -> 2 | B24: Gobierno | C24: Cuando no exista pluralidad de oferentes en el mercado
A25: =+A24+1 -> 3 | B25: Hacienda | C25: Prestación de servicios profesionales y de apoyo a la gestión, o para la ejecución de trabajos artísticos que sólo puedan encomendarse a determinadas personas naturales
A26: 4 | B26: Planeación | C26: El arrendamiento o adquisición de inmuebles
A27: 5 | B27: Desarrollo Económico, Industria y Turismo | C27: Contratación de bienes y servicios de la Dirección Nacional de Inteligencia (DNI)
A28: 6 | B28: Educación
A29: 7 | B29: Salud
A30: 8 | B30: Integración Social | C30: Decreto 92 de 2017
A31: 9 | B31: Cultura, Recreación y Deporte | C31: No aplica
A32: 10 | B32: Ambiente
A33: 11 | B33: Movilidad | C33: SECOP I
A34: 12 | B34: Hábitat | C34: SECOP II
A35: 13 | B35: Mujeres
A36: 14 | B36: Seguridad, Convivencia y Justicia | C36: Bogotá Mejor para Todos
A37: 15 | B37: Gestión Juridíca | C37: Un Nuevo Contrato Social y Ambiental para la Bogotá del Siglo XXI
A38: 16 | B38: descentralizado territorialmente
B40: 16 - AL | C40: Estado
C41: Celebrado o por iniciar
B42: Plan de desarrollo distrital | C42: En ejecución
B43: Un nuevo contrato social y ambiental para la Bogotá del Siglo XXI | C43: Terminado
C44: Liquidado
B46: Tipo
B47: Obra pública
B48: Consultoría
B49: Interventoría
B50: Contratos de prestación de servicios
B51: Contratos de prestación de servicios profesionales y de apoyo a la gestión
B52: Compraventa de bienes muebles
B53: Compraventa de bienes inmuebles
B54: Arrendamiento de bienes muebles
B55: Arrendamiento de bienes inmuebles
B56: Seguro
B57: Suministro
B58: Empréstitos
B59: Fiducia mercantil o encargo fiduciario
B60: Concesión
B61: Convenios de cooperacion
B62: Convenios/Contratos interadministrativos
B63: Convenios de apoyo o convenios de asociación
B64: Convenios solidarios
B65: Asociaciones Público Privadas
B66: Otros
B67: Otros gastos
